Workbook

Sheet Note for reviewers (hidden)
B3: Note from Troy Bowman:
B5: Hello. Thanks for agreeing to review the worksheets in this tool. Your feedback will make this tool more accurate and useful to both you and the general public. It is important that the tool
B6: be both accurate and through as for some, this will be a primary source of information with regard to making nutrient reduction practice decisions on their land. With that in mind, feel free to be
B7: as picky and brutal as necessary.
B9: Areas to provide feedback:
B10: While any feedback is appreciated, it would be helpful, in particular, to have comments about the following:
C11: Default values used | E11: (too high?, too low?)
C12: Practice steps | E12: (is the list of steps complete enough, are there steps that need to be added, or taken away)
C13: General look | E13: (are the steps and information laid out in a manner that is easy to follow and understand)
C14: Decision helper | E14: (are there any additional scenarios that should be added)
C15: Wetlands | E15: (should we approach wetland creation from a CRP-style large wetland angle, or focus more on smaller detention type wetlands)
C16: Living mulch | E16: (any additional information on living mulch would be appreciated)
C17: Calculations | E17: (given the individual step costs, are the values reasonable and calculated correctly?)
C18: Final costs | E18: (are the costs in units that are most useful? Do you think they are reasonable?)
B20: This is a work in progress. So be aware that not all buttons or choices may function correctly. I am currently working on making the macros more efficient as well as updating the
B21: cost-sharing information across all of the worksheets.
B23: Anatomy of the worksheet:
B24: Each worksheet is setup the same way. There will be the title, description and picture at the top. Then a section with some general questions, final cost estimates, and nutrient reduction estimate.
B25: Then the steps needed to implement the practice with costs for each step along the way. In the final product, the final cost estimates will be hidden until the user hits a button at the end of the worksheet
B26: which will expose the estimate and take the user back to the top of the page.
B27: Practices that span multiple years will have a yearly breakdown chart at the end of the practice.
B29: Issues to be aware of:
B30: Currently, only nitrogen-focused practices are available. Phosphorus practices are still be developed at the moment.
B31: I have unhidden all of the practice worksheets so you wont need to use either the practices page or the decision helper page to open them.
B32: I have already filled in default values for all of the pages.
B33: Boxes that are shaded in | F33: are boxes that contain formulas. I don't have those cells protected at the moment, so if you overwrite them, you will need to reload the worksheet without saving to
B34: bring the formula back to the default. In the future, these boxes will be able to be brought back using the default values button at the top of each page.
B35: Practices do not all have descriptions or description of the steps added yet. These are being added on a continual basis.
B36: Excel is currently the only way to use the tool. Once the calculations and values are reviewed; individual web apps for popular practices will be developed.
B38: Feel free to type directly on each individual page or if you want, you can type on a separate document (or even write your comments out by hand).
B39: You can reach me at:
B41: Troy Bowman
B42: Department of Natural Resource Ecology and Management
B43: Iowa State University
B44: 339 Science II
B45: Ames, IA 50011
B47: 515-450-3489
B49: forester@iastate.edu

Sheet Introduction
B8: The State of Iowa through the Department of Natural Resources and Department of Agriculture, and in partnership with Iowa State University
B9: and the US Department of Agriculture, has developed a science and technology-driven strategy to assess and reduce the nutrients entering Iowa's
B10: waterways and in turn, the Gulf of Mexico. This strategy is built around proven best management practices that reduce the nitrogen and
B11: phosphorus delivered by agricultural landscapes.
B13: As a voluntary program, farmers can decide for themselves what practices they want to employ and how best to manage nutrient loss from
B14: their operations. This decision support tool is the first in a suite of instruments created to help farmers with those decisions.
B16: If you would like to know more about the Iowa Nutrient Reduction Strategy, click on the button below to open the website:
B20: This set of worksheets has been designed to help provide Iowa farmers with economic tools that will enable them to make informed
B21: decisions about implementing the Nutrient Reduction Strategy management best practices. These worksheets will walk users through
B22: the basic steps involved with each practice and provide a concise estimate of the financial costs required to start and maintain its operation.
B24: Let's get started. | D24: There are two main ways to start using this decision support tool.
B26: If you would like to browse through the various practices included in this tool, select the option below to explore practices
B27: that have been proven to reduce the loss of Nitrogen and or sediment from farmland:
B33: or
B35: If you don't know exactly where to start, you can use the Decision Helper tool to walk through some various common farm scenarios
B36: and the practices that can help reduce nutrient loss in those situations:

Sheet NitrogenCopies (hidden)
A1: Nitrogen Management Practices
A3: The following set of practices include operational variations that change the type and amount of nitrogen used, the timing of
A4: its application, or use infield mulches or cover crops to limit nitrogen loss.
A6: Click on a button below to open a brief description of the practice and links to both the economic worksheet and a website.
A19: Land Use Practices
A21: The following set of practices include operational variations that change the type and amount of nitrogen used, the timing of
A22: its application, or use infield mulches or cover crops to limit nitrogen loss.
A24: Click on a button below to open a brief description of the practice and links to both the economic worksheet and a website.
A37: Edge of Field Practices
A39: The following set of practices include built structures, plantings, reconstructed wetlands or changes in tile drainage
A40: to reduce nitrogen loads. Because these practices occur outside the bounds of the field operation, they have little to no effect on yields.
A42: Click on a button below to open a brief description of the practice and links to both the economic worksheet and a website.

Sheet Practice Information (hidden)
B2: PRACTICE NAME HERE | H2: ISU Logo | L2: Cover Crops | V2: N Management | AF2: Living Mulches
B4: Practice Code
C6: Text info on Practice | L6: Cover crops, which are planted in the late summer or early fall before or just after harvest, can reduce soil erosion, limit the loss of nitrogen, control weeds, increase soil organic matter and quality. | V6: Improved nitrogen management is about choosing the application rate, source, and timing of nitrogen fertilizer to provide the most effective balance of crop yield and nutrient cost. | AF6: Living mulches (such as Kura clover) are plant systems that are grown along with other crops and reduce erosion, provide weed control, and provide nitrogen fixation.
G7: Picture
L13: On average, cover crops have been shown to reduce nitrogen loss by 31% and phosphorus loss by 29%. | V13: On average, improved N management has been shown to reduce nitrogen loss by 4% to 10% depending on the particular practice used. | AF13: On average, living mulches have been shown to reduce nitrogen loss by 41%.
J20: Close | T20: Close | AD20: Close | AN20: Close
L22: Energy Crops | V22: Extended Rotations | AF22: Pasture
L26: Energy crops are vegetation (such as switchgrass, Miscanthus, or woody species) that is grown for use in providing ingredients for biofuels. Energy crops have, in general, low costs, inputs, and maintenance. | V26: Extended rotations incorporate perennial crops (such as alfalfa) into crop rotations. Long term benefits have shown a reduction the use of synthetic fertilizers and herbicides, and greater yields following perennial harvests. | AF26: Grazed pastures are cropping operations that have replaced field crops with perennial cover for feeding grazing livestock.
L33: On average, energy crops have been shown to reduce nitrogen loss by 72%. | V33: On average, extended rotations have been shown to reduce nitrogen loss by 42%. | AF33: On average, grazed pastures have been shown to reduce nitrogen loss by 85% and phosphorus loss by 59%.
T40: Close | AD40: Close | AN40: Close
L42: Bioreactors | V42: Wetlands | AF42: Buffers | AP42: Controlled Drainage
L46: Denitrifying bioreactors are woodchip-filled trench structures built at the edge of a field that allow bacteria to reduce the nitrogen load in water intercepted from tile drainage. Bioreactors are usually applied to drainage areas ranging from 30-80 acres. | V46: Constructed wetlands are engineered systems that simulate the effects of natural wetlands and filter runoff from agricultural fields. They tend to be sizeable and are appropriate for treating the drainage of large areas. | AF46: Buffers are strips of perennial vegetation grown along the edges of fields (particularly those adjancent to waterways) that absorb and filter water running off of fields or from tile drainage. | AP46: Controlled drainage is the use of structures placed at the end of tile pipes to slow water flow and set the water table to a particular level. The water level can be set low in the spring for operations and the set higher to allow water storage for crop growth.
V53: On average, wetlands have been shown to reduce nitrogen loss by 52%. | AF53: On average, buffers have been shown to reduce nitrogen loss by 91% and phosphorus loss by 58%. | AP53: On average, cover crops have been shown to reduce nitrogen loss by 33%.
L55: On average, bioreactors have been shown to reduce nitrogen exiting tile lines by 43%.
T60: Close | AD60: Close | AN60: Close | AX60: Close

Sheet Nitrogen Practices (hidden)
B6: Nutrient Reduction Practices
B8: 93% of Iowa's total nitrogen stream load comes from non-point sources, such as farmland. The Iowa Nutrient Reduction Strategy has set a goal of reducing
B9: this by nitrogen loss 41%. Effective use of a combination of these proven best management practices below will help to meet that goal and better protect the waterways
B10: in Iowa and further downstream.
B12: Best management practices have been divided into three major categories: Nitrogen Management, Land Use, and Edge of Field. To explore the practices in each of these
B13: sections, click on the appropriate button below:
B20: Nitrogen Management Practices
B22: The following set of practices include operational variations that change the type and amount of nitrogen used, the timing of
B23: its application, or use infield mulches or cover crops to limit nitrogen loss.
B25: Click on a button below to open a brief description of the practice and links to both the economic worksheet and a website.
K28: Cover Crops
K32: Cover crops, which are planted in the late summer or early fall before or just after harvest, can reduce soil erosion, limit the loss of nitrogen, control weeds, increase soil organic matter and quality.
K39: On average, cover crops have been shown to reduce nitrogen loss by 31% and phosphorus loss by 29%.
S46: Close

Sheet Decision Helper
A9: This worksheet is designed to help you match different nutrient reduction practices to the individual needs of your farm operation. There are a variety of different statements listed below.
A10: Each statement has a button next to it that can be clicked to display a set of related best management practices. You can then examine each listed practice further by opening the worksheet or clicking the link to
A11: visit the website in your default web browser.
A13: 1. I am interested in treating the water coming from my tile drainage system to reduce nitrogen.
B15: You might be interested in trying…
B17: Bioreactors | L17: Controlled Drainage | V17: Wetlands
B21: Denitrifying bioreactors are woodchip-filled trench structures built at the edge of a field that allow bacteria to reduce the nitrogen load in water intercepted from tile drainage. Bioreactors are usually applied to drainage areas ranging from 30-80 acres. | L21: Controlled drainage is the use of structures placed at the end of tile pipes to slow water flow and set the water table to a particular level. The water level can be set low in the spring for operations and the set higher to allow water storage for crop growth. | V21: Constructed wetlands are engineered systems that simulate the effects of natural wetlands and filter runoff from agricultural fields. They tend to be sizeable and are appropriate for treating the drainage of large areas.
L28: On average, cover crops have been shown to reduce nitrogen loss by 33%. | V28: On average, wetlands have been shown to reduce nitrogen loss by 52%.
B30: On average, bioreactors have been shown to reduce nitrogen exiting tile lines by 43%.
A40: 2. I have a stream running through and/or adjacent to my farm.
B42: You might be interest in trying…
B44: Buffers
B48: Buffers are strips of perennial vegetation grown along the edges of fields (particularly those adjancent to waterways) that absorb and filter water running off of fields or from tile drainage.
B55: On average, buffers have been shown to reduce nitrogen loss by 91% and phosphorus loss by 58%.
A67: 3. I have had problems with in-field erosion on my property.
B69: You might be interested in trying…
B71: Cover Crops
B75: Cover crops, which are planted in the late summer or early fall before or just after harvest, can reduce soil erosion, limit the loss of nitrogen, control weeds, increase soil organic matter and quality.
B82: On average, cover crops have been shown to reduce nitrogen loss by 31% and phosphorus loss by 29%.
A94: 4. I am interested in increasing the amount of wildlife on my property.
B96: You might be interested in trying…
B98: Wetlands | L98: Buffers
B102: Constructed wetlands are engineered systems that simulate the effects of natural wetlands and filter runoff from agricultural fields. They tend to be sizeable and are appropriate for treating the drainage of large areas. | L102: Buffers are strips of perennial vegetation grown along the edges of fields (particularly those adjancent to waterways) that absorb and filter water running off of fields or from tile drainage.
B109: On average, wetlands have been shown to reduce nitrogen loss by 52%. | L109: On average, buffers have been shown to reduce nitrogen loss by 91% and phosphorus loss by 58%.
A121: 5. I apply nitrogen fertlizer in the fall.
B123: You might be interested in trying…
B125: Cover Crops
B129: Cover crops, which are planted in the late summer or early fall before or just after harvest, can reduce soil erosion, limit the loss of nitrogen, control weeds, increase soil organic matter and quality.
B136: On average, cover crops have been shown to reduce nitrogen loss by 31% and phosphorus loss by 29%.
A148: 6. I would like to increase the amount of organic matter in my topsoil.
B150: You might be interested in trying…
B152: Cover Crops | L152: Extended Rotations
B156: Cover crops, which are planted in the late summer or early fall before or just after harvest, can reduce soil erosion, limit the loss of nitrogen, control weeds, increase soil organic matter and quality. | L156: Extended rotations incorporate perennial crops (such as alfalfa) into crop rotations. Long term benefits have shown a reduction the use of synthetic fertilizers and herbicides, and greater yields following perennial harvests.
B163: On average, cover crops have been shown to reduce nitrogen loss by 31% and phosphorus loss by 29%. | L163: On average, extended rotations have been shown to reduce nitrogen loss by 42%.
A175: 7. I have a livestock operation in addition to field crops.
B177: You might be interested in trying…
B179: Extended Rotations | L179: Pasture
B183: Extended rotations incorporate perennial crops (such as alfalfa) into crop rotations. Long term benefits have shown a reduction the use of synthetic fertilizers and herbicides, and greater yields following perennial harvests. | L183: Grazed pastures are cropping operations that have replaced field crops with perennial cover for feeding grazing livestock.
B190: On average, extended rotations have been shown to reduce nitrogen loss by 42%. | L190: On average, grazed pastures have been shown to reduce nitrogen loss by 85% and phosphorus loss by 59%.
A202: 8. I have a bioenergy facility near my farm.
B204: You might be interested in trying…
B206: Energy Crops
B210: Energy crops are vegetation (such as switchgrass, Miscanthus, or woody species) that is grown for use in providing ingredients for biofuels. Energy crops have, in general, low costs, inputs, and maintenance.
B217: On average, energy crops have been shown to reduce nitrogen loss by 72%.
A229: 9. I would like to reduce nutrient loss from my property, but I am not interested in practices that take a lot of land out of production.
B231: You might be interested in trying…
B233: Bioreactors | L233: Controlled Drainage | V233: Cover Crops
B237: Denitrifying bioreactors are woodchip-filled trench structures built at the edge of a field that allow bacteria to reduce the nitrogen load in water intercepted from tile drainage. Bioreactors are usually applied to drainage areas ranging from 30-80 acres. | L237: Controlled drainage is the use of structures placed at the end of tile pipes to slow water flow and set the water table to a particular level. The water level can be set low in the spring for operations and the set higher to allow water storage for crop growth. | V237: Cover crops, which are planted in the late summer or early fall before or just after harvest, can reduce soil erosion, limit the loss of nitrogen, control weeds, increase soil organic matter and quality.
L244: On average, cover crops have been shown to reduce nitrogen loss by 33%. | V244: On average, cover crops have been shown to reduce nitrogen loss by 31% and phosphorus loss by 29%.
B246: On average, bioreactors have been shown to reduce nitrogen exiting tile lines by 43%.
A256: 10. I would like to reduce the amount of erosion living my property.
B258: You might be interested in trying…
B260: Buffers
B264: Buffers are strips of perennial vegetation grown along the edges of fields (particularly those adjancent to waterways) that absorb and filter water running off of fields or from tile drainage.
B271: On average, buffers have been shown to reduce nitrogen loss by 91% and phosphorus loss by 58%.

Sheet Core Help (hidden)
A2: Cover Crops Information
A4: 2016 Iowa EQIP Basic Payment Rates Chemical or mechanical kill cover crop species—$40.13/Ac. Establishment must meet NRCS standards and may not be available in all districts. Contact your local NRCS or Iowa State Extension agent for details.
A5: Default seed prices are for cereal rye.
A6: Early aerial or high-clearance broadcasting is recommended. Best establishment will occur immediately following the soybean leaf yellowing or black layer on corn. In addition, field conditions that are too dry (less than 0.25" of rain) may inhibit establishment success.
A10: Bioreactor Information
A12: In Iowa, bioreactors may be funded through the Environmental Quality Incentive Program (EQIP) under Practice Code 605. Basic 2016 EQIP payments start at $24.85 per cubic yard of pit excavation. Check with your local NRCS agent for more details and availability.
A13: Mineral soils are soils that either: contain less than 20% organic matter and are saturated less than 30 days out of the year; or if saturated for more than 30 days (or artifically drained) contain less than (12 + n)% organic matter where n = 0.1 * the percentage of clay in the soil (Example: less than 18% organic matter when 60% of the soil is clay).
A14: The drainage coefficient is the amount of water (in inches) to be removed in 24 hours.
A15: Design costs may be assessed by private engineering firms, but may be waived if assistance is obtained through public technical service providers such as the NRCS or Iowa State Extension.
A16: Depth is set by default to 2 feet, but can be varied based on location or preference.
A17: Woodchips can be purchased in bulk from companies (such as tree service businesses) or from public agencies (such as cities or counties) and the price will vary greatly depending on the time of year and available stocks. Woodchips may be available in some locations with little or no charge except for shipping. It is important, however, to make sure that the woodchips provided are compatible with the operation of the bioreactor. Ideally woodchips should be between 1/4 to 1 inch in length and be free of dirt, gravel, leaves, and other non-woody debris. Woodchips should also not come from treated or preserved wood.
A20: Shallow Drainage information
A22: The drainage cofficient is the rate at which water will be removed from the system expressed in inches per day. The appropriate value will be dependent on the crops to be grown as well as the soil type. For Iowa, values are usually between 0.375 and 0.75
A23: The minimum water table depth is the shallowest level that the water table will be allowed to be at for a 24-hour period. Usually this value will be around 1 foot.
A24: The restrictive soil layer is the section of soil that prevents (or greatly impairs) the ability of water to move through it. This value can usually be found in a NRCS soil survey.
A25: The saturated hydraiulic conductivity is a measure of the ability of water to move through the soil. Values of a particular soil type can be found in a NRCS soil survey.
A26: The NRCS has an EQIP cost share program for developing a professional written plan for drainage water management (Practice code 130) and a cost share program for the the management of a drainage water system in a row crop field with subsurface drainage system already installed or planned to be installed with control structures, or a surface water management system with berms or levees around the field and control structures (Practice code 554). Contact your local NRCS or Iowa State Extension agent for details.
A28: Living Mulch Information
A29: It is possible that 2016 Iowa EQIP Basic Payment Rates for cover crops would apply to Kura clover plantings. Contact your local NRCS or Iowa State Extension agent for details.
A31: Energy Crops Information
A32: Cost sharing information coming soon
A34: Extended Rotations Information
A35: Cost sharing information coming soon
A37: Grazed Pasture Information
A38: Cost sharing information coming soon
A40: Controlled Drainage information
A41: The NRCS has an EQIP cost share program for developing a professional written plan for drainage water management (Practice code 130) and a cost share program for the the management of a drainage water system in a row crop field with subsurface drainage system already installed or planned to be installed with control structures, or a surface water management system with berms or levees around the field and control structures (Practice code 554). Contact your local NRCS or Iowa State Extension agent for details.
A43: Wetlands Information
A44: There are a number of USDA Farm Service Agency cost share and land rent programs that apply to wetland restoration and or construction. For example, in the FSA program for wetland restoration in non-floodplain contexts (CP-23A) participants are guaranteed: • 10-15 years of annual rental payments with an additional 20% Rental Rate Incentive • Payments covering up to 90% of the eligible costs of establishing the wetland restoration practice - 50% from a Cost-Share Payment and - 40% from a Practice Incentive Payment (PIP) • Sign-up Incentive Payment (SIP) up to $150/acre • Mid-Contract Management Cost Share • Additional incentives may be available in your state under the Conservation Reserve Enhancement Program (CREP). Contact your local NRCS or Iowa State Extension agent for details.
A46: Buffers Information
A47: The Farm Service Agency has cost share and land rent programs as part of CRP that apply to Riparian Forest Buffers (CP-21) and Vegetative Filter Strips/ Buffers (CP 22), where participants receive: • 10-15 years of annual rental payments with an additional 20% Rental Rate Incentive • Payments covering up to 90% of the eligible costs of establishing the practice - 50% from a Cost-Share Payment and - 40% from a Practice Incentive Payment (PIP) • Sign-up Incentive Payment (SIP) up to $100/acre • Maintenance Rate Incentive • Mid-Contract Management Cost Share. Contact your local NRCS or Iowa State Extension agent for details.

Sheet Core Worksheet Data (hidden)
A1: Practice Code | B1: URL
A2: FERT2014 | B2: http://www.nrem.iastate.edu/bmpcosttools/about
A3: COVER2014 | B3: http://mccc.msu.edu/index.htm
A4: LIVING2014 | B4: http://www.nrem.iastate.edu
A5: ENERGY2014 | B5: https://www.extension.iastate.edu/agdm/crops/html/a1-22.html
A6: EXTEND2014 | B6: http://www.leopold.iastate.edu/faq-cropping-system-diversity-profitability
A7: GRAZED2014 | B7: http://www.nrem.iastate.edu
A8: DRAIN2014 | B8: http://www.sustainablecorn.org/In_Field_Management/drainage_water_management.html
A9: WETLAND2014 | B9: https://connect.extension.iastate.edu/p5uk06thjcb/?launcher=false&fcsContent=true&pbMode=normal
A10: BIOREACT2014 | B10: https://store.extension.iastate.edu/product/Woodchip-Bioreactors-for-Nitrate-in-Agricultural-Drainage
A11: BUFFER2014 | B11: file:///C:/Users/jtyndall/Downloads/PM1626A.pdf
A12: SATBUFF2014 | B12: https://store.extension.iastate.edu/product/Cleaning-Iowas-Waters-with-Saturated-Buffers-in-Iowa-Watersheds
A14: Default
A15: Yes
A16: No

Sheet Core Cost Data (hidden)
A2: Cover Crops | C2: Planting Cost | F2: Seed Cost | J2: Source: Tom Kaspar, 2014, Duffy, 2014)
B3: Variable Number | C3: Min | D3: Avg | E3: Max | F3: Min | G3: Avg | H3: Max | I3: pds/acre
A5: Aerial Seeding | B5: 1 | C5: 7.5 | D5: 11 | E5: 16 | F5: =0.2*I5 -> 24 | G5: =0.3*I5 -> 36 | H5: =0.4*I5 -> 48 | I5: 120
A6: Ground Broadcast Seeding | B6: 2 | C6: 6.5 | D6: 14.55 | E6: 20 | F6: =0.2*I6 -> 20 | G6: =0.3*I6 -> 30 | H6: =0.4*I6 -> 40 | I6: 100
A7: Seed Grass Drilling | B7: 3 | C7: 10 | D7: 16.35 | E7: 25 | F7: 16 | G7: 24 | H7: 32 | I7: 80
C8: Total Costs
C9: Min | D9: Avg | E9: Max
A10: Disking | B10: 1 | C10: 8 | D10: 16.75 | E10: 25.5 | F10: Base Cost (Spraying) | I10: Round-up Cost | J10: NASS, 2014
A11: Herbicide (glyphosate, 1 qt/acre) | B11: 2 | C11: 10 | D11: 18.43 | E11: =H11+I11 -> 19.55 | F11: 5 | G11: 7.4 | H11: 15 | I11: 4.55 | J11: Duffy, 2014
A13: Formulas Planting | C13: Formulas Seed Cost | E13: Formulas Termination | F13: Formulas Crop
A14: =VLOOKUP($A$42,'Core Cost Data'!$B$5:$C$7,2) ->  | B14: Min Dropdown | C14: =VLOOKUP($A$42,'Core Cost Data'!$B$5:$I$7,5) ->  | E14: =VLOOKUP($A$62,'Core Cost Data'!$B$10:$C$11,2) ->  | F14: =VLOOKUP($A$74,'Core Cost Data'!$B$18:$F$19,3) ->  | G14: Yield
A15: =VLOOKUP($A$42,'Core Cost Data'!$B$5:$E$7,3) ->  | B15: Avg Dropdown | C15: =VLOOKUP($A$42,'Core Cost Data'!$B$5:$I$7,6) ->  | E15: =VLOOKUP($A$62,'Core Cost Data'!$B$10:$E$11,3) ->  | F15: =VLOOKUP($A$74,'Core Cost Data'!$B$18:$H$19,5) ->  | G15: Reduction | H15: Default Acres | I15: 40
A16: =VLOOKUP($A$42,'Core Cost Data'!$B$5:$E$7,4) ->  | B16: Max Dropdown | C16: =VLOOKUP($A$42,'Core Cost Data'!$B$5:$I$7,7) ->  | E16: =VLOOKUP($A$62,'Core Cost Data'!$B$10:$E$11,4) ->  | F16: =VLOOKUP($A$74,'Core Cost Data'!$B$18:$H$19,7) ->  | G16: Value
C17: =VLOOKUP($A$42,'Core Cost Data'!$B$5:$I$7,8) ->  | H17: Value/bu
A18: Corn | B18: 1 | C18: Avg Yield | D18: 165 | E18: Reduction | F18: 0 | H18: 2.85 | J18: http://www.iowaagriculture.gov/agMarketing/dailyGrainPrices.asp
A19: Soybeans | B19: 2 | D19: 50 | F19: 0 | H19: 9.23 | J19: http://www.iowaagriculture.gov/agMarketing/dailyGrainPrices.asp
A21: BIOREACTORS | B21: Pipe Sizes | C21: Pipe (n) | D21: Pipe SIZE LOOKUP
A22: 1 | B22: 3 | C22: 0.015 | D22: 24 | E22: Field Crops | I22: Prinsco 2014
A23: 2 | B23: 4 | C23: 0.015 | D23: 18 | E23: Drainage coefficients:
A24: 3 | B24: 5 | C24: 0.015 | D24: 15
A25: 4 | B25: 6 | C25: 0.015 | D25: 12 | E25: Mineral | F25: 1 | G25: 0.375 | H25: 0.5
A26: 5 | B26: 8 | C26: 0.015 | D26: 10 | E26: Organic | F26: 2 | G26: 0.5 | H26: 0.75
A27: 6 | B27: 10 | C27: 0.017 | D27: 8 | E27: Don't Know | F27: 3 | G27: 0.375 | H27: 0.75
A28: 7 | B28: 12 | C28: 0.017 | D28: 6
A29: 8 | B29: 15 | C29: 0.02 | D29: 5 | E29: Depth of Tile | F29: 4 | G29: ft
A30: 9 | B30: 18 | C30: 0.02 | D30: 4
A31: 10 | B31: 24 | C31: 0.02 | D31: 3
B32: Dual-Wall | C32: 0.012
B33: hours | C33: rate
A34: Engineering | B34: 16 | C34: 40 | D34: Christianson 2011 | E34: Percent to divert | F34: 20 | H34: Depth | I34: 2 | J34: ft
A35: Technical Service Provider | B35: 16 | C35: 0 | D35: Christianson 2011 | E35: Time to Retain Water | F35: 4 | G35: hours | H35: Control Units | I35: 2 | J35: units
A37: Construction | B37: Min | C37: Avg | D37: Max
A38: Control Structures | B38: 500 | D38: 2000 | E38: Christianson 2011 | H38: Default acres | I38: 25
A39: Woodchips (delivered) (per cf, min 1080cf) | B39: 0.19 | C39: 0.83 | D39: 1.85 | E39: Christianson 2011, Craigslist 2014, Purdue 2014, Owatonna 2011 | H39: Default slope | I39: 0.5
A41: Contractor installation backhoe | B41: 50 | C41: 91.25 | D41: 125 | E41: Duffy 2014
A42: @ | B42: 16 | C42: hours
A43: Seeding tractor broadcast | B43: 8 | C43: 12.3 | D43: 15 | E43: Duffy 2014
A44: Seed Costs per acre | B44: 54 | D44: 128 | E44: habitatnow.com, CRP min, CRP diverse
A45: Connection Pipe 1000ft 6" | B45: 890 | D45: 890 | E45: Christianson 2011
A48: Maintenance
A50: Yearly
A51: Control Structure ($/hr) | B51: 10 | C51: 14.2 | D51: 20 | E51: Duffy 2014
A52: @ | B52: 3 | C52: hours
A55: 8 Years
B56: 14.17 | D56: 15.32 | E56: x | F56: Gates | G56: 5
A57: Replace gates (5 gates @ 14.17-15.32)*two structures | B57: =5*(14.17)*2 -> 141.7 | D57: =5*(15.32)*2 -> 153.2 | E57: Christianson 2011
A59: Shallow Drainage
A61: Select a size | B61: 1 | C61: r
A62: 3 in. | B62: 2 | C62: 0.0115
A63: 4 in. | B63: 3 | C63: 0.0167
A64: 5 in. | B64: 4 | C64: 0.0338
A65: 6 in. | B65: 5 | C65: 0.0482
A66: 8 in. | B66: 6 | C66: 0.08
A67: 10 in. | B67: 7 | C67: 0.111
A68: >10 in. | B68: 8 | C68: 0.142
A70: Select a method: | B70: 1 | C70: Min | D70: Avg | E70: Max
A71: Tile Plow | B71: 2 | C71: 0.4 | D71: 0.76 | E71: 1 | F71: AgDM
A72: Tile Machine (Trencher) | B72: 3 | C72: 0.55 | D72: 1.15 | E72: 2 | F72: AgDM
A73: Tile Cost | C73: 0.3 | D73: 0.5 | E73: 0.7 | F73: Online stores
A75: Default values
A76: Acres | B76: 40 | D76: DrainageCoeff | E76: 0.5 | G76: Current Depth | H76: 4
A77: KSAT | B77: 1 | D77: MinDepth | E77: 1 | G77: Shallow | H77: 3
A78: SoilRestrictive | B78: 10
A84: LAND USE WORKSHEETS
A85: Iowa State Custom Farm Rate Survey Common Values (Plastina and Johanns 2016)
B86: Min | C86: Average | D86: Max | F86: Crop Prices (variable throughout year)
A87: Disking (Tandem) | B87: 7.5 | C87: 14.65 | D87: 20 | F87: Corn Price | H87: 2.85 | I87: per bushel | J87: http://www.iowaagriculture.gov/agMarketing/dailyGrainPrices.asp
A88: Harrowing | B88: 4 | C88: 9.35 | D88: 13 | F88: Soybean Price | H88: 9.23 | I88: per bushel | J88: http://www.iowaagriculture.gov/agMarketing/dailyGrainPrices.asp
A89: Fertilizer Spreading | B89: 3 | C89: 6.25 | D89: 10 | F89: Switchgrass Price | H89: 20 | I89: 45 | J89: 50
A90: Injection | B90: 7 | C90: 11.7 | D90: 18
A91: Labor Harvest | B91: 10 | C91: 16.4 | D91: 25 | F91: Alfalfa Price | H91: 140 | I91: per ton
A92: Labor Other | B92: 10 | C92: 14.2 | D92: 20 | F92: Pasture Grass Price | H92: 112.5 | I92: per ton
A93: Mowing hay | B93: 9 | C93: 12.05 | D93: 16
A94: Mowing CRP/Pasture | B94: 10 | C94: 18.35 | D94: 30 | F94: Rental Rate | H94: 230
A95: Raking | B95: 4 | C95: 6.5 | D95: 10 | F95: (Statewide Ave. for 2016)
A96: Baling Large Square | B96: 8 | C96: 10.75 | D96: 12 | F96: Discount rate | H96: 0.04
A97: Hauling | B97: 0.01 | C97: 0.09 | D97: 0.16
A98: Seed Broadcast | B98: 8 | C98: 12.3 | D98: 15
A99: Seed with Fertilizer | B99: 13 | C99: 19.9 | D99: 30
A100: Seed Drilling | B100: 10 | C100: 15.9 | D100: 25
A101: Moldboard Plow | B101: 13 | C101: 18.5 | D101: 25
A102: BackHoe | B102: 50 | C102: 91.25 | D102: 125
A103: Fertlizer Costs
A104: Nitrogen | B104: 0.43 | C104: 0.5 | D104: 0.59
A105: Phospate | B105: 0.45 | C105: 0.48 | D105: 0.51
A106: Potash | B106: 0.39 | C106: 0.41 | D106: 0.43
A107: Lime (includes spreading) | B107: 13.5 | C107: 16.75 | D107: 20.5
A109: Misc
A110: Clipping Weeds | B110: 8.45 | C110: 10.7 | D110: 12.95
A113: Extended Rotations
A115: Rotation information | C115: Year 1 Crop | D115: Year 1 Cost | E115: Year 1 Yield | F115: Year 2 Crop | G115: Year 2 Cost | H115: Year 2 Yield
A116: 1 | B116: Select a rotation type:
A117: 2 | B117: Corn, Corn | C117: Corn | D117: 886.94 | E117: 185 | F117: Corn | G117: 886.94 | H117: 185
A118: 3 | B118: Corn, Soybeans | C118: Corn | D118: 886.94 | E118: 185 | F118: Soybeans | G118: 594.82 | H118: 55
A119: 4 | B119: Soybeans, Corn | C119: Soybeans | D119: 594.82 | E119: 55 | F119: Corn | G119: 834.92 | H119: 200
A120: 5 | B120: Soybeans, Soybeans | C120: Soybeans | D120: 594.82 | E120: 55 | F120: Soybeans | G120: 594.82 | H120: 55
A122: 1 | B122: Select a crop:
A123: 2 | B123: Corn | C123: Corn | D123: 886.94 | E123: 200
A124: 3 | B124: Soybeans | C124: Soybeans | D124: 594.82 | E124: 55
C126: Year 1 Crop | D126: Year 1 Cost | E126: Year 1 Yield | F126: Year 2 Crop | G126: Year 2 Cost | H126: Year 2 Yield | I126: Year 3 Crop | J126: Year 3 Cost | K126: Year 3 Yield
A127: 1 | B127: Select a rotation type:
A128: 2 | B128: Corn, Corn, Corn | C128: Corn | D128: 886.94 | E128: 185 | F128: Corn | G128: 886.94 | H128: 185 | I128: Corn | J128: 886.94 | K128: 185
A129: 3 | B129: Corn, Soybeans, Corn | C129: Corn | D129: 886.94 | E129: 185 | F129: Soybeans | G129: 594.82 | H129: 55 | I129: Corn | J129: 834.92 | K129: 200
A130: 4 | B130: Corn, Corn, Soybeans | C130: Corn | D130: 886.94 | E130: 185 | F130: Corn | G130: 886.94 | H130: 185 | I130: Soybeans | J130: 594.82 | K130: 55
A131: 5 | B131: Corn, Soybeans, Soybeans | C131: Corn | D131: 886.94 | E131: 185 | F131: Soybeans | G131: 594.82 | H131: 55 | I131: Soybeans | J131: 594.82 | K131: 55
A132: 6 | B132: Soybeans, Corn, Corn | C132: Soybeans | D132: 594.82 | E132: 55 | F132: Corn | G132: 834.92 | H132: 200 | I132: Corn | J132: 886.94 | K132: 185
A133: 7 | B133: Soybeans, Corn, Soybeans | C133: Soybeans | D133: 594.82 | E133: 55 | F133: Soybeans | G133: 594.82 | H133: 55 | I133: Soybeans | J133: 594.82 | K133: 55
A134: 8 | B134: Soybeans, Soybeans, Corn | C134: Soybeans | D134: 594.82 | E134: 55 | F134: Soybeans | G134: 594.82 | H134: 55 | I134: Corn | J134: 834.92 | K134: 200
A135: 9 | B135: Soybeans, Soybeans, Soybeans | C135: Soybeans | D135: 594.82 | E135: 55 | F135: Soybeans | G135: 594.82 | H135: 55 | I135: Soybeans | J135: 594.82 | K135: 55
A138: Prices: | C138: disking times | D138: 2 | F138: Default acres | G138: 25
E139: min | F139: Average | G139: max | I139: Min | J139: Average | K139: Max
A140: Herbicide (varies) | B140: 13.1 | C140: chemicals | D140: Spraying | E140: 5 | F140: 7.5 | G140: 15 | H140: Total Cost | I140: =E140+B140 -> 18.1 | J140: =F140+B140 -> 20.6 | K140: =G140+B140 -> 28.1
A142: Alfalfa Seeds | B142: 5.25 | C142: pound | D142: 15 | E142: lbs/acre
A143: Year 1 Yield | B143: 2.5 | C143: tons | D143: 2 | E143: cuttings
A144: Year 2 Yield | B144: 4 | C144: tons | D144: 3 | E144: cuttings
A145: Crop Yield Effect | B145: 0.07
A147: Labor Planting | B147: 1 | C147: 0
A148: Labor Harvest (year 1) | B148: 1.5 | C148: per cutting
A149: Labor Harvest (year 2) | B149: 1.33 | C149: per cutting
A151: Phosporus (year 1 ,2) | B151: 35 | C151: lbs/acre | D151: 13 | E151: lbs/acre
A152: Potash (year 1,2) | B152: 125 | C152: lbs/acre | D152: 50 | E152: lbs/acre
A153: Lime | B153: 1 | C153: ton/acre
A155: ENERGY CROPS
A158: Prices: | B158: Percent Reseeding Chance: | C158: 0.25 | F158: Default acres | G158: 10
E159: min | F159: Average | G159: max | I159: Min | J159: Average | K159: Max
A160: Herbicide (varies) | B160: 13.12 | C160: chemicals | D160: Spraying | E160: 5 | F160: 7.5 | G160: 15 | H160: Total Cost | I160: =$B$160+E160 -> 18.12 | J160: =$B$160+F160 -> 20.62 | K160: 28.12
A162: Switchgrass seeds | B162: 15 | C162: pound | D162: 5 | E162: lbs/acre
A163: Year 1 & 2+ Yield | B163: 0 | C163: tons | D163: 4 | E163: tons
A165: Phosporus (year 1 & 2+) | B165: 30 | C165: lbs/acre | D165: 1.94 | E165: lbs/acre
A166: Potash | B166: 40 | C166: lbs/acre | D166: 22.8 | E166: lbs/acre
A167: Lime | B167: 3 | C167: tons | D167: 0 | E167: tons
A168: Nitrogen | B168: 0 | C168: lbs/acre | D168: 100 | E168: lbs/acre
A171: PASTURE
A174: Prices: | C174: default acres | D174: 25
A175: Times to disk | B175: 2 | E175: min | F175: Average | G175: max | I175: Min | J175: Average | K175: Max
A177: Establishment
A178: 1 | B178: Select a seed mix: | C178: Seed Cost | D178: Seed Amount | E178: Nitrogen | F178: Phosphate | G178: Potash | H178: Lime
A179: 2 | B179: Oats, Bromegrass, Orchardgrass | C179: =(8.5*1.5*1*10*1.85*3)/14.5 -> 48.80172414 | D179: =1.5+10+3 -> 14.5 | E179: 30 | F179: 50 | G179: 100 | H179: 2
A180: 3 | B180: Oats, Birdsfoot Trefoil, Orchardgrass | C180: =(8.5*1.5*7.1*6+1.85*3)/(1.5+6+3) -> 52.25714286 | D180: =1.5+6+3 -> 10.5 | E180: 0 | F180: 50 | G180: 100 | H180: 2
A182: Labor | B182: =1.85 -> 1.85 | C182: hours | D182: per acre
A184: Maintenance
A186: 1 | B186: Select a seed mix: | C186: Yield | E186: Nitrogen | F186: Phosphate | G186: Potash | H186: Lime
A187: 2 | B187: Oats, Bromegrass, Orchardgrass | C187: 3 | D187: tons | E187: 80 | F187: 30 | G187: 0 | H187: 0
A188: 3 | B188: Oats, Birdsfoot Trefoil, Orchardgrass | C188: 3 | D188: tons | E188: 0 | F188: 30 | G188: 40 | H188: 0
A190: Labor | B190: =1.5 -> 1.5 | C190: hours | D190: per acre
A192: Market value | B192: 115
E193: min | F193: Average | G193: max | I193: Min | J193: Average | K193: Max
A194: Herbicide (varies) | B194: 5.5 | C194: chemicals | D194: Spraying | E194: 5 | F194: 6.9 | G194: 10 | H194: Total Cost | I194: =$B$194+E194 -> 10.5 | J194: =$B$194+F194 -> 12.4 | K194: 15.5
A197: CONTROLLED DRAINAGE
B198: Min | C198: Average | D198: Max
A199: Structure Costs | B199: 500 | C199: 1250 | D199: 2000 | F199: Default acres | G199: 25
A200: Design cost | B200: 0 | C200: 32.63 | D200: 32.63
A201: Contractor | B201: 40 | C201: 93.35 | D201: 150 | E201: for | F201: 4 | G201: hours | H201: per structure
A202: Adjust time | B202: 1.5 | C202: hours at crs labor per structure
A204: Gate replacement | B204: 14.17 | C204: 14.75 | D204: 15.32 | E204: for | F204: 5 | G204: gates per | H204: structure
A208: WETLANDS
E209: Wetland buffer size % | F209: 0.04 | G209: Wetland size | H209: 0.01 | J209: Default acres | K209: 1000
A210: 1 | B210: Select a CRP wetland buffer seed mix: | C210: Price per acre | E210: Design | F210: 10 | G210: hours/acre of wetland | H210: 100 | I210: per hour
A211: 2 | B211: IA CP23 Flood Prone Mix - Statewide Wet Mesic 30/10 | C211: 131 | E211: Contractor | F211: 15 | G211: hours | H211: at CRS
A212: 3 | B212: IA CP25 Economy Mix - Statewide wet Mesic 30/10 | C212: 160 | E212: Control Structure | F212: Min | G212: Average | H212: Max
A213: 4 | B213: IA CP25 Mix - Statewide Wet Mesic 30/10 | C213: 175 | F213: 1320 | G213: 2127.5 | H213: 2935 | I213: for | J213: 1 | K213: unit
A214: Times to disk | B214: 2 | E214: Weir Plate | F214: 20 | G214: sq. ft | H214: for | I214: 200 | J214: sq. ft.
A215: Phosporus | B215: 30 | C215: lbs/acre
A216: Potash | B216: 40 | C216: lbs/acre | E216: Adjust Control Structure | F216: 3 | G216: hrs | H216: at CRS | I216: Min | J216: Average | K216: Max
A217: Lime | B217: 3 | C217: tons | E217: Replace gates | F217: 5 | G217: gates | H217: at | I217: 14.17 | J217: 14.75 | K217: 15.32
A218: Labor year 1 | B218: 0 | E218: Replacement labor year 40 | F218: 16 | G218: hours
A219: Mow % yearly | B219: 0.1 | E219: min | F219: Average | G219: max | I219: Min | J219: Average | K219: Max
A220: Herbicide (varies) | B220: 8 | C220: chemicals | D220: Spraying | E220: 5 | F220: 7.5 | G220: 15 | H220: Total Cost | I220: =$B$160+E220 -> 18.12 | J220: =$B$160+F220 -> 20.62 | K220: =$B$160+G220 -> 28.12
A221: Basin: | B221: 0.75 | C221: per plug for | D221: 200 | E221: plugs per acre | F221: Wetland seeds | G221: 200 | H221: per acre
A223: LIVING MULCHES
A225: Seed Costs | D225: Corn Crop | E225: 185 | F225: bushels | G225: expected
A226: Kura Clover | B226: 8.75 | C226: /lb @ | D226: 7.5 | E226: lbs/acre
A228: Herbicide | B228: glyphosate | E228: min | F228: Average | G228: max
A229: 0.33 | B229: qts | C229: 5.5 | D229: /qt | E229: 6.815 | F229: 8.715 | G229: 11.815
A231: Yield Reduction | B231: 0.09 | E231: Times to mow | F231: 2
A232: N Credits (Iowa) | B232: 0 | E232: Times to spray | F232: 2
A236: BUFFERS
A238: 1 | B238: Select a CP21 compliant seed mix: | E238: Design Rate
A239: 2 | B239: Minimum Mix | C239: 54 | F239: hours | G239: Rate ($/hour) | J239: Default length | K239: 1000
A240: 3 | B240: Warm/Cool Combo | C240: 54 | E240: Engineering | F240: 16 | G240: 50 | H240: Max | J240: Default width | K240: 100
A241: 4 | B241: Heavy Soil Mix | C241: 96.5 | E241: Technical Service Provider | F241: 16 | G241: 0 | H241: Average,Min | J241: default acres | K241: 20
A242: 5 | B242: Wet Edge Mix | C242: 36 | F242: 8 | G242: hrs per acres
F243: 0 | G243: labor hours prep
A245: Fertilizer:
A246: Phosporus | B246: 30 | C246: lbs/acre | E246: Adjust Control Structure | F246: 3 | G246: hrs | H246: at CRS | I246: Min | J246: Average | K246: Max
A247: Potash | B247: 40 | C247: lbs/acre | E247: Replace gates | F247: 5 | G247: gates | H247: at | I247: 14.17 | J247: 14.75 | K247: 15.32
A248: Lime | B248: 3 | C248: tons
A250: Mow | B250: 2 | C250: times | E250: Connection Pipe 1000ft 6" | F250: 890 | H250: 890
E251: Structure Costs | F251: 500 | G251: 1250 | H251: 2000
E252: Contractor | F252: 40 | G252: 93.35 | H252: 150 | I252: for | J252: 8 | K252: hours
E253: min | F253: Average | G253: max | I253: Min | J253: Average | K253: Max
A254: Herbicide (varies) | B254: 8 | C254: chemicals | D254: Spraying | E254: 5 | F254: 7.5 | G254: 15 | H254: Total Cost | I254: =$B$160+E254 -> 18.12 | J254: =$B$160+F254 -> 20.62 | K254: =$B$160+G254 -> 28.12
A256: FERTILIZER MANAGEMENT
A257: Select a source:
A258: Anhydrous Ammonia (82%) | B258: 0.82 | G258: Select a rotation:
A259: UAN (32%) | B259: 0.32 | D259: Expected yield | E259: 165 | G259: Corn following soybeans
A260: UAN (28%) | B260: 0.28 | D260: Current rate | E260: 200 | G260: Corn following corn
A261: UREA (45%) | B261: 0.45
A262: Ammonium Sulfate (21%) | B262: 0.21
A264: Formulae:
... 9 more rows

Sheet Cover Crops
B8: Cover Crops (Cereal Rye)
B10: Cover crops, which are planted in the late summer or early fall before or just after harvest, can reduce
B11: soil erosion, limit the loss of nitrogen, control weeds, and increase soil quality. In Iowa, these crops
B12: generally consist of winter hardy species, such as cereal rye or wheat. Hairy vetch and oats can be also be used.
B13: In addition to reducing nutrient loss, these crops can provide grazing or forage material for livestock or wildlife.
B15: Generally speaking, there are three phases involved in using cover crops: Establishment, Growth, and Termination.
B16: The timing of these phases is critical for the success of the practice.
B18: This worksheet covers the general costs, benefits, and timing of using cover crops in a production environment.
B19: Default prices in this worksheet assume seeding and harvest prices at surveyed custom farm rates.
B21: Let's get started.
B24: General Information: | I24: Final Costs (per acre):
B25: Would you like to autofill the worksheet with | K25: Min | L25: Avg | M25: Max
B26: default prices? | I26: Out of Pocket: | K26: =$I$42+$D$45+$J$62 -> 41.5 | L26: =$J$42+$E$45+$K$62 -> 65.43 | M26: =$K$42+$F$45+$L$62 -> 83.55
B28: Is cost-sharing available? | I28: Yield loss: | K28: =$H$77 -> 0
I30: Total cost (all acres): | K30: =($K$26+$K$28)*$T$40 -> 1660 | L30: =($L$26+$K$28)*$T$40 -> 2617.2 | M30: =($M$26+$K$28)*$T$40 -> 3342
B32: Phase 1: Establishment
B34: Timing at this stage is important for the success of the cover crop. Winter hardy species (cereal rye) should be planted by October 15. Non-hardy species (that die on first frost)
B35: should be planted by September 15th. Seeds can be planted by drilling, broadcast by tractor (high-clearance sprayer), or seeded aerially by plane or helicopter.
B37: Press the button labeled ? by each cost to see additional information.
B40: Select a planting method from the drop down below: | Q40: Total acres to be covered: | T40: 40 | U40: acres
I41: Min | J41: Avg | K41: Max
B42: 1 | I42: =VLOOKUP($B$42,'Core Cost Data'!$B$5:$C$7,2) -> 7.5 | J42: =VLOOKUP($B$42,'Core Cost Data'!$B$5:$E$7,3) -> 11 | K42: =VLOOKUP($B$42,'Core Cost Data'!$B$5:$E$7,4) -> 16 | L42: /acre
D44: Min | E44: Avg | F44: Max
B45: Seed Costs: | D45: =VLOOKUP($B$42,'Core Cost Data'!$B$5:$I$7,5) -> 24 | E45: =VLOOKUP($B$42,'Core Cost Data'!$B$5:$I$7,6) -> 36 | F45: =VLOOKUP($B$42,'Core Cost Data'!$B$5:$I$7,7) -> 48 | G45: / acre | H45: at | I45: =VLOOKUP($B$42,'Core Cost Data'!$B$5:$I$7,8) -> 120 | J45: pounds | K45: /acre
B49: Phase 2: Growing
B51: There are no direct costs during this phase. However, planning for the start of the termination phase of the cover crop is important. If growing corn, planning should include
B52: termination of the crop before it reaches reach 6 inches high or at least two weeks before planting to reduce the effect on corn yield.
B54: Phase 3: Termination
B56: There are two common options for cover crop termination before spring planting included in this worksheet: disking or herbicide. Some cover crops (including cereal rye)
B57: can be harvested for forage; however, harvesting can affect the timing of corn and soybean planting.
B60: Select a termination method from the drop-down box below:
J61: Min | K61: Avg | L61: Max
B62: 2 | J62: =VLOOKUP($B$62,'Core Cost Data'!$B$10:$C$11,2) -> 10 | K62: =VLOOKUP($B$62,'Core Cost Data'!$B$10:$E$11,3) -> 18.43 | L62: =VLOOKUP($B$62,'Core Cost Data'!$B$10:$E$11,4) -> 19.55 | M62: /acre
B66: Additional Costs:
B68: Corn grown after cover crops such as cereal rye can experience a reduction in yield. Soybean yields have not been shown to be effected by preceding cover crops.
B71: Select a crop to be planted after cover crop termination from the drop-down box below:
B73: 1 | E73: Average yield per acre | H73: =VLOOKUP($B$73,'Core Cost Data'!$B$18:$F$19,3) -> 165 | I73: bu/acre | K73: Reduction in yield | N73: =VLOOKUP($B$73,'Core Cost Data'!$B$18:$H$19,5) -> 0
E74: Reduced yield per acre | H74: =$H$73*$N$73 -> 0 | I74: bu/acre
E76: Price per bushel | H76: =VLOOKUP($B$73,'Core Cost Data'!$B$18:$H$19,7) -> 2.85 | I76: dollars
E77: Cost of reduction | H77: =$H$76*$H$74 -> 0 | I77: /acre
B81: You are finished. The final calculated costs are shown in the box near the top of the page.
K90: =$I$42+$D$45+$J$62 -> 41.5 | L90: =$J$42+$E$45+$K$62 -> 65.43 | M90: =$K$42+$F$45+$L$62 -> 83.55
K92: =$H$77 -> 0
K94: =($K$26+$K$28)*$T$40 -> 1660 | L94: =($L$26+$K$28)*$T$40 -> 2617.2 | M94: =($M$26+$K$28)*$T$40 -> 3342
T104: ='Core Cost Data'!I15 -> 40
B106: 3 | I106: =VLOOKUP($B$42,'Core Cost Data'!$B$5:$C$7,2) -> 7.5 | J106: =VLOOKUP($B$42,'Core Cost Data'!$B$5:$E$7,3) -> 11 | K106: =VLOOKUP($B$42,'Core Cost Data'!$B$5:$E$7,4) -> 16
D109: =VLOOKUP($B$42,'Core Cost Data'!$B$5:$I$7,5) -> 24 | E109: =VLOOKUP($B$42,'Core Cost Data'!$B$5:$I$7,6) -> 36 | F109: =VLOOKUP($B$42,'Core Cost Data'!$B$5:$I$7,7) -> 48 | I109: =VLOOKUP($B$42,'Core Cost Data'!$B$5:$I$7,8) -> 120
B126: 2 | J126: =VLOOKUP($B$62,'Core Cost Data'!$B$10:$C$11,2) -> 10 | K126: =VLOOKUP($B$62,'Core Cost Data'!$B$10:$E$11,3) -> 18.43 | L126: =VLOOKUP($B$62,'Core Cost Data'!$B$10:$E$11,4) -> 19.55
B137: 1 | H137: =VLOOKUP($B$73,'Core Cost Data'!$B$18:$F$19,3) -> 165 | N137: =VLOOKUP($B$73,'Core Cost Data'!$B$18:$H$19,5) -> 0
H138: =$H$73*$N$73 -> 0
H140: =VLOOKUP($B$73,'Core Cost Data'!$B$18:$H$19,7) -> 2.85
H141: =$H$76*$H$74 -> 0

Sheet Living Mulch (hidden)
B8: Living Mulches (Kura Clover)
B10: Living mulch is a permanent land cover (in Iowa, mainly Kura clover) that is grown within a row crop field.
B11: The living mulch reduces the amount of soil loss and enhances a soil's physical structure. In addition, Kura clover is a
B12: nitrogen-fixer that uses fungi located in root nodules to add nitrogen to the soil.
B14: However, living mulches can be very difficult to establish and have very specific management requirements (which can
B15: include a year of establishment before a row crop can be planted).
B17: While Kura clover can provide additional nitrogen to the soil and suppress weed growth, it competes directly with corn for resources,
B18: including water and other nutrients. This can lead to crop yield reductions.
B20: This worksheet estimates the cost of seeding and maintaining Kura clover as well as the cost of the potential yield losses.
B22: Let's get started.
B26: General Information: | G26: Final Costs (per acre):
B27: Would you like to autofill the worksheet with | I27: Min | J27: Avg | K27: Max
B28: default prices? | G28: Out of Pocket (Year 1): | I28: =$D$52 -> 75.625 | J28: =$E$52 -> 81.525 | K28: =$F$52 -> 90.625
B30: Is cost-sharing available? | G30: Yearly Maintainence: | I30: =$E$74 -> 33.63 | J30: =$F$74 -> 54.13 | K30: =$G$74 -> 83.63
G32: Cost in Estimated Field Effects: | J32: =$F$92 -> 42.3225
B37: Step 1: Establishment
B39: Kura clover is a permanent ground cover that spreads through rhizomes and is winter, flood and drought hardy.
B40: Seedlings may be difficult to establish, however, due to low vigor and they must be inoculated with Rhizobia prior to planting in Iowa.
B44: Living mulches establishment (Year 1):
H45: Land rent:
B46: Planting costs (Kura Clover):
D47: Min | E47: Average | F47: Max
B48: Seed drilling: | D48: ='Core Cost Data'!$B$100 -> 10 | E48: ='Core Cost Data'!$C$100 -> 15.9 | F48: ='Core Cost Data'!$D$100 -> 25 | G48: /acre
B50: Seed costs: | D50: + | E50: ='Core Cost Data'!$B$226 -> 8.75 | G50: @ | H50: ='Core Cost Data'!$D$226 -> 7.5 | I50: lbs/acre
B52: Total cost (with rent): | D52: =$D$48+$E$50*$H$50+$I$45 -> 75.625 | E52: =$E$48+$E$50*$H$50+$I$45 -> 81.525 | F52: =$F$48+$E$50*$H$50+$I$45 -> 90.625 | G52: /acre
B56: Step 2: Maintenance
B58: Kura clover must be suppressed before planting corn through mowing and herbicides to allow for crop seed establishment.
B59: Generally, the field is mowed and the living mulch system is band-killed for planting with no-till equipment.
B64: Yearly maintenance (Years 2 -20):
B66: Herbicide costs:
E67: Min | F67: Average | G67: Max
B68: Herbicide spraying cost: | E68: ='Core Cost Data'!$E$229 -> 6.815 | F68: ='Core Cost Data'!$F$229 -> 8.715 | G68: ='Core Cost Data'!$G$229 -> 11.815 | H68: /acre x | I68: ='Core Cost Data'!$F$232 -> 2 | J68: times
B70: Mowing costs:
E71: Min | F71: Average | G71: Max
B72: Mowing | D72: + | E72: ='Core Cost Data'!$B$94 -> 10 | F72: ='Core Cost Data'!$C$94 -> 18.35 | G72: ='Core Cost Data'!$D$94 -> 30 | H72: /acre x | I72: ='Core Cost Data'!$F$231 -> 2 | J72: times
B74: Total maintenance cost (with rent): | E74: =$E$68*$I$68+$E$72*$I$72+$I$45 -> 33.63 | F74: =$F$68*$I$68+$F$72*$I$72+$I$45 -> 54.13 | G74: =$G$68*$I$68+$G$72*$I$72+$I$45 -> 83.63 | H74: /acre
B77: Step 3: Living Mulches Field Effects (Effect on Corn Yield and Nitrogen Credits)
B79: Previous studies in Iowa have shown a significant reduction in crop yields when using a living mulch with an average of 9% loss.
B80: Conversely, one advantage to using Kura clover is that suppression before planting can allow for mineralization of plant structures
B81: increasing the amount of nitrogen available for corn.
B86: Expected crop yield: | D86: ='Core Cost Data'!$D$18 -> 165 | E86: bushels/acre | F86: Crop price: | H86: ='Core Cost Data'!$H$87 -> 2.85 | I86: /bushel
B88: Estimated yield reduction from living mulches: | F88: ='Core Cost Data'!$B$231 -> 0.09
B90: Estimated nitrogen credit from N fixation: | F90: ='Core Cost Data'!$B$232 -> 0 | G90: lbs @ | H90: ='Core Cost Data'!$B$261 -> 0.45 | I90: /lb
B92: Total field effect cost of living mulches: | F92: =($D$86*$F$88)*$H$86-$F$90*$H$90 -> 42.3225 | G92: /acre
B96: This is the end of the living mulches worksheet. The total costs and nitrogen reduction information is summarized in the boxes at the top of this page.
I103: =$D$52 -> 75.625 | J103: =$E$52 -> 81.525 | K103: =$F$52 -> 90.625
I105: =$E$74 -> 33.63 | J105: =$F$74 -> 54.13 | K105: =$G$74 -> 83.63
J107: =$F$92 -> 42.3225
H120: Land rent: | I120: ='Core Cost Data'!$H$94 -> 230
D122: Min | E122: Average | F122: Max
D123: ='Core Cost Data'!$B$100 -> 10 | E123: ='Core Cost Data'!$C$100 -> 15.9 | F123: ='Core Cost Data'!$D$100 -> 25 | G123: /acre
D125: + | E125: ='Core Cost Data'!$B$226 -> 8.75 | G125: @ | H125: ='Core Cost Data'!$D$226 -> 7.5 | I125: lbs/acre
D127: =$D$48+$E$50*$H$50+$I$45 -> 75.625 | E127: =$E$48+$E$50*$H$50+$I$45 -> 81.525 | F127: =$F$48+$E$50*$H$50+$I$45 -> 90.625 | G127: /acre
E142: Min | F142: Average | G142: Max
E143: ='Core Cost Data'!$E$229 -> 6.815 | F143: ='Core Cost Data'!$F$229 -> 8.715 | G143: ='Core Cost Data'!$G$229 -> 11.815 | H143: /acre x | I143: ='Core Cost Data'!$F$232 -> 2 | J143: times
E146: Min | F146: Average | G146: Max
E147: ='Core Cost Data'!$B$94 -> 10 | F147: ='Core Cost Data'!$C$94 -> 18.35 | G147: ='Core Cost Data'!$D$94 -> 30 | H147: /acre x | I147: ='Core Cost Data'!$F$231 -> 2 | J147: times
E149: =$E$68*$I$68+$E$72*$I$72+$I$45 -> 33.63 | F149: =$F$68*$I$68+$F$72*$I$72+$I$45 -> 54.13 | G149: =$G$68*$I$68+$G$72*$I$72+$I$45 -> 83.63 | H149: /acre
D161: ='Core Cost Data'!$D$18 -> 165 | E161: bushels/acre | F161: Crop price: | H161: ='Core Cost Data'!$H$87 -> 2.85 | I161: /bushel
F163: ='Core Cost Data'!$B$231 -> 0.09
F165: ='Core Cost Data'!$B$232 -> 0 | G165: lbs @ | H165: ='Core Cost Data'!$B$261 -> 0.45 | I165: /lb
F167: =($D$86*$F$88)*$H$86-$F$90*$H$90 -> 42.3225 | G167: /acre

Sheet Energy Crops (hidden)
B8: Energy Crops (Switchgrass)
B10: Energy crops are a perennial crop grown with the intent of using the biomass harvested as a feedstock for biofuel production. In Iowa, Switchgrass is the most commonly grown energy crop with
B11: Miscanthus becoming an emerging option.
B13: The potential for energy crops, at the current time, is largely limited by localized markets and the distance required to transport the biomass to an appropriate refinery. As more biofuel infrastructure is created,
B14: energy crops with become viable in more areas.
B16: Energy crops can also provide additional non-market benefits such as wildlife habitat, reduced soil erosion and enhanced soil organic carbon.
B18: This worksheet calculates the cost of establishing, harvesting and maintaining a switchgrass operation over an 11-year lifespan.
B20: Let's get started.
B24: General Information: | G24: Final Costs:
B25: Would you like to autofill the worksheet with | I25: Min | J25: Avg | K25: Max
B26: default prices? | G26: Energy crop costs (Year One): | I26: =$C$170*$D$42 -> 6767.4555 | J26: =$D$170*$D$42 -> 7209.733 | K26: =$E$170*$D$42 -> 7757.2155
B28: Is cost-sharing available? | G28: Energy crop revenue (Year One): | I28: =$F$170*$D$42 -> 0 | J28: =$G$170*$D$42 -> 0 | K28: =$H$170*$D$42 -> 0
G30: Annualized profit over 11 years: | I30: =$I$182*$D$42 -> -5791.397724 | J30: =$J$182*$D$42 -> -5396.680435 | K30: =$K$182*$D$42 -> -5762.059771
B35: Step 1: Establishment and Crop Growth
B37: Switchgrass establishment is typically through frostseeding using an airflow planter and spread fertilizer (including lime application). Disking and harrowing will be necessary for seedbed prepartion.
B38: On average, there is a 25% chance of needing to reseed if stand establishment is poor. In addition, the stand will need to be mowed the first year, though there will be little to no marketable yield.
B42: Acres to be planted: | D42: ='Core Cost Data'!$G$158 -> 10 | E42: acres | H42: Land rent: | I42: ='Core Cost Data'!$H$94 -> 230 | J42: /acre
B46: Year 1: Switchgrass establishment (frost-seeding)
F47: Min | G47: Average | H47: Max
B48: Site preparation costs: | D48: Disking (tandem) | F48: ='Core Cost Data'!$B$87 -> 7.5 | G48: ='Core Cost Data'!$C$87 -> 14.65 | H48: ='Core Cost Data'!$D$87 -> 20 | I48: /acre
D50: Herbicide (varies) | E50: + | F50: ='Core Cost Data'!$I$160 -> 18.12 | G50: ='Core Cost Data'!$J$160 -> 20.62 | H50: ='Core Cost Data'!$K$160 -> 28.12 | I50: /acre
D52: Harrowing | E52: + | F52: ='Core Cost Data'!$B$88 -> 4 | G52: ='Core Cost Data'!$C$88 -> 9.35 | H52: ='Core Cost Data'!$D$88 -> 13 | I52: /acre
B54: Planting costs:
D55: Seeding (with fertilizer) | E55: + | F55: ='Core Cost Data'!$B$99 -> 13 | G55: ='Core Cost Data'!$C$99 -> 19.9 | H55: ='Core Cost Data'!$D$99 -> 30 | I55: /acre
D57: Seed costs | F57: + | G57: ='Core Cost Data'!$B$162 -> 15 | H57: /lb | I57: @ | J57: ='Core Cost Data'!$D$162 -> 5 | K57: lbs/acre
B60: Fertlizer costs:
D61: Lime (per ton) | E61: + | F61: ='Core Cost Data'!$B$107 -> 13.5 | G61: ='Core Cost Data'!$C$107 -> 16.75 | H61: ='Core Cost Data'!$D$107 -> 20.5 | I61: @ | J61: ='Core Cost Data'!$B$167 -> 3 | K61: tons/acre
D63: Phosphorus | E63: + | F63: ='Core Cost Data'!$B$105 -> 0.45 | G63: ='Core Cost Data'!$C$105 -> 0.48 | H63: ='Core Cost Data'!$D$105 -> 0.51 | I63: @ | J63: ='Core Cost Data'!$B$165 -> 30 | K63: lbs/acre
D65: Potash | E65: + | F65: ='Core Cost Data'!$B$106 -> 0.39 | G65: ='Core Cost Data'!$C$106 -> 0.41 | H65: ='Core Cost Data'!$D$106 -> 0.43 | I65: @ | J65: ='Core Cost Data'!$B$166 -> 40 | K65: lbs/acre
B67: Total Costs per acre with rent: | F67: =$F$48+$F$50+$F$52+$F$55+$G$57*$J$57+$F$61*$J$61+$F$63*$J$63+$F$65*$J$65+$I$42 -> 417.22 | G67: =$G$48+$G$50+$G$52+$G$55+$G$57*$J$57+$G$61*$J$61+$G$63*$J$63+$G$65*$J$65+$I$42 -> 450.57 | H67: =$H$48+$H$50+$H$52+$H$55+$G$57*$J$57+$H$61*$J$61+$H$63*$J$63+$H$65*$J$65+$I$42 -> 490.12
B71: Year 1: Reseeding Switchgrass | F71: Percentage chance of needing reseeding: | I71: ='Core Cost Data'!$C$158 -> 0.25
F73: Min | G73: Average | H73: Max
B74: Site preparation costs: | D74: Herbicide (varies) | E74: + | F74: ='Core Cost Data'!$I$160 -> 18.12 | G74: ='Core Cost Data'!$J$160 -> 20.62 | H74: ='Core Cost Data'!$K$160 -> 28.12 | I74: /acre
D75: (includes spraying)
B77: Planting costs:
D78: Seeding (with fertilizer) | E78: + | F78: ='Core Cost Data'!$B$99 -> 13 | G78: ='Core Cost Data'!$C$99 -> 19.9 | H78: ='Core Cost Data'!$D$99 -> 30 | I78: /acre
D80: Seed costs | F80: + | G80: ='Core Cost Data'!$B$162 -> 15 | I80: @ | J80: ='Core Cost Data'!$D$162 -> 5 | K80: lbs/acre
B83: Fertlizer costs:
D84: Phosphorus | E84: + | F84: ='Core Cost Data'!$B$105 -> 0.45 | G84: ='Core Cost Data'!$C$105 -> 0.48 | H84: ='Core Cost Data'!$D$105 -> 0.51 | I84: @ | J84: ='Core Cost Data'!$B$165 -> 30 | K84: lbs/acre
D86: Potash | E86: + | F86: ='Core Cost Data'!$B$106 -> 0.39 | G86: ='Core Cost Data'!$C$106 -> 0.41 | H86: ='Core Cost Data'!$D$106 -> 0.43 | I86: @ | J86: ='Core Cost Data'!$B$166 -> 40 | K86: lbs/acre
B88: Total reseeding costs per acre: | F88: =($I$71/100)*($F$74+$F$78+$G$80*$J$80*82+$F$84*$J$84+$F$86*$J$86) -> 15.52555 | G88: =($I$71/100)*($G$74+$G$78+$G$80*$J$80*82+$G$84*$J$84+$G$86*$J$86) -> 15.5533 | H88: =($I$71/100)*($H$74+$H$78+$G$80*$J$80*82+$H$84*$J$84+$H$86*$J$86) -> 15.60155
B92: Year 1: Switchgrass Harvest
B94: Expected yield (tons): | D94: ='Core Cost Data'!$B$163 -> 0 | E94: /acre
F96: Min | G96: Average | H96: Max
B97: Harvest costs per cutting: | D97: Mowing | F97: ='Core Cost Data'!$B$94 -> 10 | G97: ='Core Cost Data'!$C$94 -> 18.35 | H97: ='Core Cost Data'!$D$94 -> 30 | I97: /acre
D99: Raking | E99: + | F99: ='Core Cost Data'!$B$95 -> 4 | G99: ='Core Cost Data'!$C$95 -> 6.5 | H99: ='Core Cost Data'!$D$95 -> 10 | I99: /acre
D101: Baling (950lbs sq.) | E101: + | F101: ='Core Cost Data'!$B$96 -> 8 | G101: ='Core Cost Data'!$C$96 -> 10.75 | H101: ='Core Cost Data'!$D$96 -> 12 | I101: x | J101: =ROUND($D$94*2000/950,1) -> 0 | K101: bales
B103: Total Harvest Costs per Acre: | F103: =$F$97+$F$99+$F$101*$J$101 -> 14 | G103: =$G$97+$G$99+$G$101*$J$101 -> 24.85 | H103: =$H$97+$H$99+$H$101*$J$101 -> 40
B105: Switchgrass value per ton: | F105: ='Core Cost Data'!$H$89 -> 20 | G105: ='Core Cost Data'!$I$89 -> 45 | H105: ='Core Cost Data'!$J$89 -> 50 | I105: @ | J105: =$D$94 -> 0 | K105: tons
B107: Total Revenue per Acre: | F107: =$F$105*$J$105 -> 0 | G107: =$G$105*$J$105 -> 0 | H107: =$H$105*$J$105 -> 0
B111: Step 2: Switchgrass production
B113: Switchgrass is a perenial species with minimal post-planting management. Only moderate fertilizer and herbicide application are necessary to maintain production.
B114: Switchgrass stands will generally have a lifespan of 10 years.
B118: Years 2-11: Switchgrass production
F119: Min | G119: Average | H119: Max
B120: Herbicide costs: | D120: Herbicide (varies) | F120: ='Core Cost Data'!$I$160 -> 18.12 | G120: ='Core Cost Data'!$J$160 -> 20.62 | H120: ='Core Cost Data'!$K$160 -> 28.12 | I120: /acre
B122: Fertlizer costs:
D123: Nitrogen injection: | E123: + | F123: ='Core Cost Data'!$B$90 -> 7 | G123: ='Core Cost Data'!$C$90 -> 11.7 | H123: ='Core Cost Data'!$D$90 -> 18 | I123: /acre
D125: Fertlizer spreading | E125: + | F125: ='Core Cost Data'!$B$89 -> 3 | G125: ='Core Cost Data'!$C$89 -> 6.25 | H125: ='Core Cost Data'!$D$89 -> 10 | I125: /acre
D127: Nitrogen | E127: + | F127: ='Core Cost Data'!$B$104 -> 0.43 | G127: ='Core Cost Data'!$C$104 -> 0.5 | H127: ='Core Cost Data'!$D$104 -> 0.59 | I127: @ | J127: ='Core Cost Data'!$D$168 -> 100 | K127: lbs/acre
D129: Phosphorus | E129: + | F129: ='Core Cost Data'!$B$105 -> 0.45 | G129: ='Core Cost Data'!$C$105 -> 0.48 | H129: ='Core Cost Data'!$D$105 -> 0.51 | I129: @ | J129: ='Core Cost Data'!$D$165 -> 1.94 | K129: lbs/acre
D131: Potash | E131: + | F131: ='Core Cost Data'!$B$106 -> 0.39 | G131: ='Core Cost Data'!$C$106 -> 0.41 | H131: ='Core Cost Data'!$D$106 -> 0.43 | I131: @ | J131: ='Core Cost Data'!$D$166 -> 22.8 | K131: lbs/acre
B133: Total Costs per acre with rent: | F133: =$F$120+$F$123+$F$125+$F$127*$J$127+$F$129*$J$129+$F$131*$J$131+$I$42 -> 310.885 | G133: =$G$120+$G$123+$G$125+$G$127*$J$127+$G$129*$J$129+$G$131*$J$131+$I$42 -> 328.8492 | H133: =$H$120+$H$123+$H$125+$H$127*$J$127+$H$129*$J$129+$H$131*$J$131+$I$42 -> 355.9134
B137: Years 2-11: Switchgrass harvest
B139: Expected yield (tons): | D139: ='Core Cost Data'!$D$163 -> 4 | E139: /acre
F141: Min | G141: Average | H141: Max
B142: Harvest costs per cutting: | D142: Mowing | F142: ='Core Cost Data'!$B$94 -> 10 | G142: ='Core Cost Data'!$C$94 -> 18.35 | H142: ='Core Cost Data'!$D$94 -> 30 | I142: /acre
D144: Raking | E144: + | F144: ='Core Cost Data'!$B$95 -> 4 | G144: ='Core Cost Data'!$C$95 -> 6.5 | H144: ='Core Cost Data'!$D$95 -> 10 | I144: /acre
D146: Baling (950lbs sq.) | E146: + | F146: ='Core Cost Data'!$B$96 -> 8 | G146: ='Core Cost Data'!$C$96 -> 10.75 | H146: ='Core Cost Data'!$D$96 -> 12 | I146: x | J146: =ROUND($D$139*2000/950,1) -> 8.4 | K146: bales
B148: Total Harvest Cost per Acre: | F148: =$F$142+$F$144+$F$146*$J$146 -> 81.2 | G148: =$G$142+$G$144+$G$146*$J$146 -> 115.15 | H148: =$H$142+$H$144+$H$146*$J$146 -> 140.8
B150: Switchgrass value per ton: | F150: ='Core Cost Data'!$H$89 -> 20 | G150: ='Core Cost Data'!$I$89 -> 45 | H150: ='Core Cost Data'!$J$89 -> 50 | I150: @ | J150: =$D$139 -> 4 | K150: tons
B152: Total Revenue per Acre: | F152: =$F$150*$J$150 -> 80 | G152: =$G$150*$J$150 -> 180 | H152: =$H$150*$J$150 -> 200
B156: Total Lifetime Costs and Revenue | D156: Discount rate: | E156: ='Core Cost Data'!$H$96 -> 0.04
F157: Min | G157: Average | H157: Max
B158: Year one net costs per acre | F158: =$C$170-$F$170 -> 676.74555 | G158: =$D$170-$G$170 -> 720.9733 | H158: =$E$170-$H$170 -> 775.72155
B160: Net present value per acre over 11 year lifetime: | F160: =$I$181 -> -5073.540489 | G160: =$J$181 -> -4727.749326 | H160: =$K$181 -> -5047.839043 | I160: /acre
B166: This is the end of the energy crops worksheet. The total costs and nitrogen reduction information is summarized in the boxes at the top of this page.
C168: Costs | F168: Revenue | I168: Net Present Value | L168: using | M168: =$E$156 -> 0.04 | N168: discount rate
B169: Year | C169: Min | D169: Average | E169: Max | F169: Min | G169: Average | H169: Max | I169: Min | J169: Average | K169: Max
B170: 1 | C170: =F$103+F$88+F$67+$I$42 -> 676.74555 | D170: =G$103+G$88+G$67+$I$42 -> 720.9733 | E170: =H$103+H$88+H$67+$I$42 -> 775.72155 | F170: =F107 -> 0 | G170: =G107 -> 0 | H170: =H107 -> 0 | I170: =(F170-C170)/(1+$M$168)^($B170-1) -> -676.74555 | J170: =(G170-D170)/(1+$M$168)^($B170-1) -> -720.9733 | K170: =(H170-E170)/(1+$M$168)^($B170-1) -> -775.72155
B171: 2 | C171: =F$133+F$148+$I$42 -> 622.085 | D171: =G$133+G$148+$I$42 -> 673.9992 | E171: =H$133+H$148+$I$42 -> 726.7134 | F171: =F$152 -> 80 | G171: 180 | H171: 200 | I171: -521.2355769 | J171: -474.9992308 | K171: -506.4551923
B172: 3 | C172: 622.085 | D172: 673.9992 | E172: 726.7134 | F172: 80 | G172: 180 | H172: 200 | I172: -501.1880547 | J172: -456.7300296 | K172: -486.9761464
B173: 4 | C173: 622.085 | D173: 673.9992 | E173: 726.7134 | F173: 80 | G173: 180 | H173: 200 | I173: -481.9115911 | J173: -439.16349 | K173: -468.2462947
B174: 5 | C174: 622.085 | D174: 673.9992 | E174: 726.7134 | F174: 80 | G174: 180 | H174: 200 | I174: -463.3765299 | J174: -422.2725865 | K174: -450.2368218
B175: 6 | C175: 622.085 | D175: 673.9992 | E175: 726.7134 | F175: 80 | G175: 180 | H175: 200 | I175: -445.5543557 | J175: -406.0313332 | K175: -432.920021
B176: 7 | C176: 622.085 | D176: 673.9992 | E176: 726.7134 | F176: 80 | G176: 180 | H176: 200 | I176: -428.4176497 | J176: -390.4147435 | K176: -416.2692509
B177: 8 | C177: 622.085 | D177: 673.9992 | E177: 726.7134 | F177: 80 | G177: 180 | H177: 200 | I177: -411.9400478 | J177: -375.3987918 | K177: -400.2588951
B178: 9 | C178: 622.085 | D178: 673.9992 | E178: 726.7134 | F178: 80 | G178: 180 | H178: 200 | I178: -396.0961998 | J178: -360.9603767 | K178: -384.8643222
B179: 10 | C179: 622.085 | D179: 673.9992 | E179: 726.7134 | F179: 80 | G179: 180 | H179: 200 | I179: -380.8617306 | J179: -347.0772853 | K179: -370.0618483
B180: 11 | C180: 622.085 | D180: 673.9992 | E180: 726.7134 | F180: 80 | G180: 180 | H180: 200 | I180: -366.2132025 | J180: -333.7281589 | K180: -355.8287003
H181: TOTAL | I181: =SUM(I170:I180) -> -5073.540489 | J181: =SUM(J170:J180) -> -4727.749326 | K181: -5047.839043
H182: ANNUALIZED | I182: =(I181*$M$168)/(1-(1+$M$168)^(-1*$B$180)) -> -579.1397724 | J182: =(J181*$M$168)/(1-(1+$M$168)^(-1*$B$180)) -> -539.6680435 | K182: =(K181*$M$168)/(1-(1+$M$168)^(-1*$B$180)) -> -576.2059771
I193: =$C$170*$D$42 -> 6767.4555 | J193: =$D$170*$D$42 -> 7209.733 | K193: =$E$170*$D$42 -> 7757.2155
I195: =$F$170*$D$42 -> 0 | J195: =$G$170*$D$42 -> 0 | K195: =$H$170*$D$42 -> 0
I197: =$I$182*$D$42 -> -5791.397724 | J197: =$J$182*$D$42 -> -5396.680435 | K197: =$K$182*$D$42 -> -5762.059771
B209: Acres to be planted: | D209: ='Core Cost Data'!$G$158 -> 10 | E209: acres | H209: Land rent: | I209: ='Core Cost Data'!$H$94 -> 230 | J209: /acre
F214: Min | G214: Average | H214: Max
D215: Disking (tandem) | F215: ='Core Cost Data'!$B$87 -> 7.5 | G215: ='Core Cost Data'!$C$87 -> 14.65 | H215: ='Core Cost Data'!$D$87 -> 20 | I215: /acre
D217: Herbicide (varies) | E217: + | F217: ='Core Cost Data'!$I$160 -> 18.12 | G217: ='Core Cost Data'!$J$160 -> 20.62 | H217: ='Core Cost Data'!$K$160 -> 28.12 | I217: /acre
D219: Harrowing | E219: + | F219: ='Core Cost Data'!$B$88 -> 4 | G219: ='Core Cost Data'!$C$88 -> 9.35 | H219: ='Core Cost Data'!$D$88 -> 13 | I219: /acre
D222: Seeding (with fertilizer) | E222: + | F222: ='Core Cost Data'!$B$99 -> 13 | G222: ='Core Cost Data'!$C$99 -> 19.9 | H222: ='Core Cost Data'!$D$99 -> 30 | I222: /acre
D224: Seed costs | F224: + | G224: ='Core Cost Data'!$B$162 -> 15 | H224: /lb | I224: @ | J224: ='Core Cost Data'!$D$162 -> 5 | K224: lbs/acre
D228: Lime (per ton) | E228: + | F228: ='Core Cost Data'!$B$107 -> 13.5 | G228: ='Core Cost Data'!$C$107 -> 16.75 | H228: ='Core Cost Data'!$D$107 -> 20.5 | I228: @ | J228: ='Core Cost Data'!$B$167 -> 3 | K228: tons/acre
D230: Phosphorus | E230: + | F230: ='Core Cost Data'!$B$105 -> 0.45 | G230: ='Core Cost Data'!$C$105 -> 0.48 | H230: ='Core Cost Data'!$D$105 -> 0.51 | I230: @ | J230: ='Core Cost Data'!$B$165 -> 30 | K230: lbs/acre
D232: Potash | E232: + | F232: ='Core Cost Data'!$B$106 -> 0.39 | G232: ='Core Cost Data'!$C$106 -> 0.41 | H232: ='Core Cost Data'!$D$106 -> 0.43 | I232: @ | J232: ='Core Cost Data'!$B$166 -> 40 | K232: lbs/acre
F234: =$F$48+$F$50+$F$52+$F$55+$G$57*$J$57+$F$61*$J$61+$F$63*$J$63+$F$65*$J$65+$I$42 -> 417.22 | G234: =$G$48+$G$50+$G$52+$G$55+$G$57*$J$57+$G$61*$J$61+$G$63*$J$63+$G$65*$J$65+$I$42 -> 450.57 | H234: =$H$48+$H$50+$H$52+$H$55+$G$57*$J$57+$H$61*$J$61+$H$63*$J$63+$H$65*$J$65+$I$42 -> 490.12
F238: Percentage chance of needing reseeding: | I238: ='Core Cost Data'!$C$158 -> 0.25
F240: Min | G240: Average | H240: Max
D241: Herbicide (varies) | E241: + | F241: ='Core Cost Data'!$I$160 -> 18.12 | G241: ='Core Cost Data'!$J$160 -> 20.62 | H241: ='Core Cost Data'!$K$160 -> 28.12 | I241: /acre
D242: (includes spraying)
D245: Seeding (with fertilizer) | E245: + | F245: ='Core Cost Data'!$B$99 -> 13 | G245: ='Core Cost Data'!$C$99 -> 19.9 | H245: ='Core Cost Data'!$D$99 -> 30 | I245: /acre
D247: Seed costs | F247: + | G247: ='Core Cost Data'!$B$162 -> 15 | I247: @ | J247: ='Core Cost Data'!$D$162 -> 5 | K247: lbs/acre
D251: Phosphorus | E251: + | F251: ='Core Cost Data'!$B$105 -> 0.45 | G251: ='Core Cost Data'!$C$105 -> 0.48 | H251: ='Core Cost Data'!$D$105 -> 0.51 | I251: @ | J251: ='Core Cost Data'!$B$165 -> 30 | K251: lbs/acre
D253: Potash | E253: + | F253: ='Core Cost Data'!$B$106 -> 0.39 | G253: ='Core Cost Data'!$C$106 -> 0.41 | H253: ='Core Cost Data'!$D$106 -> 0.43 | I253: @ | J253: ='Core Cost Data'!$B$166 -> 40 | K253: lbs/acre
F255: =($I$71/100)*($F$74+$F$78+$G$80*$J$80*82+$F$84*$J$84+$F$86*$J$86) -> 15.52555 | G255: =($I$71/100)*($G$74+$G$78+$G$80*$J$80*82+$G$84*$J$84+$G$86*$J$86) -> 15.5533 | H255: =($I$71/100)*($H$74+$H$78+$G$80*$J$80*82+$H$84*$J$84+$H$86*$J$86) -> 15.60155
B261: Expected yield (tons): | D261: ='Core Cost Data'!$B$163 -> 0 | E261: /acre
F263: Min | G263: Average | H263: Max
B264: Harvest costs per cutting: | D264: Mowing | F264: ='Core Cost Data'!$B$94 -> 10 | G264: ='Core Cost Data'!$C$94 -> 18.35 | H264: ='Core Cost Data'!$D$94 -> 30 | I264: /acre
D266: Raking | E266: + | F266: ='Core Cost Data'!$B$95 -> 4 | G266: ='Core Cost Data'!$C$95 -> 6.5 | H266: ='Core Cost Data'!$D$95 -> 10 | I266: /acre
D268: Baling (950lbs sq.) | E268: + | F268: ='Core Cost Data'!$B$96 -> 8 | G268: ='Core Cost Data'!$C$96 -> 10.75 | H268: ='Core Cost Data'!$D$96 -> 12 | I268: x | J268: =ROUND($D$94*2000/950,1) -> 0 | K268: bales
B270: Total Harvest Costs per Acre: | F270: =$F$97+$F$99+$F$101*$J$101 -> 14 | G270: =$G$97+$G$99+$G$101*$J$101 -> 24.85 | H270: =$H$97+$H$99+$H$101*$J$101 -> 40
B272: Switchgrass value per ton: | F272: ='Core Cost Data'!$H$89 -> 20 | G272: ='Core Cost Data'!$I$89 -> 45 | H272: ='Core Cost Data'!$J$89 -> 50 | I272: @ | J272: =$D$94 -> 0 | K272: tons
B274: Total Revenue per Acre: | F274: =$F$105*$J$105 -> 0 | G274: =$G$105*$J$105 -> 0 | H274: =$H$105*$J$105 -> 0
F286: Min | G286: Average | H286: Max
D287: Herbicide (varies) | F287: ='Core Cost Data'!$I$160 -> 18.12 | G287: ='Core Cost Data'!$J$160 -> 20.62 | H287: ='Core Cost Data'!$K$160 -> 28.12 | I287: /acre
D290: Nitrogen injection: | E290: + | F290: ='Core Cost Data'!$B$90 -> 7 | G290: ='Core Cost Data'!$C$90 -> 11.7 | H290: ='Core Cost Data'!$D$90 -> 18 | I290: /acre
D292: Fertlizer spreading | E292: + | F292: ='Core Cost Data'!$B$89 -> 3 | G292: ='Core Cost Data'!$C$89 -> 6.25 | H292: ='Core Cost Data'!$D$89 -> 10 | I292: /acre
D294: Nitrogen | E294: + | F294: ='Core Cost Data'!$B$104 -> 0.43 | G294: ='Core Cost Data'!$C$104 -> 0.5 | H294: ='Core Cost Data'!$D$104 -> 0.59 | I294: @ | J294: ='Core Cost Data'!$D$168 -> 100 | K294: lbs/acre
D296: Phosphorus | E296: + | F296: ='Core Cost Data'!$B$105 -> 0.45 | G296: ='Core Cost Data'!$C$105 -> 0.48 | H296: ='Core Cost Data'!$D$105 -> 0.51 | I296: @ | J296: ='Core Cost Data'!$D$165 -> 1.94 | K296: lbs/acre
D298: Potash | E298: + | F298: ='Core Cost Data'!$B$106 -> 0.39 | G298: ='Core Cost Data'!$C$106 -> 0.41 | H298: ='Core Cost Data'!$D$106 -> 0.43 | I298: @ | J298: ='Core Cost Data'!$D$166 -> 22.8 | K298: lbs/acre
F300: =$F$120+$F$123+$F$125+$F$127*$J$127+$F$129*$J$129+$F$131*$J$131+$I$42 -> 310.885 | G300: =$G$120+$G$123+$G$125+$G$127*$J$127+$G$129*$J$129+$G$131*$J$131+$I$42 -> 328.8492 | H300: =$H$120+$H$123+$H$125+$H$127*$J$127+$H$129*$J$129+$H$131*$J$131+$I$42 -> 355.9134
B306: Expected yield (tons): | D306: ='Core Cost Data'!$D$163 -> 4 | E306: /acre
F308: Min | G308: Average | H308: Max
B309: Harvest costs per cutting: | D309: Mowing | F309: ='Core Cost Data'!$B$94 -> 10 | G309: ='Core Cost Data'!$C$94 -> 18.35 | H309: ='Core Cost Data'!$D$94 -> 30 | I309: /acre
D311: Raking | E311: + | F311: ='Core Cost Data'!$B$95 -> 4 | G311: ='Core Cost Data'!$C$95 -> 6.5 | H311: ='Core Cost Data'!$D$95 -> 10 | I311: /acre
D313: Baling (950lbs sq.) | E313: + | F313: ='Core Cost Data'!$B$96 -> 8 | G313: ='Core Cost Data'!$C$96 -> 10.75 | H313: ='Core Cost Data'!$D$96 -> 12 | I313: x | J313: =ROUND($D$139*2000/950,1) -> 8.4 | K313: bales
B315: Total Harvest Cost per Acre: | F315: =$F$142+$F$144+$F$146*$J$146 -> 81.2 | G315: =$G$142+$G$144+$G$146*$J$146 -> 115.15 | H315: =$H$142+$H$144+$H$146*$J$146 -> 140.8
B317: Switchgrass value per ton: | F317: ='Core Cost Data'!$H$89 -> 20 | G317: ='Core Cost Data'!$I$89 -> 45 | H317: ='Core Cost Data'!$J$89 -> 50 | I317: @ | J317: =$D$139 -> 4 | K317: tons
B319: Total Revenue per Acre: | F319: =$F$150*$J$150 -> 80 | G319: =$G$150*$J$150 -> 180 | H319: =$H$150*$J$150 -> 200
D323: Discount rate: | E323: ='Core Cost Data'!$H$96 -> 0.04
F324: Min | G324: Average | H324: Max
B325: Year one net costs per acre | F325: =$C$170-$F$170 -> 676.74555 | G325: =$D$170-$G$170 -> 720.9733 | H325: =$E$170-$H$170 -> 775.72155
B327: Net present value per acre over 11 year lifetime: | F327: =$I$181 -> -5073.540489 | G327: =$J$181 -> -4727.749326 | H327: =$K$181 -> -5047.839043 | I327: /acre
K334: Discount Rate | L334: =$E$156 -> 0.04

Sheet Bioreactors
B8: Bioreactors
B10: Denitrifying bioreactors are constructed trenches filled with woodchips that filter a portion of the water passing through
B11: a field's tile drainage system. Bacteria use nitrogen in the water to feed on the carbon stored in the woodchips.
B12: The small footprint of the system eliminates the need to take land out of production, and the long life
B13: and low maintenance of the bioreactor reduces need for active management. Bioreactors are generally applied
B14: to areas up to 80 acres.
B16: Generally speaking, there are three primary steps involved in implementing a bioreactor: Design, Construction,
B17: and Maintenance. The choices made at each of these steps is important for the success of the bioreactor.
B19: This worksheet will estimate the size and general costs for a bioreactor for a specified drainage area or tile line size.
B20: Default prices in this worksheet assume work wages at surveyed custom farm rates.
B22: Let's get started.
B25: General Information: | G25: Final Costs (20 year lifetime):
B26: Would you like to autofill the worksheet with | I26: Min | J26: Avg | K26: Max
B27: default prices? | G27: Out of Pocket (Year 1): | I27: =$I$81+$F$132 -> 3924.402351 | J27: =($I$81+$J$81)/2+$G$132 -> 11900.1006 | K27: =$J$81+$H$132 -> 25524.50185
B29: Is cost-sharing available? | G29: Cost to Maintain (Yearly): | I29: =$E$154 -> 30.49591918 | J29: =$F$154 -> 43.73751462 | K29: =$G$154 -> 62.23163631
G31: Equivalent Annual Cost: | I31: =(0.04)*$I$33/(1-(1+0.04)^-20) -> 331.949 | J31: =(0.04)*$J$33/(1-(1+0.04)^-20) -> 932.168204 | K31: =(0.04)*$K$33/(1-(1+0.04)^-20) -> 1953.104999
G33: Net Present Cost (current $): | I33: =$E$192 -> 4511.295239 | J33: =$G$192 -> 12668.4701 | K33: =$I$192 -> 26543.33433
B36: Step 1 - Design
B38: Bioreactors are site-specific designs and their location and size will vary based on the topography, drainage areas and other site characteristics.
B39: Design assistance may be provided by a design firm (for a design fee) or from a public technical service provider such as an NRCS agent (possibly free or at-cost).
B41: To estimate costs for your site, you will need to provide either the acreage that will be drained into the bioreactor, or the size of the tile line exiting the area.
B42: In addition, you will need to provide the grade of the site (measured as the drop in elevation of the site (in feet) over the length of the site) and some general soil information.
B44: Do you know the size of the tile pipe exiting the area to the drained into the bioreactor?
B49: Select tile pipe size: | F49: inches | G49: Depth of tile: | H49: ='Core Cost Data'!$F$29 -> 4 | I49: ft
J50: Min | K50: Max
B51: Enter site grade here: | E51: ='Core Cost Data'!$I$39 -> 0.5 | F51: % | G51: Estimated acres drained: | J51: =$C$235 -> 23.50180717 | K51: =$B$235 -> 35.25271075
B53: Check box if the tile line is dual-walled, ceramic, or clay:
B55: Are the soils on the site generally mineral or organic?
F57: Min | G57: Max
B58: Estimated drainage coefficients: | F58: =$A$221 -> 0.5 | G58: =$B$221 -> 0.75
B62: Enter acres to be drained into bioreactor: | G62: ='Core Cost Data'!$I$38 -> 25 | H62: acres | I62: Depth of tile: | J62: ='Core Cost Data'!$F$29 -> 4 | K62: ft
J63: Min | K63: Max
B64: Enter site grade here: | E64: ='Core Cost Data'!$I$39 -> 0.5 | F64: % | G64: Estimated pipe size: | J64: =$E$213 -> 8 | K64: =$H$213 -> 10
B66: Check box if the tile is dual-walled, ceramic, or clay:
B68: Are the soils on the site generally mineral or organic?
F70: Min | G70: Max
B71: Estimated drainage coefficients : | F71: =$A$221 -> 0.5 | G71: =$B$221 -> 0.75
E75: Min | F75: Max
B76: Estimated Peak Tile Flow: | E76: =IF($B$212=1,$B$233,$E$214) -> 0.5251736111 | F76: =IF($B$212=1,$B$233,$H$214) -> 0.7877604167 | G76: cu. ft./second
B78: Estimated costs for professional bioreactor design:
C80: Min Rate | D80: Max Rate | F80: Billable Hours | I80: Min Cost | J80: Max Cost
C81: ='Core Cost Data'!$C$35 -> 0 | D81: ='Core Cost Data'!$C$34 -> 40 | E81: x | F81: ='Core Cost Data'!$B$34 -> 16 | G81: hours | H81: = | I81: =$C$81*$F$81 -> 0 | J81: =$D$81*$F$81 -> 640
B86: Step 2: Construction
B88: Bioreactors are designed to intercept 20% of the incoming water from the tile line and hold that water for 4 - 8 hours allowing bacteria residing in the woodchips to
B89: reduce the total nitrogen load of the diverted water. The bioreactor accomplishes this using two control structures each at one end of the system with the first structure
B90: controlling the amount of water entering the bioreactor and the second controlling how quickly water exits the bioreactor. The bioreactor after construction is covered
B91: and seeded with grass. The ground above the system cannot be put in production and care must be taken not to compress the bioreactor with farming machinery.
B93: This section will estimate the size of a bioreactor and the volume of woodchips needed to control the amount of water in the tile line estimated in Step 1.
B96: Bioreactor size
B98: Percent of water to intercept: | F98: ='Core Cost Data'!$F$34 -> 20 | G98: %
B99: Amount of time to retain water: | F99: ='Core Cost Data'!$F$35 -> 4 | G99: hours
C101: Min | D101: Max | G101: Min | H101: Max
B102: Length: | C102: =40.032*SQRT($F$99*$D$105) -> 113.2275947 | D102: =40.032*SQRT($F$99*$D$105) -> 113.2275947 | E102: ft | F102: Width: | G102: =2.56879*$F$98*$E$76*SQRT($F$99*$D$105)/($D$105^2) -> 19.07859967 | H102: =2.56879*$F$98*$F$76*SQRT($F$99*$D$105)/($D$105^2) -> 28.61789951 | I102: ft
G104: Min | H104: Max
B105: Inlet-Outlet Drop: | D105: ='Core Cost Data'!$I$34 -> 2 | E105: ft | F105: Surface: | G105: =($C$102*$G$102)/43560 -> 0.04959191806 | H105: =($H$102*$D$102)/43560 -> 0.07438787708 | I105: acres
E107: Min | F107: Max
B108: Total Bioreactor volume: | E108: =$C$102*$G$102*($E$219-1) -> 6480.671851 | F108: =$D$102*$H$102*($E$219-1) -> 9721.007777 | G108: cu. ft
B111: Bioreactor Construction Costs
H112: Min | I112: Max
B113: Control Structures | E113: ='Core Cost Data'!$I$35 -> 2 | F113: units | G113: x | H113: ='Core Cost Data'!$B$38 -> 500 | I113: ='Core Cost Data'!$D$38 -> 2000 | J113: each
E115: Min | F115: Max | I115: Min | J115: Average | K115: Max
B116: Woodchips | D116: + | E116: =$E$108 -> 6480.671851 | F116: =$F$108 -> 9721.007777 | G116: cu. ft. | H116: x | I116: ='Core Cost Data'!$B$39 -> 0.19 | J116: ='Core Cost Data'!$C$39 -> 0.83 | K116: ='Core Cost Data'!$D$39 -> 1.85 | L116: /cu. ft.
B117: (price delivered)
I118: Min | J118: Average | K118: Max
B119: Contractor Costs for Trenching | E119: + | F119: ='Core Cost Data'!$B$42 -> 16 | G119: hours | H119: x | I119: ='Core Cost Data'!$B$41 -> 50 | J119: ='Core Cost Data'!$C$41 -> 91.25 | K119: ='Core Cost Data'!$D$41 -> 125 | L119: /hour
B120: (backhoe)
E121: Min | F121: Max | I121: Min | J121: Average | K121: Max
B122: Seeding | D122: + | E122: =$G$105 -> 0.04959191806 | F122: =$H$105 -> 0.07438787708 | G122: acres | H122: x | I122: ='Core Cost Data'!$B$43 -> 8 | J122: ='Core Cost Data'!$C$43 -> 12.3 | K122: ='Core Cost Data'!$D$43 -> 15 | L122: /acre
B123: (broadcast via tractor)
B125: Seed costs | E125: Min | F125: Max | I125: Min | J125: Max
B126: (CRP grass mix) | D126: + | E126: ='Core Cost Data'!$B$44 -> 54 | F126: ='Core Cost Data'!$D$44 -> 128 | G126: /acre x | I126: =$G$105 -> 0.04959191806 | J126: =$H$105 -> 0.07438787708 | K126: acres
B128: Connection pipe | H128: + | I128: ='Core Cost Data'!$B$45 -> 890 | J128: /1000 ft
B129: (6 inch pipe, 200ft. needed for connecting control structures)
F131: Min | G131: Average | H131: Max
B132: Total Construction Costs: | F132: =($E$113*$H$113)+($E$116*$I$116)+($F$119*$I$119)+($E$122*$I$122)+$E$126*$I$126+$I$128 -> 3924.402351 | G132: =$E$113*($H$113+$I$113)/2+($E$116+$F$116)/2*$J$116+$F$119*$J$119+($E$122+$F$122)/2*$J$122+(($E$126+$F$126)/2)*(($I$126+$J$126)/2)+$I$128 -> 11580.1006 | H132: =$E$113*$I$113+$F$116*$K$116+$F$119*$K$119+$F$122*$K$122+$F$126*$J$126+$I$128 -> 24884.50185
B136: Step 3: Maintenance
B138: Although the amount of effort is small, bioreactors must be maintained on a regular basis in order to work effectively. On a yearly basis, the control structures must be adjusted to
B139: insure that the proper amount of water is being diverted from the tile line. The surface of the bioreactor must also be mowed yearly to maintain the grass plantings.
B141: In addition, every 8 years, the gates that provide the functionality within the control structures must be replaced.
B143: The life of a bioreactor is estimated to be between 10 to 20 years and once the activity of the bacteria within the woodchips is no long viable the bioreactor must be retrenched and
B144: the woodchips replaced.
B146: Yearly maintenance cost
J147: Min | K147: Average | L147: Max
B148: Adjusting and servicing control structures: | G148: ='Core Cost Data'!$B$52 -> 3 | H148: hours | I148: x | J148: ='Core Cost Data'!$B$51 -> 10 | K148: ='Core Cost Data'!$C$51 -> 14.2 | L148: ='Core Cost Data'!$D$51 -> 20 | M148: /hour
F150: Min | G150: Max | J150: Min | K150: Average | L150: Max
B151: Mowing grass plantings: | E151: + | F151: =$G$105 -> 0.04959191806 | G151: =$H$105 -> 0.07438787708 | H151: acres | I151: x | J151: ='Core Cost Data'!$B$94 -> 10 | K151: ='Core Cost Data'!$C$94 -> 18.35 | L151: ='Core Cost Data'!$D$94 -> 30 | M151: /acre
E153: Min | F153: Average | G153: Max
B154: Total yearly cost: | E154: =$G$148*$J$148+$F$151*$J$151 -> 30.49591918 | F154: =$G$148*$K$148+($F$151+$G$151)/2*$K$151 -> 43.73751462 | G154: =$G$148*$L$148+$G$151*$L$151 -> 62.23163631
B157: Extended maintenance costs
B159: Every 8 - years
I160: Min | J160: Max
B161: Replace control structure gates: | F161: ='Core Cost Data'!$G$56 -> 5 | G161: gates | H161: x | I161: ='Core Cost Data'!$B$56 -> 14.17 | J161: ='Core Cost Data'!$D$56 -> 15.32 | K161: /gate | M161: x | N161: ='Core Cost Data'!$I$35 -> 2 | O161: structures
H163: Min | I163: Average | J163: Max
B164: Total extended maintenance costs (year 8 and year 16) | H164: =$F$161*$I$161*$N$161 -> 141.7 | I164: =$F$161*($I$161+$J$161)/2*$N$161 -> 147.45 | J164: =$F$161*$J$161*$N$161 -> 153.2
B167: This is the end of the bioreactor worksheet. The total costs are calculated in the box at the top of the page including a present value of all design, construction and maintenance costs.
B168: Below is a 20-year schedule of costs including a column listing the present value of any future cost using a discount rate of | K168: =$L$171 -> 0.04
A170: 20-year Schedule of Payments for Bioreactor
B171: Year | D171: Min. Cost | E171: Min Present Value | F171: Average Cost | G171: Average Present Value | H171: Max. Cost | I171: Max Present Value | K171: Discount rate: | L171: ='Core Cost Data'!$H$96 -> 0.04
B172: 1 | D172: =$I$27 -> 3924.402351 | E172: =D172/(1+$E$212)^($B172-1) -> 3924.402351 | F172: =$J$27 -> 11900.1006 | G172: =F172/(1+$E$212)^($B172-1) -> 11900.1006 | H172: =$K$27 -> 25524.50185 | I172: =H172/(1+$E$212)^($B172-1) -> 25524.50185
B173: 2 | D173: =$E$154 -> 30.49591918 | E173: 29.32299921 | F173: =$F$154 -> 43.73751462 | G173: 42.05530252 | H173: =$G$154 -> 62.23163631 | I173: 59.83811184
B174: 3 | D174: =$E$154 -> 30.49591918 | E174: 28.19519155 | F174: =$F$154 -> 43.73751462 | G174: 40.43779088 | H174: =$G$154 -> 62.23163631 | I174: 57.536646
B175: 4 | D175: 30.49591918 | E175: 27.11076111 | F175: 43.73751462 | G175: 38.88249123 | H175: 62.23163631 | I175: 55.32369808
B176: 5 | D176: 30.49591918 | E176: 26.06803952 | F176: 43.73751462 | G176: 37.3870108 | H176: 62.23163631 | I176: 53.19586353
B177: 6 | D177: 30.49591918 | E177: 25.06542262 | F177: 43.73751462 | G177: 35.94904885 | H177: 62.23163631 | I177: 51.14986878
B178: 7 | D178: 30.49591918 | E178: 24.1013679 | F178: 43.73751462 | G178: 34.56639312 | H178: 62.23163631 | I178: 49.18256614
B179: 8 | D179: =$D$178+$H$164 -> 172.1959192 | E179: 130.8547463 | F179: =$F$178+$I$164 -> 191.1875146 | G179: 145.286798 | H179: =$H$178+$J$164 -> 215.4316363 | I179: 163.710338
B180: 9 | D180: 30.49591918 | E180: 22.28306944 | F180: 43.73751462 | G180: 31.95857352 | H180: 62.23163631 | I180: 45.47204709
B181: 10 | D181: 30.49591918 | E181: 21.42602831 | F181: 43.73751462 | G181: 30.72939762 | H181: 62.23163631 | I181: 43.72312221
B182: 11 | D182: 30.49591918 | E182: 20.60195029 | F182: 43.73751462 | G182: 29.54749771 | H182: 62.23163631 | I182: 42.04146366
B183: 12 | D183: 30.49591918 | E183: 19.80956759 | F183: 43.73751462 | G183: 28.41105549 | H183: 62.23163631 | I183: 40.42448429
B184: 13 | D184: 30.49591918 | E184: 19.04766114 | F184: 43.73751462 | G184: 27.31832259 | H184: 62.23163631 | I184: 38.86969643
B185: 14 | D185: 30.49591918 | E185: 18.31505879 | F185: 43.73751462 | G185: 26.26761787 | H185: 62.23163631 | I185: 37.37470811
B186: 15 | D186: 30.49591918 | E186: 17.61063345 | F186: 43.73751462 | G186: 25.25732488 | H186: 62.23163631 | I186: 35.93721933
B187: 16 | D187: =D179 -> 172.1959192 | E187: 95.61428143 | F187: =F179 -> 191.1875146 | G187: 106.1596402 | H187: =H179 -> 215.4316363 | I187: 119.6215404
B188: 17 | D188: 30.49591918 | E188: 16.28202058 | F188: 43.73751462 | G188: 23.35181664 | H188: =$G$154 -> 62.23163631 | I188: 33.22597941
B189: 18 | D189: 30.49591918 | E189: 15.65578901 | F189: 43.73751462 | G189: 22.45366985 | H189: =$G$154 -> 62.23163631 | I189: 31.94805713
B190: 19 | D190: 30.49591918 | E190: 15.05364328 | F190: 43.73751462 | G190: 21.59006716 | H190: 62.23163631 | I190: 30.7192857
B191: 20 | D191: 30.49591918 | E191: 14.474657 | F191: 43.73751462 | G191: 20.75967996 | H191: 62.23163631 | I191: 29.53777471
B192: Total | D192: =SUM(D172:D191) -> 4787.224815 | E192: =SUM(E172:E191) -> 4511.295239 | F192: 13026.01338 | G192: 12668.4701 | H192: 27013.30294 | I192: 26543.33433
A211: Hidden variables
A212: KnowPipe | B212: 0 | D212: Discount rate | E212: =L171 -> 0.04
A213: Pipeselect | B213: 6 | D213: AcresPipeMin | E213: =IF(B217=TRUE,B228,D230) -> 8 | F213: AcresPipeMax | H213: =IF(B217=TRUE,C228,E230) -> 10
D214: AcresCFSMin | E214: =B224 -> 0.5251736111 | F214: AcresCFSMax | H214: =C224 -> 0.7877604167
A215: PipesizeMin | B215: =IF($B$212=1, VLOOKUP($B$213,'Core Cost Data'!$A$22:$B$31,2),E213) -> 8 | D215: PipeSizeMax | E215: =IF($B$212=1, VLOOKUP($B$213,'Core Cost Data'!$A$22:$B$31,2),H213) -> 10
A216: PipeNMin | B216: =IF($B$217=TRUE,'Core Cost Data'!$C$32,VLOOKUP(B215,'Core Cost Data'!$B$22:$C$31,2)) -> 0.015 | D216: PipeNMax | E216: =IF($B$217=TRUE,'Core Cost Data'!$C$32,VLOOKUP(E215,'Core Cost Data'!$B$22:$C$31,2)) -> 0.017
A217: DualWall | B217: FALSE
A218: Soils | B218: 2
A219: Drainage Coefficients | D219: Pipe Depth | E219: =IF(B212=1,H49,J62) -> 4 | F219: ft
A220: Min | B220: Max
A221: =VLOOKUP($B$218,'Core Cost Data'!$F$25:$H$27,2) -> 0.5 | B221: =VLOOKUP($B$218,'Core Cost Data'!$F$25:$H$27,3) -> 0.75
B223: Min | C223: Max | D223: Min | E223: Max | F223: ContMin | G223: ContMax
A224: AcresQ | B224: =$G$62*$A$221*(43560/12/3600/24) -> 0.5251736111 | C224: =$G$62*$B$221*(43560/12/3600/24) -> 0.7877604167 | D224: =$G$62*$A$221*(43560/12/3600/24) -> 0.5251736111 | E224: =$G$62*$B$221*(43560/12/3600/24) -> 0.7877604167
A225: AcresT1 | B225: =SQRT($E$64/100) -> 0.07071067812 | C225: =SQRT($E$64/100) -> 0.07071067812 | D225: =SQRT($E$64/100) -> 0.07071067812 | E225: =SQRT($E$64/100) -> 0.07071067812
A226: AcresT2 | B226: =B224/3.1415926535*0.012/1.49/B225 -> 0.01903982702 | C226: =C224/3.1415926535*0.012/1.49/C225 -> 0.02855974052 | D226: =$D$224/3.1415926535*0.015/1.49/$D$225 -> 0.02379978377 | E226: =$E$224/3.1415926535*0.015/1.49/$E$225 -> 0.03569967566
A227: AcresT3 | B227: =(32*(B226)^(1.5))^(1/4)*12 -> 6.461634148 | C227: =(32*(C226)^(1.5))^(1/4)*12 -> 7.522749269 | D227: =((32*(($D$226)^(1.5)))^(1/4))*12 -> 7.025603237 | E227: =(32*($E$226)^(1.5))^(1/4)*12 -> 8.179332102 | F227: =IF(D227<=8,1,0) -> 1 | G227: =IF(E227<=8,1,0) -> 0 | H227: 0.017
A228: CalcPipe | B228: =INDEX('Core Cost Data'!$D$22:$D$31,MATCH(B227,'Core Cost Data'!$D$22:$D$31,-1)) -> 8 | C228: =INDEX('Core Cost Data'!$D$22:$D$31,MATCH(C227,'Core Cost Data'!$D$22:$D$31,-1)) -> 8 | D228: =IF(F227=1,D227,(32*($D$224/3.1415926535*H227/1.49/$D$225)^(1.5))^(1/4)*12) -> 7.025603237 | E228: =IF(G227=1,E227,(32*($E$224/3.1415926535*H227/1.49/$E$225)^(1.5))^(1/4)*12) -> 8.572390876 | F228: =IF(D228<=12,1,0) -> 1 | G228: =IF(E228<=12,1,0) -> 1 | H228: 0.02
D229: =IF(F228=1,D228,(32*($D$224/3.1415926535*H228/1.49/$D$225)^(1.5))^(1/4)*12) -> 7.025603237 | E229: =IF(G228=1,E228,(32*($E$224/3.1415926535*H228/1.49/$E$225)^(1.5))^(1/4)*12) -> 8.572390876
D230: =INDEX('Core Cost Data'!$D$22:$D$31,MATCH(D229,'Core Cost Data'!$D$22:$D$31,-1)) -> 8 | E230: =INDEX('Core Cost Data'!$D$22:$D$31,MATCH(E229,'Core Cost Data'!$D$22:$D$31,-1)) -> 10
A232: PipeVEL | B232: =1.49/B216*(B215/4/12)^(0.667)*SQRT(E51/100) -> 2.125950398
A233: PIPECFS | B233: =B232*B215^2*3.141529653/4/144 -> 0.7420818019
B234: Min | C234: Max
A235: PipeAcres | B235: =(1/A$221)*$B$233/43650*12*3600*24 -> 35.25271075 | C235: =(1/B$221)*$B$233/43650*12*3600*24 -> 23.50180717
I251: Min | J251: Avg | K251: Max
I252: =$I$81+$F$132 -> 3924.402351 | J252: =($I$81+$J$81)/2+$G$132 -> 11900.1006 | K252: =$J$81+$H$132 -> 25524.50185
I254: =$E$154 -> 30.49591918 | J254: =$F$154 -> 43.73751462 | K254: =$G$154 -> 62.23163631
I256: =(0.04)*$I$33/(1-(1+0.04)^-20) -> 331.949 | J256: =(0.04)*$J$33/(1-(1+0.04)^-20) -> 932.168204 | K256: =(0.04)*$K$33/(1-(1+0.04)^-20) -> 1953.104999
I258: =$E$192 -> 4511.295239 | J258: =$G$192 -> 12668.4701 | K258: =$I$192 -> 26543.33433
F274: inches | G274: Depth of tile: | H274: ='Core Cost Data'!$F$29 -> 4 | I274: ft
J275: Min | K275: Max
E276: ='Core Cost Data'!$I$39 -> 0.5 | F276: % | G276: Estimated acres drained: | J276: =$C$235 -> 23.50180717 | K276: =$B$235 -> 35.25271075
F282: Min | G282: Max
F283: =$A$221 -> 0.5 | G283: =$B$221 -> 0.75
G287: ='Core Cost Data'!$I$38 -> 25 | H287: acres | I287: Depth of tile: | J287: ='Core Cost Data'!$F$29 -> 4 | K287: ft
J288: Min | K288: Max
E289: ='Core Cost Data'!$I$39 -> 0.5 | F289: % | G289: Estimated pipe size: | J289: =$E$213 -> 8 | K289: =$H$213 -> 10
F295: Min | G295: Max
F296: =$A$221 -> 0.5 | G296: =$B$221 -> 0.75
E300: Min | F300: Max
E301: =IF($B$212=1,$B$233,$E$214) -> 0.5251736111 | F301: =IF($B$212=1,$B$233,$H$214) -> 0.7877604167 | G301: cu. ft./second
C305: Min Rate | D305: Max Rate | F305: Billable Hours | I305: Min Cost | J305: Max Cost
C306: ='Core Cost Data'!$C$35 -> 0 | D306: ='Core Cost Data'!$C$34 -> 40 | E306: x | F306: ='Core Cost Data'!$B$34 -> 16 | G306: hours | H306: = | I306: =$C$81*$F$81 -> 0 | J306: =$D$81*$F$81 -> 640
F323: ='Core Cost Data'!$F$34 -> 20 | G323: %
F324: ='Core Cost Data'!$F$35 -> 4 | G324: hours
C326: Min | D326: Max | G326: Min | H326: Max
C327: =40.032*SQRT($F$99*$D$105) -> 113.2275947 | D327: =40.032*SQRT($F$99*$D$105) -> 113.2275947 | E327: ft | F327: Width: | G327: =2.56879*$F$98*$E$76*SQRT($F$99*$D$105)/($D$105^2) -> 19.07859967 | H327: =2.56879*$F$98*$F$76*SQRT($F$99*$D$105)/($D$105^2) -> 28.61789951 | I327: ft
G329: Min | H329: Max
D330: ='Core Cost Data'!$I$34 -> 2 | E330: ft | F330: Surface: | G330: =($C$102*$G$102)/43560 -> 0.04959191806 | H330: =($H$102*$D$102)/43560 -> 0.07438787708 | I330: acres
E332: Min | F332: Max
E333: =$C$102*$G$102*($E$219-1) -> 6480.671851 | F333: =$D$102*$H$102*($E$219-1) -> 9721.007777 | G333: cu. ft
H337: Min | I337: Max
E338: ='Core Cost Data'!$I$35 -> 2 | F338: units | G338: x | H338: ='Core Cost Data'!$B$38 -> 500 | I338: ='Core Cost Data'!$D$38 -> 2000 | J338: each
E340: Min | F340: Max | I340: Min | J340: Average | K340: Max
D341: + | E341: =$E$108 -> 6480.671851 | F341: =$F$108 -> 9721.007777 | G341: cu. ft. | H341: x | I341: ='Core Cost Data'!$B$39 -> 0.19 | J341: ='Core Cost Data'!$C$39 -> 0.83 | K341: ='Core Cost Data'!$D$39 -> 1.85 | L341: /cu. ft.
I343: Min | J343: Average | K343: Max
E344: + | F344: ='Core Cost Data'!$B$42 -> 16 | G344: hours | H344: x | I344: ='Core Cost Data'!$B$41 -> 50 | J344: ='Core Cost Data'!$C$41 -> 91.25 | K344: ='Core Cost Data'!$D$41 -> 125 | L344: /hour
E346: Min | F346: Max | I346: Min | J346: Average | K346: Max
D347: + | E347: =$G$105 -> 0.04959191806 | F347: =$H$105 -> 0.07438787708 | G347: acres | H347: x | I347: ='Core Cost Data'!$B$43 -> 8 | J347: ='Core Cost Data'!$C$43 -> 12.3 | K347: ='Core Cost Data'!$D$43 -> 15 | L347: /acre
E350: Min | F350: Max | I350: Min | J350: Max
D351: + | E351: ='Core Cost Data'!$B$44 -> 54 | F351: ='Core Cost Data'!$D$44 -> 128 | G351: /acre x | I351: =$G$105 -> 0.04959191806 | J351: =$H$105 -> 0.07438787708 | K351: acres
H353: + | I353: ='Core Cost Data'!$B$45 -> 890 | J353: /1000 ft
F356: Min | G356: Average | H356: Max
F357: =($E$113*$H$113)+($E$116*$I$116)+($F$119*$I$119)+($E$122*$I$122)+$E$126*$I$126+$I$128 -> 3924.402351 | G357: =$E$113*($H$113+$I$113)/2+($E$116+$F$116)/2*$J$116+$F$119*$J$119+($E$122+$F$122)/2*$J$122+(($E$126+$F$126)/2)*(($I$126+$J$126)/2)+$I$128 -> 11580.1006 | H357: =$E$113*$I$113+$F$116*$K$116+$F$119*$K$119+$F$122*$K$122+$F$126*$J$126+$I$128 -> 24884.50185
J372: Min | K372: Average | L372: Max
G373: ='Core Cost Data'!$B$52 -> 3 | H373: hours | I373: x | J373: ='Core Cost Data'!$B$51 -> 10 | K373: ='Core Cost Data'!$C$51 -> 14.2 | L373: ='Core Cost Data'!$D$51 -> 20 | M373: /hour
F375: Min | G375: Max | J375: Min | K375: Average | L375: Max
E376: + | F376: =$G$105 -> 0.04959191806 | G376: =$H$105 -> 0.07438787708 | H376: acres | I376: x | J376: ='Core Cost Data'!$B$94 -> 10 | K376: ='Core Cost Data'!$C$94 -> 18.35 | L376: ='Core Cost Data'!$D$94 -> 30 | M376: /acre
E378: Min | F378: Average | G378: Max
E379: =$G$148*$J$148+$F$151*$J$151 -> 30.49591918 | F379: =$G$148*$K$148+($F$151+$G$151)/2*$K$151 -> 43.73751462 | G379: =$G$148*$L$148+$G$151*$L$151 -> 62.23163631
I385: Min | J385: Max
F386: ='Core Cost Data'!$G$56 -> 5 | G386: gates | H386: x | I386: ='Core Cost Data'!$B$56 -> 14.17 | J386: ='Core Cost Data'!$D$56 -> 15.32 | K386: /gate | M386: x | N386: ='Core Cost Data'!$I$35 -> 2 | O386: structures
H388: Min | I388: Average | J388: Max
H389: =$F$161*$I$161*$N$161 -> 141.7 | I389: =$F$161*($I$161+$J$161)/2*$N$161 -> 147.45 | J389: =$F$161*$J$161*$N$161 -> 153.2
L395: =$L$171 -> 0.04
K396: Discount rate | L396: ='Core Cost Data'!$H$96 -> 0.04

Sheet Drainage Management
B8: Drainage Management
B10: Subsurface drainage is a common land management for farm fields across Iowa and the Midwest. Drainage management is the practice of using water control structures or tile line depth to
B11: manipulate the height of a field's water table and the amount of water leaving a field through tile drainage. There are two main strategies used in drainage management: shallow drainage and
B12: controlled drainage. Drainage management does not affect corn yields or n-concentrations in water leaving the field. However, the practice does greatly reduce the amount of water loss.
B14: Shallow drainage raises the depth of tile line while placing tile lines closer together. There is no significant maintanence costs; however, the practice is only for new tile systems.
B16: Controlled drainage uses control structures located on existing tile lines. These control structures contain gates that can be lowered or raised depending on the desired height of the water table.
B17: Control structures need to be manipulated on a semi-annual basis to account for the field operations and growing season, or to increase drainage during a large rain event. Control structures
B18: do require proper engineering design in order to gain all benefits and reduce the impact on out-of-field systems like septic fields.
B20: This worksheet estimates the cost to install and maintain either a shallow drainage or a controlled drainage system. Net present values are provided over the 20-year life of the control structure.
B22: Let's get started.
B25: Which drainage management option would you like to examine?
B28: General Information: | G28: Final Costs:
B29: Would you like to autofill the worksheet with | I29: Min | J29: Avg | K29: Max
B30: default prices? | G30: Out of Pocket: | I30: =$F$92 -> 17936.8 | J30: =$G$92 -> 32286.24 | K30: =$H$92 -> 43560.8
B32: Is cost-sharing available? | G32: Cost Over Current Drainage Depth: | I32: =$F$94 -> 4961.6 | J32: =$G$94 -> 8930.88 | K32: =$H$94 -> 12049.6
G34: Percentage Increase in Drainage Cost: | I34: =$J$92 -> 0.382
B39: Shallow Drainage
B41: Step 1: Estimate tile drainage spacing
B42: The depth and spacing of a tile drainage system is based on a variety of site characteristics and will vary across fields and soil types.
B44: To estimate the difference in costs between your current tile drainage depth and shallow drainage, you will need some general information about the tile size as well as soil characteristics.
B45: For some information, it may be helpful to have some assistance from a local technical service provider (such as a public university extension agent).
B48: Tile drainage characteristics:
B50: Current tile depth: | D50: ='Core Cost Data'!$H$76 -> 4 | E50: ft | G50: Shallow tile depth: | H50: ='Core Cost Data'!$H$77 -> 3 | I50: ft
B52: Tile pipe size: | G52: Minimum water table depth: | H52: ='Core Cost Data'!$E$77 -> 1 | I52: ft
B54: Soil characteristics:
B56: Depth to soil restictive layer: | E56: ='Core Cost Data'!$B$78 -> 10 | F56: ft | H56: Estimated tile spacing:
B58: Soil drainage coefficent: | E58: ='Core Cost Data'!$E$76 -> 0.5 | F58: in / day | H58: Current tile depth: | J58: =ROUND($C$119,0) -> 47 | K58: ft
B60: Saturated hydraulic conductivity: | E60: ='Core Cost Data'!$B$77 -> 1 | F60: ft / day | H60: Shallow tile depth: | J60: =ROUND($C$131,0) -> 34 | K60: ft
B64: Step 2: Estimate tile drainage length
B65: The total length of tile needed to effectively drain an area is a function of the total area and tile drainage spacing. Additionally, more tile may be needed depending on
B66: other site characteristics, such as topographic features.
B68: This section will estimate the length of tile needed to drain a set amount of acres given the estimated spacings in Step 1.
B71: Amount of acres to be tile drained: | E71: 20 | F71: acres
B73: Estimated tile needed: | E73: Current depth: | F73: =ROUND($E$71*43560/$J$58,0) -> 18536 | G73: ft
E75: Shallow depth: | F75: =ROUND($E$71*43560/$J$60,0) -> 25624 | G75: ft
B78: Step 3: Estimate tile drainage cost
B79: The total cost of installing drainage is related to both the length of tile to be installed and the process used to place the tile in the field.
B81: This section will estimate the cost of installing the length of tile estimated in Step 2.
G84: Min | H84: Average | I84: Max
B85: Tile drainage installation method: | G85: =VLOOKUP($B$133,'Core Cost Data'!$B$70:$E$72,2) -> 0.4 | H85: =VLOOKUP($B$133,'Core Cost Data'!$B$70:$E$72,3) -> 0.76 | I85: =VLOOKUP($B$133,'Core Cost Data'!$B$70:$E$72,4) -> 1 | J85: / ft
F87: Tile Cost: | G87: ='Core Cost Data'!$C$73 -> 0.3 | H87: ='Core Cost Data'!$D$73 -> 0.5 | I87: ='Core Cost Data'!$E$73 -> 0.7 | J87: / ft
F89: Min | G89: Average | H89: Max
B90: Total Cost: | C90: Current Depth: | D90: =$F$73 -> 18536 | E90: ft | F90: =$D$90*($G$85+$G$87) -> 12975.2 | G90: =$D$90*($H$85+$H$87) -> 23355.36 | H90: =$D$90*($I$85+$I$87) -> 31511.2
J91: Percent Difference
C92: Shallow Depth: | D92: =$F$75 -> 25624 | E92: ft | F92: =$D$92*($G$85+$G$87) -> 17936.8 | G92: =$D$92*($H$85+$H$87) -> 32286.24 | H92: =$D$92*($I$85+$I$87) -> 43560.8 | J92: =ROUND($D$92/$D$90-1,3) -> 0.382 | K92: 0.382
J93: 0.382 | K93: 0.382
C94: Difference: | D94: =$D$92-$D$90 -> 7088 | E94: ft | F94: =$F$92-$F$90 -> 4961.6 | G94: =$G$92-$G$90 -> 8930.88 | H94: =$H$92-$H$90 -> 12049.6 | J94: 0.382 | K94: 0.382
B97: This is the end of the shallow drainage part of this worksheet. The total costs and nitrogen reduction information is summarized in the boxes at the top of this page.
B99: Shallow Drainage Calculations
B101: TileDepth1 | C101: =D50 -> 4
B102: TileDepth2 | C102: =H50 -> 3
B103: KSAT | C103: =E60 -> 1
B104: DrainC | C104: =E58 -> 0.5
B105: PipeSize | C105: 3
B106: PipeR | C106: =VLOOKUP(C105,'Core Cost Data'!B61:C68,2) -> 0.0167
B107: SRLDepth | C107: =E56 -> 10
B108: WTableMin | C108: =H52 -> 1
C109: Length | D109: DepthX | E109: DepthNew | F109: Depth0.5 | G109: Depth>0.5
B110: L1 | C110: =SQRT((4*$C$103*(($C$101-$C$108)^2)+8*$C$103*($C$107-$C$108)*($C$101-$C$108))/($C$104/12)) -> 77.76888838 | D110: =2*3.1415*($C$107-$C$101)/C110 -> 0.4847439739 | E110: =IF(D110<0.5,F110,G110) -> 3.106948319 | F110: =(3.1415*C110/8)/((LN(C110/(3.1415*$C$106))+(3.1415^2/(4*D110)+LN(D110/(2*3.1415))))) -> 3.106948319 | G110: =(3.1415*C110/8)/((LN(C110/(3.1415*$C$106))+((4*EXP(-2*D110)/(1-EXP(-2*D110)+(4*EXP(-6*D110))/(3-3*EXP(-6*D110))+(4*EXP(-10*D110)/(5-5*EXP(-10*D110))+(4*EXP(-14*D110)/(7-7*EXP(-14*D110))))))))) -> 3.230118743
B111: L2 | C111: =SQRT((4*$C$103*(($C$101-$C$108)^2)+8*$C$103*(E110)*($C$101-$C$108))/($C$104/12)) -> 51.51312679 | D111: =2*3.1415*($C$107-$C$101)/C111 -> 0.7318134687 | E111: =IF(D111<0.5,F111,G111) -> 2.507493525 | F111: =(3.1415*C111/8)/((LN(C111/(3.1415*$C$106))+(3.1415^2/(4*D111)+LN(D111/(2*3.1415))))) -> 2.494017854 | G111: =(3.1415*C111/8)/((LN(C111/(3.1415*$C$106))+((4*EXP(-2*D111)/(1-EXP(-2*D111)+(4*EXP(-6*D111))/(3-3*EXP(-6*D111))+(4*EXP(-10*D111)/(5-5*EXP(-10*D111))+(4*EXP(-14*D111)/(7-7*EXP(-14*D111))))))))) -> 2.507493525
B112: L3 | C112: =SQRT((4*$C$103*(($C$101-$C$108)^2)+8*$C$103*(E111)*($C$101-$C$108))/($C$104/12)) -> 48.04494011 | D112: =2*3.1415*($C$107-$C$101)/C112 -> 0.7846403786 | E112: 2.4017941 | F112: 2.39307634 | G112: 2.4017941
B113: L4 | C113: 47.40710286 | D113: 0.7951972959 | E113: 2.381877128 | F113: 2.373875944 | G113: 2.381877128
B114: L5 | C114: 47.28595168 | D114: 0.7972346683 | E114: 2.37807608 | F114: 2.370205886 | G114: 2.37807608
B115: L6 | C115: 47.26279532 | D115: 0.7976252725 | E115: 2.3773489 | F115: 2.369503559 | G115: 2.3773489
B116: L7 | C116: 47.25836398 | D116: 0.7977000646 | E116: 2.377209718 | F116: 2.369369127 | G116: 2.377209718
B117: L8 | C117: 47.25751578 | D117: 0.7977143822 | E117: 2.377183076 | F117: 2.369343394 | G117: 2.377183076
B118: L9 | C118: 47.25735341 | D118: 0.7977171229 | E118: 2.377177976 | F118: 2.369338468 | G118: 2.377177976
B119: L10 | C119: 47.25732233 | D119: 0.7977176475 | E119: 2.377177 | F119: 2.369337525 | G119: 2.377177
C121: Length | D121: DepthX | E121: DepthNew | F121: Depth0.5 | G121: Depth>0.5
B122: L1 | C122: =SQRT((4*$C$103*(($C$102-$C$108)^2)+8*$C$103*($C$107-$C$108)*($C$102-$C$108))/($C$104/12)) -> 61.96773354 | D122: =2*3.1415*($C$107-$C$102)/C122 -> 0.7097403356 | E122: =IF(D122<0.5,F122,G122) -> 2.925568873 | F122: =(3.1415*C122/8)/((LN(C122/(3.1415*$C$106))+(3.1415^2/(4*D122)+LN(D122/(2*3.1415))))) -> 2.907339617 | G122: =(3.1415*C122/8)/((LN(C122/(3.1415*$C$106))+((4*EXP(-2*D122)/(1-EXP(-2*D122)+(4*EXP(-6*D122))/(3-3*EXP(-6*D122))+(4*EXP(-10*D122)/(5-5*EXP(-10*D122))+(4*EXP(-14*D122)/(7-7*EXP(-14*D122))))))))) -> 2.925568873
B123: L2 | C123: =SQRT((4*$C$103*(($C$102-$C$108)^2)+8*$C$103*(E122)*($C$102-$C$108))/($C$104/12)) -> 38.82548709 | D123: 1.132786819 | E123: =IF(D123<0.5,F123,G123) -> 2.156753018 | F123: =(3.1415*C123/8)/((LN(C123/(3.1415*$C$106))+(3.1415^2/(4*D123)+LN(D123/(2*3.1415))))) -> 2.155988791 | G123: =(3.1415*C123/8)/((LN(C123/(3.1415*$C$106))+((4*EXP(-2*D123)/(1-EXP(-2*D123)+(4*EXP(-6*D123))/(3-3*EXP(-6*D123))+(4*EXP(-10*D123)/(5-5*EXP(-10*D123))+(4*EXP(-14*D123)/(7-7*EXP(-14*D123))))))))) -> 2.156753018
B124: L3 | C124: 34.81656443 | D124: 1.26322056 | E124: 1.997363585 | F124: 1.996877743 | G124: 1.997363585
B125: L4 | C125: 33.92620841 | D125: 1.296372394 | E125: 1.96059038 | F125: 1.960111252 | G125: 1.96059038
B126: L5 | C126: 33.71745403 | D126: 1.304398605 | E126: 1.951892984 | F126: 1.951412583 | G126: 1.951892984
B127: L6 | C127: 33.66789132 | D127: 1.306318818 | E127: 1.949823786 | F127: 1.949342922 | G127: 1.949823786
B128: L7 | C128: 33.6560891 | D128: 1.306776906 | E128: 1.949330813 | F128: 1.94884983 | G128: 1.949330813
B129: L8 | C129: 33.65327669 | D129: 1.306886114 | E129: 1.949213326 | F129: 1.948732314 | G129: 1.949213326
B130: L9 | C130: 33.6526064 | D130: 1.306912145 | E130: 1.949185324 | F130: 1.948704305 | G130: 1.949185324
B131: L10 | C131: 33.65244663 | D131: 1.306918349 | E131: 1.94917865 | F131: 1.948697629 | G131: 1.94917865
B133: 2
B149: General Information: | G149: Final Costs:
B150: Would you like to autofill the worksheet with | I150: Min | J150: Avg | K150: Max
B151: default prices? | G151: Out of Pocket (Year 1): | I151: =$D$185 -> 660 | J151: =$E$185 -> 1656.03 | K151: =$F$185 -> 2632.63
B153: Is cost-sharing available? | G153: Yearly Maintainence: | I153: =$H$201 -> 15 | J153: =$I$201 -> 21.3 | K153: =$J$201 -> 30
G155: Annualized costs over 20 year lifespan: | I155: =$F$238 -> 69.91662554 | J155: =$G$238 -> 148.9656617 | K155: =$H$238 -> 228.6673133
B160: Controlled Drainage
B162: Step 1: Design and Installation
B164: Controlled drainage systems require two control structures for every twenty acres of drainage area in order to control tile line flow. Generally, a service agency or engineering firm
B165: will need be contracted to design the drainage system and correctly place control structures.
B169: Number of acres in drainage area: | D169: 20 | F169: Number of control structures needed (1 per 20 acres): | I169: =ROUNDUP($D$169/20,0) -> 1
H171: Min | I171: Average | J171: Max
F172: Control structure cost per unit: | H172: ='Core Cost Data'!$B$199 -> 500 | I172: ='Core Cost Data'!$C$199 -> 1250 | J172: ='Core Cost Data'!$D$199 -> 2000
F174: Total cost for control structures: | H174: =$H$172*$I$169 -> 500 | I174: =$I$172*$I$169 -> 1250 | J174: =$J$172*$I$169 -> 2000
B176: Contractor costs to install control units: | E176: =$I$169 * 'Core Cost Data'!$F$201 -> 4 | F176: hours | G176: @ | H176: ='Core Cost Data'!$B$201 -> 40 | I176: ='Core Cost Data'!$C$201 -> 93.35 | J176: ='Core Cost Data'!$D$201 -> 150 | K176: per hour
F178: Total installation costs: | H178: =$E$176*$H$176 -> 160 | I178: =$E$176*$I$176 -> 373.4 | J178: =$E$176*$J$176 -> 600
D182: Min | E182: Average | F182: Max
B183: Controlled drainage system design costs: | D183: ='Core Cost Data'!$B$200 -> 0 | E183: ='Core Cost Data'!$C$200 -> 32.63 | F183: ='Core Cost Data'!$D$200 -> 32.63
B185: Total Cost for Year One: | D185: =$H$174+$H$178+$D$183 -> 660 | E185: =$I$174+$I$178+$E$183 -> 1656.03 | F185: =$J$174+$J$178+$F$183 -> 2632.63
B189: Step 2: Maintenance and Gate Replacement
B191: Control structures will need to be adjusted seasonally to account for field operations or large rainfall events. In additional, gates in the control structures will need
B192: to be replaced every 8 years to maintain correct structure operation.
B197: Yearly maintenance:
H198: Min | I198: Average | J198: Max
B199: Adjust gates to control drainage level: | E199: =$I$169* 'Core Cost Data'!$B$202 -> 1.5 | F199: hrs | G199: at | H199: ='Core Cost Data'!$B$92 -> 10 | I199: ='Core Cost Data'!$C$92 -> 14.2 | J199: ='Core Cost Data'!$D$92 -> 20 | K199: per hour
G201: Total: | H201: =$H$199*$E$199 -> 15 | I201: =$I$199*$E$199 -> 21.3 | J201: =$J$199*$E$199 -> 30
B203: Every 8 years:
B205: Replace gates: | C205: ='Core Cost Data'!$F$204 -> 5 | D205: gates per | E205: =$I$169 -> 1 | F205: structures | G205: at | H205: ='Core Cost Data'!$B$204 -> 14.17 | I205: ='Core Cost Data'!$C$204 -> 14.75 | J205: ='Core Cost Data'!$D$204 -> 15.32 | K205: per gate
G207: Total: | H207: =$C$205*$E$205*$H$205 -> 70.85 | I207: =$C$205*$E$205*$I$205 -> 73.75 | J207: =$C$205*$E$205*$J$205 -> 76.6
B211: This is the end of the controlled drainage part of this worksheet. The total costs and nitrogen reduction information is summarized in the boxes at the top of this page.
C215: Cost | F215: Net Present Value | J215: Discount rate | K215: ='Core Cost Data'!$H$96 -> 0.04
B216: Year | C216: Min | D216: Average | E216: Max | F216: Min | G216: Average | H216: Max
B217: 1 | C217: =D185 -> 660 | D217: =E185 -> 1656.03 | E217: =F185 -> 2632.63 | F217: =C217/(1+$K$215)^($B217-1) -> 660 | G217: =D217/(1+$K$215)^($B217-1) -> 1656.03 | H217: 2632.63
B218: 2 | C218: =$H$201 -> 15 | D218: =$I$201 -> 21.3 | E218: =$J$201 -> 30 | F218: =C218/(1+$K$215)^($B218-1) -> 14.42307692 | G218: =D218/(1+$K$215)^($B218-1) -> 20.48076923 | H218: =E218/(1+$K$215)^($B218-1) -> 28.84615385
B219: 3 | C219: =$H$201 -> 15 | D219: =$I$201 -> 21.3 | E219: =$J$201 -> 30 | F219: 13.8683432 | G219: 19.69304734 | H219: 27.73668639
B220: 4 | C220: 15 | D220: 21.3 | E220: 30 | F220: 13.33494538 | G220: 18.93562244 | H220: 26.66989076
B221: 5 | C221: 15 | D221: 21.3 | E221: 30 | F221: 12.82206287 | G221: 18.20732927 | H221: 25.64412573
B222: 6 | C222: 15 | D222: 21.3 | E222: 30 | F222: 12.3289066 | G222: 17.50704737 | H222: 24.6578132
B223: 7 | C223: 15 | D223: 21.3 | E223: 30 | F223: 11.85471789 | G223: 16.8336994 | H223: 23.70943577
B224: 8 | C224: =$H$201+H$207 -> 85.85 | D224: =$H$201+I$207 -> 88.75 | E224: 91.6 | F224: 65.23894426 | G224: 67.44270592 | H224: 69.60847169
B225: 9 | C225: 15 | D225: 21.3 | E225: 30 | F225: 10.96035308 | G225: 15.56370137 | H225: 21.92070615
B226: 10 | C226: 15 | D226: 21.3 | E226: 30 | F226: 10.53880103 | G226: 14.96509747 | H226: 21.07760207
B227: 11 | C227: 15 | D227: 21.3 | E227: 30 | F227: 10.13346253 | G227: 14.3895168 | H227: 20.26692506
B228: 12 | C228: 15 | D228: 21.3 | E228: 30 | F228: 9.743713973 | G228: 13.83607384 | H228: 19.48742795
B229: 13 | C229: 15 | D229: 21.3 | E229: 30 | F229: 9.368955744 | G229: 13.30391716 | H229: 18.73791149
B230: 14 | C230: 15 | D230: 21.3 | E230: 30 | F230: 9.008611292 | G230: 12.79222803 | H230: 18.01722258
B231: 15 | C231: 15 | D231: 21.3 | E231: 30 | F231: 8.662126242 | G231: 12.30021926 | H231: 17.32425248
B232: 16 | C232: =$H$201+H$207 -> 85.85 | D232: =$H$201+I$207 -> 88.75 | E232: 91.6 | F232: 47.66945756 | G232: 49.27972462 | H232: 50.86222845
B233: 17 | C233: 15 | D233: 21.3 | E233: 30 | F233: 8.008622635 | G233: 11.37224414 | H233: 16.01724527
B234: 18 | C234: 15 | D234: 21.3 | E234: 30 | F234: 7.700598688 | G234: 10.93485014 | H234: 15.40119738
B235: 19 | C235: 15 | D235: 21.3 | E235: 30 | F235: 7.404421815 | G235: 10.51427898 | H235: 14.80884363
B236: 20 | C236: 15 | D236: 21.3 | E236: 30 | F236: 7.119636361 | G236: 10.10988363 | H236: 14.23927272
E237: Total | F237: =SUM(F217:F236) -> 950.1897581 | G237: =SUM(G217:G236) -> 2024.491956 | H237: 3107.663413
E238: Annualized | F238: =(F237*$K$215)/(1-(1+$K$215)^(-1*$B$236)) -> 69.91662554 | G238: =(G237*$K$215)/(1-(1+$K$215)^(-1*$B$236)) -> 148.9656617 | H238: 228.6673133
I250: =$F$92 -> 17936.8 | J250: =$G$92 -> 32286.24 | K250: =$H$92 -> 43560.8
I252: =$F$94 -> 4961.6 | J252: =$G$94 -> 8930.88 | K252: =$H$94 -> 12049.6
I254: =$J$92 -> 0.382
B268: Tile drainage characteristics:
B270: Current tile depth: | D270: ='Core Cost Data'!$H$76 -> 4 | E270: ft | G270: Shallow tile depth: | H270: ='Core Cost Data'!$H$77 -> 3 | I270: ft
B272: Tile pipe size: | G272: Minimum water table depth: | H272: ='Core Cost Data'!$E$77 -> 1 | I272: ft
B274: Soil characteristics:
B276: Depth to soil restictive layer: | E276: ='Core Cost Data'!$B$78 -> 10 | F276: ft | H276: Estimated tile spacing:
B278: Soil drainage coefficent: | E278: ='Core Cost Data'!$E$76 -> 0.5 | F278: in / day | H278: Current tile depth: | J278: =ROUND($C$119,0) -> 47 | K278: ft
B280: Saturated hydraulic conductivity: | E280: ='Core Cost Data'!$B$77 -> 1 | F280: ft / day | H280: Shallow tile depth: | J280: =ROUND($C$131,0) -> 34 | K280: ft
B291: Amount of acres to be tile drained: | E291: ='Core Cost Data'!$B$76 -> 40 | F291: acres
B293: Estimated tile needed: | E293: Current depth: | F293: =ROUND($E$71*43560/$J$58,0) -> 18536 | G293: ft
E295: Shallow depth: | F295: =ROUND($E$71*43560/$J$60,0) -> 25624 | G295: ft
B298: Step 3: Estimate tile drainage cost
B299: The total cost of installing drainage is related to both the length of tile to be installed and the process used to place the tile in the field.
B301: This section will estimate the cost of installing the length of tile estimated in Step 2.
G304: Min | H304: Average | I304: Max
B305: Tile drainage installation method: | G305: =VLOOKUP($B$133,'Core Cost Data'!$B$70:$E$72,2) -> 0.4 | H305: =VLOOKUP($B$133,'Core Cost Data'!$B$70:$E$72,3) -> 0.76 | I305: =VLOOKUP($B$133,'Core Cost Data'!$B$70:$E$72,4) -> 1 | J305: / ft
F307: Tile Cost: | G307: ='Core Cost Data'!$C$73 -> 0.3 | H307: ='Core Cost Data'!$D$73 -> 0.5 | I307: ='Core Cost Data'!$E$73 -> 0.7 | J307: / ft
F309: Min | G309: Average | H309: Max
B310: Total Cost: | C310: Current Depth: | D310: =$F$73 -> 18536 | E310: ft | F310: =$D$90*($G$85+$G$87) -> 12975.2 | G310: =$D$90*($H$85+$H$87) -> 23355.36 | H310: =$D$90*($I$85+$I$87) -> 31511.2
J311: Percent Difference
C312: Shallow Depth: | D312: =$F$75 -> 25624 | E312: ft | F312: =$D$92*($G$85+$G$87) -> 17936.8 | G312: =$D$92*($H$85+$H$87) -> 32286.24 | H312: =$D$92*($I$85+$I$87) -> 43560.8 | J312: =ROUND($D$92/$D$90-1,3) -> 0.382
C314: Difference: | D314: =$D$92-$D$90 -> 7088 | E314: ft | F314: =$F$92-$F$90 -> 4961.6 | G314: =$G$92-$G$90 -> 8930.88 | H314: =$H$92-$H$90 -> 12049.6
I331: Min | J331: Avg | K331: Max
I332: =$D$185 -> 660 | J332: =$E$185 -> 1656.03 | K332: =$F$185 -> 2632.63
I334: =$H$201 -> 15 | J334: =$I$201 -> 21.3 | K334: =$J$201 -> 30
I336: =$F$238 -> 69.91662554 | J336: =$G$238 -> 148.9656617 | K336: =$H$238 -> 228.6673133
B350: Number of acres in drainage area: | D350: ='Core Cost Data'!$G$199 -> 25 | F350: Number of control structures needed (1 per 20 acres): | I350: =ROUNDUP($D$169/20,0) -> 1
H352: Min | I352: Average | J352: Max
F353: Control structure cost per unit: | H353: ='Core Cost Data'!$B$199 -> 500 | I353: ='Core Cost Data'!$C$199 -> 1250 | J353: ='Core Cost Data'!$D$199 -> 2000
F355: Total cost for control structures: | H355: =$H$172*$I$169 -> 500 | I355: =$I$172*$I$169 -> 1250 | J355: =$J$172*$I$169 -> 2000
B357: Contractor costs to install control units: | E357: =$I$169 * 'Core Cost Data'!$F$201 -> 4 | F357: hours | G357: @ | H357: ='Core Cost Data'!$B$201 -> 40 | I357: ='Core Cost Data'!$C$201 -> 93.35 | J357: ='Core Cost Data'!$D$201 -> 150 | K357: per hour
F359: Total installation costs: | H359: =$E$176*$H$176 -> 160 | I359: =$E$176*$I$176 -> 373.4 | J359: =$E$176*$J$176 -> 600
D363: Min | E363: Average | F363: Max
B364: Controlled drainage system design costs: | D364: ='Core Cost Data'!$B$200 -> 0 | E364: ='Core Cost Data'!$C$200 -> 32.63 | F364: ='Core Cost Data'!$D$200 -> 32.63
B366: Total Cost for Year One: | D366: =$H$174+$H$178+$D$183 -> 660 | E366: =$I$174+$I$178+$E$183 -> 1656.03 | F366: =$J$174+$J$178+$F$183 -> 2632.63
H379: Min | I379: Average | J379: Max
B380: Adjust gates to control drainage level: | E380: =$I$169* 'Core Cost Data'!$B$202 -> 1.5 | F380: hrs | G380: at | H380: ='Core Cost Data'!$B$92 -> 10 | I380: ='Core Cost Data'!$C$92 -> 14.2 | J380: ='Core Cost Data'!$D$92 -> 20 | K380: per hour
G382: Total: | H382: =$H$199*$E$199 -> 15 | I382: =$I$199*$E$199 -> 21.3 | J382: =$J$199*$E$199 -> 30
B384: Every 8 years:
B386: Replace gates: | C386: ='Core Cost Data'!$F$204 -> 5 | D386: gates per | E386: =$I$169 -> 1 | F386: structures | G386: at | H386: ='Core Cost Data'!$B$204 -> 14.17 | I386: ='Core Cost Data'!$C$204 -> 14.75 | J386: ='Core Cost Data'!$D$204 -> 15.32 | K386: per gate
G388: Total: | H388: =$C$205*$E$205*$H$205 -> 70.85 | I388: =$C$205*$E$205*$I$205 -> 73.75 | J388: =$C$205*$E$205*$J$205 -> 76.6
J396: Discount rate | K396: ='Core Cost Data'!$H$96 -> 0.04

Sheet Buffers
B8: Vegetative buffers
B10: Vegetative buffers are areas of land in between crop fields and streams (or other water bodies) that are planted with a variety of grasses and/or trees.
B11: Buffers intercept surface waterflow and allow the planted vegetation to absorb and filter the water before releasing it into the neighboring stream.
B12: The width and length of the buffer will be dependent on the desired nutrient reduction, soil and topography characteristics and management goals.
B14: In addition to nutrient reductions, buffers can provide a suite of non-market benefits including wildlife and pollinator habitat, flood protection,
B15: and in some cases, can provide habitat for predator insect species that prey on crop pests.
B17: New buffer designs (called resaturated buffers) are available that can be used to treat tile drainage by using a control structure to bring tile waterflow to the
B18: surface in order to filter it through the vegetated buffer.
B20: This worksheet estimates the cost of designing, establishing and maintaining a vegetative or restaturated buffer over a 20-year lifespace.
B22: Let's get started.
B26: General Information: | E26: Final Costs:
B27: Would you like to autofill the worksheet with | G27: Min | H27: Avg | I27: Max
B28: default prices? | E28: Out of Pocket (Year 1): | G28: =$F$83+$D$109 -> 414.33 | H28: =$G$83+$E$109 -> 480.255 | I28: =$H$83+$F$109 -> 1161.18
B30: Is cost-sharing available? | E30: Yearly Maintainence: | G30: =$E$131 -> 180 | H30: =$F$131 -> 205.05 | I30: =$G$131 -> 240
E32: Annualized costs (20 yrs): | G32: =$F$177 -> 204.4424116 | H32: =$G$177 -> 233.5020656 | I32: =$H$177 -> 317.3820368
B37: Step 1: Design and Installation
B39: In general, vegetative buffers should be at least 66 ft wide in order for water to be held in the root zone long enough to remove nitrates. A width of 100 ft or more is recommended if wildlife habitat is desired.
B40: Site preparation for buffer establishment should begin in the fall prior to spring planting using an herbicide followed by disking in the spring.
B44: Length of edge of field: | D44: ='Core Cost Data'!$K$239 -> 1000 | E44: feet | F44: Buffer width: | G44: 66 | H44: feet
B46: Total buffer area: | D46: =ROUND($D$44*$G$44/43560,1) -> 1.5 | E46: acres | F46: Land rent: | G46: 100 | H46: /acre
F48: Min | G48: Average | H48: Max
B49: Cost to design buffer: | D49: ='Core Cost Data'!$F$242*$D$46 -> 12 | E49: hours at | F49: ='Core Cost Data'!$G$241 -> 0 | G49: ='Core Cost Data'!$G$241 -> 0 | H49: ='Core Cost Data'!$G$240 -> 50 | I49: /hour
B53: Year 1: Buffer establishment
F54: Min | G54: Average | H54: Max
B55: Site preparation costs: | D55: Disking (tandem) | F55: ='Core Cost Data'!$B$87 -> 7.5 | G55: ='Core Cost Data'!$C$87 -> 14.65 | H55: ='Core Cost Data'!$D$87 -> 20 | I55: /acre
D57: Site Clearing | E57: + | F57: ='Core Cost Data'!$B$94 -> 10 | G57: ='Core Cost Data'!$C$94 -> 18.35 | H57: ='Core Cost Data'!$D$94 -> 30 | I57: /acre
D59: Herbicide (varies) | E59: + | F59: ='Core Cost Data'!$I$254 -> 18.12 | G59: ='Core Cost Data'!$J$254 -> 20.62 | H59: ='Core Cost Data'!$K$254 -> 28.12 | I59: /acre
D61: Harrowing | E61: + | F61: ='Core Cost Data'!$B$88 -> 4 | G61: ='Core Cost Data'!$C$88 -> 9.35 | H61: ='Core Cost Data'!$D$88 -> 13 | I61: /acre
B63: Planting costs:
D64: Seeding (drill) | E64: + | F64: ='Core Cost Data'!$B$100 -> 10 | G64: ='Core Cost Data'!$C$100 -> 15.9 | H64: ='Core Cost Data'!$D$100 -> 25 | I64: /acre
D66: Seed mix
D68: Seed costs | F68: + | G68: =+$C$150 -> 54 | H68: /acre
B71: Fertlizer costs:
D72: Fertlizer spreading | E72: + | F72: ='Core Cost Data'!$B$89 -> 3 | G72: ='Core Cost Data'!$C$89 -> 6.25 | H72: ='Core Cost Data'!$D$89 -> 10 | I72: /acre
D74: Lime (tons) | E74: + | F74: ='Core Cost Data'!$B$107 -> 13.5 | G74: ='Core Cost Data'!$C$107 -> 16.75 | H74: ='Core Cost Data'!$D$107 -> 20.5 | I74: @ | J74: ='Core Cost Data'!$B$248 -> 3 | K74: tons/acre
D76: Phosphorus | E76: + | F76: ='Core Cost Data'!$B$105 -> 0.45 | G76: ='Core Cost Data'!$C$105 -> 0.48 | H76: ='Core Cost Data'!$D$105 -> 0.51 | I76: @ | J76: ='Core Cost Data'!$B$246 -> 30 | K76: lbs/acre
D78: Potash | E78: + | F78: ='Core Cost Data'!$B$106 -> 0.39 | G78: ='Core Cost Data'!$C$106 -> 0.41 | H78: ='Core Cost Data'!$D$106 -> 0.43 | I78: @ | J78: ='Core Cost Data'!$B$247 -> 40 | K78: lbs/acre
B80: Labor costs:
D81: Labor | E81: + | F81: ='Core Cost Data'!$B$92 -> 10 | G81: ='Core Cost Data'!$C$92 -> 14.2 | H81: ='Core Cost Data'!$D$92 -> 20 | I81: @ | J81: ='Core Cost Data'!$F$243 -> 0 | K81: hours
B83: Total Costs with rent: | F83: =$D$49*$F$49+$F$81*$J$81+($F$78*$J$78+$F$76*$J$76+$F$74*$J$74+$F$72+$G$68+$F$64+$F$61+$F$59+$F$57+$F$55+$G$46)*$D$46 -> 414.33 | G83: =$D$49*$G$49+$G$81*$J$81+($G$78*$J$78+$G$76*$J$76+$G$74*$J$74+$G$72+$G$68+$G$64+$G$61+$G$59+$G$57+$G$55+$G$46)*$D$46 -> 480.255 | H83: =$D$49*$H$49+$H$81*$J$81+($H$78*$J$78+$H$76*$J$76+$H$74*$J$74+$H$72+$G$68+$H$64+$H$61+$H$59+$H$57+$H$55+$G$46)*$D$46 -> 1161.18
B87: Step 2: Resaturated buffers
B89: In a tile drained landscape, such as in Iowa, vegetative buffers are not as effective at removing nutrients from groundwater since tile pipes bypass the buffer and discharge subsurface flow
B90: directly into surface streams. In resaturated buffer systems, some of this tile flow is redirected back to the surface, so that it may pass through the buffer vegetation.
B94: Are you considering using a resaturated buffer? | D94: 0 | E94: 0
B97: Number of acres in drainage area: | E97: ='Core Cost Data'!$K$241 -> 20 | G97: Number of control structures needed (2 per 40 acres): | K97: =ROUNDUP($E$97/40,0)*2 -> 2
B100: Resaturated buffer installation Costs:
D102: Min | E102: Average | F102: Max
B103: Cost of control structures: | D103: ='Core Cost Data'!$F$251 -> 500 | E103: ='Core Cost Data'!$G$251 -> 1250 | F103: ='Core Cost Data'!$H$251 -> 2000 | G103: per structure x | I103: =$K$97 -> 2 | J103: structures
B105: Cost of connecting tile pipe: | D105: + | E105: ='Core Cost Data'!$F$250 -> 890 | G105: @ 1000 ft per two control structures | I105: x | J105: =ROUND($K$97/2,0) -> 1 | K105: pairs
B107: Contracting costs (backhoe): | C107: + | D107: ='Core Cost Data'!$F$252 -> 40 | E107: ='Core Cost Data'!$G$252 -> 93.35 | F107: ='Core Cost Data'!$H$252 -> 150 | G107: /hour for | H107: ='Core Cost Data'!$J$252 -> 8 | I107: hours
B109: Total installation costs: | D109: =IF($D$94=1,$D$103*$I$103+$E$105*$J$105+$D$107*$H$107,0) -> 0 | E109: =IF($D$94=1,$E$103*$I$103+$E$105*$J$105+$E$107*$H$107,0) -> 0 | F109: =IF($D$94=1,$F$103*$I$103+$E$105*$J$105+$F$107*$H$107,0) -> 0
B113: Step 3: Maintenance
B115: Vegetative buffers do require regular maintenance in order to remain effective. The buffer system should be mowed twice yearly.
B117: If a resaturated buffer system is used, the structures controlling the flow of tile drainage to the surface will need to be adjusted seasonally. In addition, gates within the control structures will need
B118: to be replaced every 8 years.
B122: Yearly maintenance cost
F124: Min | G124: Average | H124: Max
B125: Mowing buffer (twice yearly): | F125: ='Core Cost Data'!$B$94 -> 10 | G125: ='Core Cost Data'!$C$94 -> 18.35 | H125: ='Core Cost Data'!$D$94 -> 30 | I125: dollars/acre | K125: x | L125: ='Core Cost Data'!$B$250 -> 2 | M125: times
B127: If using resaturated buffer | J127: Min | K127: Average | L127: Max
B128: Adjusting and servicing control structures: | G128: ='Core Cost Data'!$F$246 -> 3 | H128: hours | I128: x | J128: ='Core Cost Data'!$B$92 -> 10 | K128: ='Core Cost Data'!$C$92 -> 14.2 | L128: ='Core Cost Data'!$D$92 -> 20 | M128: dollars/hour
E130: Min | F130: Average | G130: Max
B131: Total yearly cost with rent: | E131: =IF($D$94=1,$F$125*$L$125*$D$46+$G$46*$D$46+$G$128*$J$128,$F$125*$L$125*$D$46+$G$46*$D$46) -> 180 | F131: =IF($D$94=1,$G$125*$L$125*$D$46+$G$46*$D$46+$G$128*$K$128,$G$125*$L$125*$D$46+$G$46*$D$46) -> 205.05 | G131: =IF($D$94=1,$H$125*$L$125*$D$46+$G$46*$D$46+$G$128*$L$128,$H$125*$L$125*$D$46+$G$46*$D$46) -> 240 | H131: dollars
B134: Extended maintenance costs
B136: Every 8 - years if using resaturated buffer
I137: Min | J137: Max
B138: Replace control structure gates: | F138: ='Core Cost Data'!$F$247 -> 5 | G138: gates | H138: x | I138: ='Core Cost Data'!$I$247 -> 14.17 | J138: ='Core Cost Data'!$K$247 -> 15.32 | K138: dollars/gate | M138: x | N138: =$K$97 -> 2 | O138: structures
H140: Min | I140: Average | J140: Max
B141: Total extended maintenance costs: | H141: =IF(D94=1,F138*I138*N138,0) -> 0 | I141: =IF(D94=1,F138*((I138+J138)/2)*N138,0) -> 0 | J141: =IF(D94=1,F138*J138*N138,0) -> 0 | K141: dollars
B146: This is the end of the stream buffers worksheet. The total costs and nitrogen reduction information is summarized in the boxes at the top of this page.
B149: Seed Mix | C149: Cost/Acre
B150: 2 | C150: =VLOOKUP(B150,'Core Cost Data'!A238:C242,3) -> 54
C154: Costs | F154: Net Present Value | J154: Discount Rate | K154: ='Core Cost Data'!$H$96 -> 0.04
B155: Year | C155: Min | D155: Average | E155: Max | F155: Min | G155: Average | H155: Max
B156: 1 | C156: =IF($D$94=1,F83+D109,F83) -> 414.33 | D156: =IF($D$94=1,G83+E109,G83) -> 480.255 | E156: 1161.18 | F156: =C156/(1+$K$154)^($B156-1) -> 414.33 | G156: =D156/(1+$K$154)^($B156-1) -> 480.255 | H156: =E156/(1+$K$154)^($B156-1) -> 1161.18
B157: 2 | C157: =E$131 -> 180 | D157: =F$131 -> 205.05 | E157: 240 | F157: =C157/(1+$K$154)^($B157-1) -> 173.0769231 | G157: =D157/(1+$K$154)^($B157-1) -> 197.1634615 | H157: =E157/(1+$K$154)^($B157-1) -> 230.7692308
B158: 3 | C158: =E$131 -> 180 | D158: =F$131 -> 205.05 | E158: =G$131 -> 240 | F158: 166.4201183 | G158: 189.5802515 | H158: 221.8934911
B159: 4 | C159: 180 | D159: 205.05 | E159: 240 | F159: 160.0193446 | G159: 182.2887033 | H159: 213.3591261
B160: 5 | C160: 180 | D160: 205.05 | E160: 240 | F160: 153.8647544 | G160: 175.2775994 | H160: 205.1530058
B161: 6 | C161: 180 | D161: 205.05 | E161: 240 | F161: 147.9468792 | G161: 168.5361532 | H161: 197.2625056
B162: 7 | C162: 180 | D162: 205.05 | E162: 240 | F162: 142.2566146 | G162: 162.0539935 | H162: 189.6754862
B163: 8 | C163: =E$131+H$141 -> 180 | D163: =F$131+I$141 -> 205.05 | E163: 240 | F163: 136.7852064 | G163: 155.8211476 | H163: 182.3802752
B164: 9 | C164: 180 | D164: 205.05 | E164: 240 | F164: 131.5242369 | G164: 149.8280265 | H164: 175.3656492
B165: 10 | C165: 180 | D165: 205.05 | E165: 240 | F165: 126.4656124 | G165: 144.0654101 | H165: 168.6208165
B166: 11 | C166: 180 | D166: 205.05 | E166: 240 | F166: 121.6015504 | G166: 138.5244328 | H166: 162.1354005
B167: 12 | C167: 180 | D167: 205.05 | E167: 240 | F167: 116.9245677 | G167: 133.19657 | H167: 155.8994236
B168: 13 | C168: 180 | D168: 205.05 | E168: 240 | F168: 112.4274689 | G168: 128.073625 | H168: 149.9032919
B169: 14 | C169: 180 | D169: 205.05 | E169: 240 | F169: 108.1033355 | G169: 123.1477164 | H169: 144.1377807
B170: 15 | C170: 180 | D170: 205.05 | E170: 240 | F170: 103.9455149 | G170: 118.4112657 | H170: 138.5940199
B171: 16 | C171: =E$131+H$141 -> 180 | D171: =F$131+I$141 -> 205.05 | E171: 240 | F171: 99.94761049 | G171: 113.8569863 | H171: 133.2634807
B172: 17 | C172: 180 | D172: 205.05 | E172: 240 | F172: 96.10347162 | G172: 109.4778714 | H172: 128.1379622
B173: 18 | C173: 180 | D173: 205.05 | E173: 240 | F173: 92.40718425 | G173: 105.2671841 | H173: 123.209579
B174: 19 | C174: 180 | D174: 205.05 | E174: 240 | F174: 88.85306178 | G174: 101.2184462 | H174: 118.470749
B175: 20 | C175: 180 | D175: 205.05 | E175: 240 | F175: 85.43563633 | G175: 97.32542905 | H175: 113.9141818
E176: Total | F176: =SUM(F156:F175) -> 2778.439092 | G176: =SUM(G156:G175) -> 3173.369274 | H176: 4313.325456
E177: Annualized | F177: =$K$154*F176/(1-(1+$K$154)^(-1*$B$175)) -> 204.4424116 | G177: =$K$154*G176/(1-(1+$K$154)^(-1*$B$175)) -> 233.5020656 | H177: 317.3820368
G192: =$F$83+$D$109 -> 414.33 | H192: =$G$83+$E$109 -> 480.255 | I192: =$H$83+$F$109 -> 1161.18
G194: =$E$131 -> 180 | H194: =$F$131 -> 205.05 | I194: =$G$131 -> 240
G196: =$F$177 -> 204.4424116 | H196: =$G$177 -> 233.5020656 | I196: =$H$177 -> 317.3820368
B208: Length of edge of field: | D208: ='Core Cost Data'!$K$239 -> 1000 | E208: feet | F208: Buffer width: | G208: 66 | H208: feet
B210: Total buffer area: | D210: =ROUND($D$44*$G$44/43560,1) -> 1.5 | E210: acres | F210: Land rent: | G210: ='Core Cost Data'!$H$94 -> 230 | H210: /acre
F212: Min | G212: Average | H212: Max
B213: Cost to design buffer: | D213: ='Core Cost Data'!$F$242*$D$46 -> 12 | E213: hours at | F213: ='Core Cost Data'!$G$241 -> 0 | G213: ='Core Cost Data'!$G$241 -> 0 | H213: ='Core Cost Data'!$G$240 -> 50 | I213: /hour
B217: Year 1: Buffer establishment
F218: Min | G218: Average | H218: Max
B219: Site preparation costs: | D219: Disking (tandem) | F219: ='Core Cost Data'!$B$87 -> 7.5 | G219: ='Core Cost Data'!$C$87 -> 14.65 | H219: ='Core Cost Data'!$D$87 -> 20 | I219: /acre
D221: Site Clearing | E221: + | F221: ='Core Cost Data'!$B$94 -> 10 | G221: ='Core Cost Data'!$C$94 -> 18.35 | H221: ='Core Cost Data'!$D$94 -> 30 | I221: /acre
D223: Herbicide (varies) | E223: + | F223: ='Core Cost Data'!$I$254 -> 18.12 | G223: ='Core Cost Data'!$J$254 -> 20.62 | H223: ='Core Cost Data'!$K$254 -> 28.12 | I223: /acre
D225: Harrowing | E225: + | F225: ='Core Cost Data'!$B$88 -> 4 | G225: ='Core Cost Data'!$C$88 -> 9.35 | H225: ='Core Cost Data'!$D$88 -> 13 | I225: /acre
B227: Planting costs:
D228: Seeding (drill) | E228: + | F228: ='Core Cost Data'!$B$100 -> 10 | G228: ='Core Cost Data'!$C$100 -> 15.9 | H228: ='Core Cost Data'!$D$100 -> 25 | I228: /acre
D230: Seed mix
D232: Seed costs | F232: + | G232: =+$C$150 -> 54 | H232: /acre
B235: Fertlizer costs:
D236: Fertlizer spreading | E236: + | F236: ='Core Cost Data'!$B$89 -> 3 | G236: ='Core Cost Data'!$C$89 -> 6.25 | H236: ='Core Cost Data'!$D$89 -> 10 | I236: /acre
D238: Lime (tons) | E238: + | F238: ='Core Cost Data'!$B$107 -> 13.5 | G238: ='Core Cost Data'!$C$107 -> 16.75 | H238: ='Core Cost Data'!$D$107 -> 20.5 | I238: @ | J238: ='Core Cost Data'!$B$248 -> 3 | K238: tons/acre
D240: Phosphorus | E240: + | F240: ='Core Cost Data'!$B$105 -> 0.45 | G240: ='Core Cost Data'!$C$105 -> 0.48 | H240: ='Core Cost Data'!$D$105 -> 0.51 | I240: @ | J240: ='Core Cost Data'!$B$246 -> 30 | K240: lbs/acre
D242: Potash | E242: + | F242: ='Core Cost Data'!$B$106 -> 0.39 | G242: ='Core Cost Data'!$C$106 -> 0.41 | H242: ='Core Cost Data'!$D$106 -> 0.43 | I242: @ | J242: ='Core Cost Data'!$B$247 -> 40 | K242: lbs/acre
B244: Labor costs:
D245: Labor | E245: + | F245: ='Core Cost Data'!$B$92 -> 10 | G245: ='Core Cost Data'!$C$92 -> 14.2 | H245: ='Core Cost Data'!$D$92 -> 20 | I245: @ | J245: ='Core Cost Data'!$F$243 -> 0 | K245: hours
B247: Total Costs with rent: | F247: =$D$49*$F$49+$F$81*$J$81+($F$78*$J$78+$F$76*$J$76+$F$74*$J$74+$F$72+$G$68+$F$64+$F$61+$F$59+$F$57+$F$55+$G$46)*$D$46 -> 414.33 | G247: =$D$49*$G$49+$G$81*$J$81+($G$78*$J$78+$G$76*$J$76+$G$74*$J$74+$G$72+$G$68+$G$64+$G$61+$G$59+$G$57+$G$55+$G$46)*$D$46 -> 480.255 | H247: =$D$49*$H$49+$H$81*$J$81+($H$78*$J$78+$H$76*$J$76+$H$74*$J$74+$H$72+$G$68+$H$64+$H$61+$H$59+$H$57+$H$55+$G$46)*$D$46 -> 1161.18
B251: Step 2: Resaturated buffers
B253: In a tile drained landscape, such as in Iowa, vegetative buffers are not as effective at removing nutrients from groundwater since tile pipes bypass the buffer and discharge subsurface flow
B254: directly into surface streams. In resaturated buffer systems, some of this tile flow is redirected back to the surface, so that it may pass through the buffer vegetation.
B258: Are you considering using a resaturated buffer? | D258: 1 | E258: 0
B261: Number of acres in drainage area: | E261: ='Core Cost Data'!$K$241 -> 20 | G261: Number of control structures needed (2 per 40 acres): | K261: =ROUNDUP($E$97/40,0)*2 -> 2
B264: Resaturated buffer installation Costs:
D266: Min | E266: Average | F266: Max
B267: Cost of control structures: | D267: ='Core Cost Data'!$F$251 -> 500 | E267: ='Core Cost Data'!$G$251 -> 1250 | F267: ='Core Cost Data'!$H$251 -> 2000 | G267: per structure x | I267: =$K$97 -> 2 | J267: structures
B269: Cost of connecting tile pipe: | D269: + | E269: ='Core Cost Data'!$F$250 -> 890 | G269: @ 1000 ft per two control structures | I269: x | J269: =ROUND($K$97/2,0) -> 1 | K269: pairs
B271: Contracting costs (backhoe): | C271: + | D271: ='Core Cost Data'!$F$252 -> 40 | E271: ='Core Cost Data'!$G$252 -> 93.35 | F271: ='Core Cost Data'!$H$252 -> 150 | G271: /hour for | H271: ='Core Cost Data'!$J$252 -> 8 | I271: hours
B273: Total installation costs: | D273: =IF($D$94=1,$D$103*$I$103+$E$105*$J$105+$D$107*$H$107,0) -> 0 | E273: =IF($D$94=1,$E$103*$I$103+$E$105*$J$105+$E$107*$H$107,0) -> 0 | F273: =IF($D$94=1,$F$103*$I$103+$E$105*$J$105+$F$107*$H$107,0) -> 0
B277: Step 3: Maintenance
B279: Vegetative buffers do require regular maintenance in order to remain effective. The buffer system should be mowed twice yearly.
B281: If a resaturated buffer system is used, the structures controlling the flow of tile drainage to the surface will need to be adjusted seasonally. In addition, gates within the control structures will need
B282: to be replaced every 8 years.
B286: Yearly maintenance cost
F288: Min | G288: Average | H288: Max
B289: Mowing buffer (twice yearly): | F289: ='Core Cost Data'!$B$94 -> 10 | G289: ='Core Cost Data'!$C$94 -> 18.35 | H289: ='Core Cost Data'!$D$94 -> 30 | I289: dollars/acre | K289: x | L289: ='Core Cost Data'!$B$250 -> 2 | M289: times
B291: If using resaturated buffer | J291: Min | K291: Average | L291: Max
B292: Adjusting and servicing control structures: | G292: ='Core Cost Data'!$F$246 -> 3 | H292: hours | I292: x | J292: ='Core Cost Data'!$B$92 -> 10 | K292: ='Core Cost Data'!$C$92 -> 14.2 | L292: ='Core Cost Data'!$D$92 -> 20 | M292: dollars/hour
E294: Min | F294: Average | G294: Max
B295: Total yearly cost with rent: | E295: =IF($D$94=1,$F$125*$L$125*$D$46+$G$46*$D$46+$G$128*$J$128,$F$125*$L$125*$D$46+$G$46*$D$46) -> 180 | F295: =IF($D$94=1,$G$125*$L$125*$D$46+$G$46*$D$46+$G$128*$K$128,$G$125*$L$125*$D$46+$G$46*$D$46) -> 205.05 | G295: =IF($D$94=1,$H$125*$L$125*$D$46+$G$46*$D$46+$G$128*$L$128,$H$125*$L$125*$D$46+$G$46*$D$46) -> 240 | H295: dollars
B298: Extended maintenance costs
B300: Every 8 - years if using resaturated buffer
I301: Min | J301: Max
B302: Replace control structure gates: | F302: ='Core Cost Data'!$F$247 -> 5 | G302: gates | H302: x | I302: ='Core Cost Data'!$I$247 -> 14.17 | J302: ='Core Cost Data'!$K$247 -> 15.32 | K302: dollars/gate | M302: x | N302: =$K$97 -> 2 | O302: structures
H304: Min | I304: Average | J304: Max
B305: Total extended maintenance costs: | H305: =IF(D258=1,F302*I302*N302,0) -> 141.7 | I305: =IF(D258=1,F302*((I302+J302)/2)*N302,0) -> 147.45 | J305: =IF(D258=1,F302*J302*N302,0) -> 153.2 | K305: dollars
B310: This is the end of the stream buffers worksheet. The total costs and nitrogen reduction information is summarized in the boxes at the top of this page.
B313: Seed Mix | C313: Cost/Acre
B314: 5 | C314: =VLOOKUP(B314,'Core Cost Data'!A402:C406,3) -> 
C318: Costs | F318: Net Present Value | J318: Discount Rate | K318: ='Core Cost Data'!$H$96 -> 0.04

Sheet Grazed Pasture (hidden)
B8: Grazed Pasture
B10: Grazed pature conversion is the practice of removing a field from row crop production, and placing the field in a grazed pasture management scheme. The grazed pasture may be used for either
B11: livestock owned by the farmer or can be rented out to other livestock producers. Grazed pastures can be managed as intensively or rotationally grazed depending on the farmers preference.
B13: Large areas of Iowa are in permanent pasture and additional land could be used to develop emerging markets for grass-fed or organic livestock. Pasture land has very little nutrient leaching and erosion,
B14: and can help enhance soil organic carbon and structure. Grazed pastures can be an attractive alternative for land that is currently economically marginal to row crop production.
B16: In addition, grazed pastures can provide non-market benefits such as wildlife or hunting habitat.
B18: This worksheet estimates the cost of establishing and managing two separate pasture seed mixes, and calculates the value of pasture land for livestock feed purposes.
B20: Let's get started.
B24: General Information: | G24: Final Costs:
B25: Would you like to autofill the worksheet with | I25: Min | J25: Avg | K25: Max
B26: default prices? | G26: Out of Pocket (Year 1): | I26: =$F$81*$D$43 -> 33386.25 | J26: =$G$81*$D$43 -> 39506.25 | K26: =$H$81*$D$43 -> 47531.25
B28: Is cost-sharing available? | G28: Yearly Maintainence: | I28: =$E$113*$D$43 -> 16871.25 | J28: =$F$113*$D$43 -> 21156.25 | K28: =$G$113*$D$43 -> 27023.75
G30: Annualized value (20 yrs): | I30: =$I$191*$D$43 -> -16518.80261 | J30: =$J$191*$D$43 -> -20661.72512 | K30: =$K$191*$D$43 -> -26474.17774
B35: Step 1: Pasture Establishment
B37: Pasture land establishment consists of two main steps: seedbed preparation and seeding. Seedbed preparation generally includes clearing and spraying weeds, disking and harrowing.
B38: Fertilizer can be applied before disking or when seed drilling. Seed selection is based on soil type and desired pasture use (i.e. type of livestock to be grazed). Seeding can be completed
B39: in spring (mid-May) or in late summer (before September) using a seed/grain drill. Seeds should not be disked or planted deeper than 1/2 inch.
B43: Total pasture area: | D43: ='Core Cost Data'!$D$174 -> 25 | E43: acres | F43: Land rent: | G43: ='Core Cost Data'!$H$94 -> 230 | H43: /acre
B47: Year 1: Pasture establishment
F48: Min | G48: Average | H48: Max
B49: Site preparation costs: | D49: Disking (tandem) | F49: ='Core Cost Data'!$B$87 -> 7.5 | G49: ='Core Cost Data'!$C$87 -> 14.65 | H49: ='Core Cost Data'!$D$87 -> 20 | I49: /acre x | J49: ='Core Cost Data'!$B$175 -> 2 | K49: times
D51: Clipping weeds | E51: + | F51: ='Core Cost Data'!$B$110 -> 8.45 | G51: ='Core Cost Data'!$C$110 -> 10.7 | H51: ='Core Cost Data'!$D$110 -> 12.95 | I51: /acre
D53: Moldboard plow | E53: + | F53: ='Core Cost Data'!$B$101 -> 13 | G53: ='Core Cost Data'!$C$101 -> 18.5 | H53: ='Core Cost Data'!$D$101 -> 25 | I53: /acre
D55: Herbicide (varies) | E55: + | F55: ='Core Cost Data'!$I$194 -> 10.5 | G55: ='Core Cost Data'!$J$194 -> 12.4 | H55: ='Core Cost Data'!$K$194 -> 15.5 | I55: /acre
D57: Harrowing | E57: + | F57: ='Core Cost Data'!$B$88 -> 4 | G57: ='Core Cost Data'!$C$88 -> 9.35 | H57: ='Core Cost Data'!$D$88 -> 13 | I57: /acre
B59: Planting costs:
D60: Seeding (drill) | E60: + | F60: ='Core Cost Data'!$B$100 -> 10 | G60: ='Core Cost Data'!$C$100 -> 15.9 | H60: ='Core Cost Data'!$D$100 -> 25 | I60: /acre
D62: Seed mix
D64: Seed costs | F64: + | G64: =IF($D$154 = "SEED COST",0,ROUND($D$154,2)) -> 48.8 | I64: @ | J64: =$E$154 -> 14.5 | K64: lbs/acre
B67: Fertlizer costs: | F67: Min | G67: Average | H67: Max
D68: Fertlizer spreading | E68: + | F68: ='Core Cost Data'!$B$89 -> 3 | G68: ='Core Cost Data'!$C$89 -> 6.25 | H68: ='Core Cost Data'!$D$89 -> 10 | I68: /acre
D70: Nitrogen | E70: + | F70: ='Core Cost Data'!$B$104 -> 0.43 | G70: ='Core Cost Data'!$C$104 -> 0.5 | H70: ='Core Cost Data'!$D$104 -> 0.59 | I70: @ | J70: =$F$154 -> 30 | K70: lbs/acre
D72: Lime (tons) | E72: + | F72: ='Core Cost Data'!$B$107 -> 13.5 | G72: ='Core Cost Data'!$C$107 -> 16.75 | H72: ='Core Cost Data'!$D$107 -> 20.5 | I72: @ | J72: =$I$154 -> 2 | K72: tons/acre
D74: Phosphorus | E74: + | F74: ='Core Cost Data'!$B$105 -> 0.45 | G74: ='Core Cost Data'!$C$105 -> 0.48 | H74: ='Core Cost Data'!$D$105 -> 0.51 | I74: @ | J74: =$G$154 -> 50 | K74: lbs/acre
D76: Potash | E76: + | F76: ='Core Cost Data'!$B$106 -> 0.39 | G76: ='Core Cost Data'!$C$106 -> 0.41 | H76: ='Core Cost Data'!$D$106 -> 0.43 | I76: @ | J76: =$H$154 -> 100 | K76: lbs/acre
B78: Labor costs:
D79: Labor | E79: + | F79: ='Core Cost Data'!$B$92 -> 10 | G79: ='Core Cost Data'!$C$92 -> 14.2 | H79: ='Core Cost Data'!$D$92 -> 20 | I79: @ | J79: ='Core Cost Data'!$B$182*$D$43 -> 46.25 | K79: hours
B81: Total Costs per acre with rent: | F81: =$F$49*$J$49+$F$51+$F$53+$F$55+$F$57+$F$60+$G$64*$J$64+$F$68+$F$70*$J$70+$F$72*$J$72+$F$74*$J$74+$F$76*$J$76+$F$79*$J$79 -> 1335.45 | G81: =$G$49*$J$49+$G$51+$G$53+$G$55+$G$57+$G$60+$G$64*$J$64+$G$68+$G$70*$J$70+$G$72*$J$72+$G$74*$J$74+$G$76*$J$76+$G$79*$J$79 -> 1580.25 | H81: =$H$49*$J$49+$H$51+$H$53+$H$55+$H$57+$H$60+$G$64*$J$64+$H$68+$H$70*$J$70+$H$72*$J$72+$H$74*$J$74+$H$76*$J$76+$H$79*$J$79 -> 1901.25
B85: Step 2: Maintenance
B87: Weeds and brush can be controlled with proper grazing, clipping and fertilization. Herbicide labeled for pasture use can also be used. Avoiding overgrazing by rotation, and avoid grazing or harvesting
B88: September 15th and killing frost to reduce stress on pasture vegetation.
B92: Yearly maintenance
B94: Fertlizer costs: | F94: Min | G94: Average | H94: Max
D95: Fertlizer spreading | F95: ='Core Cost Data'!$B$89 -> 3 | G95: ='Core Cost Data'!$C$89 -> 6.25 | H95: ='Core Cost Data'!$D$89 -> 10 | I95: /acre
D97: Nitrogen | E97: + | F97: ='Core Cost Data'!$B$104 -> 0.43 | G97: ='Core Cost Data'!$C$104 -> 0.5 | H97: ='Core Cost Data'!$D$104 -> 0.59 | I97: @ | J97: =$F$160 -> 80 | K97: lbs/acre
D99: Phosphorus | E99: + | F99: ='Core Cost Data'!$B$105 -> 0.45 | G99: ='Core Cost Data'!$C$105 -> 0.48 | H99: ='Core Cost Data'!$D$105 -> 0.51 | I99: @ | J99: =$G$160 -> 30 | K99: lbs/acre
D101: Potash | E101: + | F101: ='Core Cost Data'!$B$106 -> 0.39 | G101: ='Core Cost Data'!$C$106 -> 0.41 | H101: ='Core Cost Data'!$D$106 -> 0.43 | I101: @ | J101: =$H$160 -> 0 | K101: lbs/acre
B103: Site Maintenance:
D104: Clipping weeds | E104: + | F104: 8.45 | G104: 10.7 | H104: 12.95 | I104: /acre
D106: Herbicide (varies) | E106: + | F106: ='Core Cost Data'!$I$194 -> 10.5 | G106: ='Core Cost Data'!$J$194 -> 12.4 | H106: ='Core Cost Data'!$K$194 -> 15.5 | I106: /acre
B108: Labor costs:
D109: Labor | E109: + | F109: ='Core Cost Data'!$B$92 -> 10 | G109: ='Core Cost Data'!$C$92 -> 14.2 | H109: ='Core Cost Data'!$D$92 -> 20 | I109: /hour @ | J109: ='Core Cost Data'!$B$190*$D$43 -> 37.5 | K109: hours
E112: Min | F112: Average | G112: Max
B113: Total yearly cost with rent: | E113: =$F$95+$F$97*$J$97+$F$99*$J$99+$F$101*$J$101+$F$104+$F$106+$F$109*$J$109+$G$43 -> 674.85 | F113: =$G$95+$G$97*$J$97+$G$99*$J$99+$G$101*$J$101+$G$104+$G$106+$G$109*$J$109+$G$43 -> 846.25 | G113: =$H$95+$H$97*$J$97+$H$99*$J$99+$H$101*$J$101+$H$104+$H$106+$H$109*$J$109+$G$43 -> 1080.95 | H113: dollars
B117: Step 3: Pasture cash rent equivalent value
B119: There are several ways to calculate the rental rate for pasture land including area market rates (what others around you are charging), rent per head per month (based on the number of animals and length of time grazed or animal unit months (AUMs)), and the forage method
B120: which is used in this section. The forage method estimates the expected pasture production and then charges a percentage (typically from 25%-35%) of the market value of the pasture vegetation.
B124: Rent value estimate through forage value method:
C126: Expected grass yield (tons): | F126: =$D$160 -> 3 | G126: tons
F128: Average
C129: Grass market value: | F129: ='Core Cost Data'!$B$192 -> 115 | G129: /ton | H129: @ | I129: =$D$160 -> 3 | J129: tons
C131: Total pasture yield value: | F131: =$F$129*$I$129 -> 345 | G131: /acre
E133: Min | F133: Average | G133: Max
E134: 0.25 | F134: 0.3 | G134: 0.35
C135: Rent estimate as a percentage: | E135: =$F$131*0.25 -> 86.25 | F135: =$F$131*0.3 -> 103.5 | G135: =$F$131*0.35 -> 120.75
B140: This is the end of the grazed pasture worksheet. The total costs and nitrogen reduction information is summarized in the boxes at the top of this page.
B151: Pasture Establishment
B152: 1 | C152: 2 | D152: 3 | E152: 4 | F152: 5 | G152: 6 | H152: 7 | I152: 8
B153: Seed Mix | C153: Mix | D153: Seed Cost | E153: Seed Amount | F153: Nitrogen | G153: Phosphate | H153: Potash | I153: Lime
B154: 2 | C154: =VLOOKUP($B$154,'Core Cost Data'!$A$178:$H$180,C$152) -> Oats, Bromegrass, Orchardgrass | D154: =VLOOKUP($B$154,'Core Cost Data'!$A$178:$H$180,D$152) -> 48.80172414 | E154: =VLOOKUP($B$154,'Core Cost Data'!$A$178:$H$180,E$152) -> 14.5 | F154: =VLOOKUP($B$154,'Core Cost Data'!$A$178:$H$180,F$152) -> 30 | G154: =VLOOKUP($B$154,'Core Cost Data'!$A$178:$H$180,G$152) -> 50 | H154: =VLOOKUP($B$154,'Core Cost Data'!$A$178:$H$180,H$152) -> 100 | I154: =VLOOKUP($B$154,'Core Cost Data'!$A$178:$H$180,I$152) -> 2
B157: Pasture Maintenance
B159: Seed Mix | C159: Mix | D159: Yield | F159: Nitrogen | G159: Phosphate | H159: Potash | I159: Lime
B160: =B154 -> 2 | C160: =VLOOKUP($B$154,'Core Cost Data'!$A$186:$H$188,C$152) -> Oats, Bromegrass, Orchardgrass | D160: =VLOOKUP($B$154,'Core Cost Data'!$A$186:$H$188,D$152) -> 3 | E160: =VLOOKUP($B$154,'Core Cost Data'!$A$186:$H$188,E$152) -> tons | F160: =VLOOKUP($B$154,'Core Cost Data'!$A$186:$H$188,F$152) -> 80 | G160: =VLOOKUP($B$154,'Core Cost Data'!$A$186:$H$188,G$152) -> 30 | H160: =VLOOKUP($B$154,'Core Cost Data'!$A$186:$H$188,H$152) -> 0 | I160: =VLOOKUP($B$154,'Core Cost Data'!$A$186:$H$188,I$152) -> 0
E166: Discount Rate | F166: ='Core Cost Data'!$H$96 -> 0.04
B167: Grazed Pasture
C168: Costs | F168: Revenue | I168: Net Present Value
B169: Year | C169: Min | D169: Average | E169: Max | F169: Min | G169: Average | H169: Max | I169: Min | J169: Average | K169: Max
B170: 1 | C170: =F81 -> 1335.45 | D170: =G81 -> 1580.25 | E170: =H81 -> 1901.25 | F170: =$E$135 -> 86.25 | G170: =$F$135 -> 103.5 | H170: =$G$135 -> 120.75 | I170: =(F170-C170)/(1+$F$166)^($B170-1) -> -1249.2 | J170: =(G170-D170)/(1+$F$166)^($B170-1) -> -1476.75 | K170: -1780.5
B171: 2 | C171: =$E$113 -> 674.85 | D171: =$F$113 -> 846.25 | E171: =$G$113 -> 1080.95 | F171: =$E$135 -> 86.25 | G171: =$F$135 -> 103.5 | H171: =$G$135 -> 120.75 | I171: =(F171-C171)/(1+$F$166)^($B171-1) -> -565.9615385 | J171: -714.1826923 | K171: -923.2692308
B172: 3 | C172: =$E$113 -> 674.85 | D172: =$F$113 -> 846.25 | E172: =$G$113 -> 1080.95 | F172: 86.25 | G172: 103.5 | H172: 120.75 | I172: -544.193787 | J172: -686.7141272 | K172: -887.7588757
B173: 4 | C173: 674.85 | D173: 846.25 | E173: 1080.95 | F173: 86.25 | G173: 103.5 | H173: 120.75 | I173: -523.2632567 | J173: -660.3020454 | K173: -853.6143036
B174: 5 | C174: 674.85 | D174: 846.25 | E174: 1080.95 | F174: 86.25 | G174: 103.5 | H174: 120.75 | I174: -503.1377468 | J174: -634.9058129 | K174: -820.7829842
B175: 6 | C175: 674.85 | D175: 846.25 | E175: 1080.95 | F175: 86.25 | G175: 103.5 | H175: 120.75 | I175: -483.786295 | J175: -610.4863585 | K175: -789.2144079
B176: 7 | C176: 674.85 | D176: 846.25 | E176: 1080.95 | F176: 86.25 | G176: 103.5 | H176: 120.75 | I176: -465.1791298 | J176: -587.006114 | K176: -758.8600076
B177: 8 | C177: 674.85 | D177: 846.25 | E177: 1080.95 | F177: 86.25 | G177: 103.5 | H177: 120.75 | I177: -447.2876249 | J177: -564.4289558 | K177: -729.6730842
B178: 9 | C178: 674.85 | D178: 846.25 | E178: 1080.95 | F178: 86.25 | G178: 103.5 | H178: 120.75 | I178: -430.0842547 | J178: -542.7201498 | K178: -701.6087348
B179: 10 | C179: 674.85 | D179: 846.25 | E179: 1080.95 | F179: 86.25 | G179: 103.5 | H179: 120.75 | I179: -413.5425526 | J179: -521.8462979 | K179: -674.6237835
B180: 11 | C180: 674.85 | D180: 846.25 | E180: 1080.95 | F180: 86.25 | G180: 103.5 | H180: 120.75 | I180: -397.6370698 | J180: -501.7752864 | K180: -648.6767149
B181: 12 | C181: 674.85 | D181: 846.25 | E181: 1080.95 | F181: 86.25 | G181: 103.5 | H181: 120.75 | I181: -382.3433363 | J181: -482.4762369 | K181: -623.7276105
B182: 13 | C182: 674.85 | D182: 846.25 | E182: 1080.95 | F182: 86.25 | G182: 103.5 | H182: 120.75 | I182: -367.6378234 | J182: -463.9194586 | K182: -599.738087
B183: 14 | C183: 674.85 | D183: 846.25 | E183: 1080.95 | F183: 86.25 | G183: 103.5 | H183: 120.75 | I183: -353.4979071 | J183: -446.0764025 | K183: -576.6712375
B184: 15 | C184: 674.85 | D184: 846.25 | E184: 1080.95 | F184: 86.25 | G184: 103.5 | H184: 120.75 | I184: -339.9018337 | J184: -428.9196178 | K184: -554.4915745
B185: 16 | C185: 674.85 | D185: 846.25 | E185: 1080.95 | F185: 86.25 | G185: 103.5 | H185: 120.75 | I185: -326.8286863 | J185: -412.4227094 | K185: -533.1649755
B186: 17 | C186: 674.85 | D186: 846.25 | E186: 1080.95 | F186: 86.25 | G186: 103.5 | H186: 120.75 | I186: -314.2583522 | J186: =(G186-D186)/(1+$F$166)^($B186-1) -> -396.5602975 | K186: =(H186-E186)/(1+$F$166)^($B186-1) -> -512.6586303
B187: 18 | C187: 674.85 | D187: 846.25 | E187: 1080.95 | F187: 86.25 | G187: 103.5 | H187: 120.75 | I187: -302.1714925 | J187: -381.3079784 | K187: -492.9409907
B188: 19 | C188: 674.85 | D188: 846.25 | E188: 1080.95 | F188: 86.25 | G188: 103.5 | H188: 120.75 | I188: -290.549512 | J188: -366.6422869 | K188: -473.9817218
B189: 20 | C189: 674.85 | D189: 846.25 | E189: 1080.95 | F189: 86.25 | G189: 103.5 | H189: 120.75 | I189: -279.3745308 | J189: -352.5406605 | K189: -455.7516556
H190: Total | I190: =SUM(I170:I189) -> -8979.83673 | J190: =SUM(J170:J189) -> -11231.98349 | K190: -14391.70861
H191: Annualized | I191: =($F$166*I190)/(1-(1+$F$166)^(-1*$B$189)) -> -660.7521043 | J191: =($F$166*J190)/(1-(1+$F$166)^(-1*$B$189)) -> -826.4690047 | K191: -1058.96711
I202: =$F$81*$D$43 -> 33386.25 | J202: =$G$81*$D$43 -> 39506.25 | K202: =$H$81*$D$43 -> 47531.25
I204: =$E$113*$D$43 -> 16871.25 | J204: =$F$113*$D$43 -> 21156.25 | K204: =$G$113*$D$43 -> 27023.75
I206: =$I$191*$D$43 -> -16518.80261 | J206: =$J$191*$D$43 -> -20661.72512 | K206: =$K$191*$D$43 -> -26474.17774
B219: Total pasture area: | D219: ='Core Cost Data'!$D$174 -> 25 | E219: acres | F219: Land rent: | G219: ='Core Cost Data'!$H$94 -> 230 | H219: /acre
B223: Year 1: Pasture establishment
F224: Min | G224: Average | H224: Max
B225: Site preparation costs: | D225: Disking (tandem) | F225: ='Core Cost Data'!$B$87 -> 7.5 | G225: ='Core Cost Data'!$C$87 -> 14.65 | H225: ='Core Cost Data'!$D$87 -> 20 | I225: /acre x | J225: ='Core Cost Data'!$B$175 -> 2 | K225: times
D227: Clipping weeds | E227: + | F227: ='Core Cost Data'!$B$110 -> 8.45 | G227: ='Core Cost Data'!$C$110 -> 10.7 | H227: ='Core Cost Data'!$D$110 -> 12.95 | I227: /acre
D229: Moldboard plow | E229: + | F229: ='Core Cost Data'!$B$101 -> 13 | G229: ='Core Cost Data'!$C$101 -> 18.5 | H229: ='Core Cost Data'!$D$101 -> 25 | I229: /acre
D231: Herbicide (varies) | E231: + | F231: ='Core Cost Data'!$I$194 -> 10.5 | G231: ='Core Cost Data'!$J$194 -> 12.4 | H231: ='Core Cost Data'!$K$194 -> 15.5 | I231: /acre
D233: Harrowing | E233: + | F233: ='Core Cost Data'!$B$88 -> 4 | G233: ='Core Cost Data'!$C$88 -> 9.35 | H233: ='Core Cost Data'!$D$88 -> 13 | I233: /acre
B235: Planting costs:
D236: Seeding (drill) | E236: + | F236: ='Core Cost Data'!$B$100 -> 10 | G236: ='Core Cost Data'!$C$100 -> 15.9 | H236: ='Core Cost Data'!$D$100 -> 25 | I236: /acre
D238: Seed mix
D240: Seed costs | F240: + | G240: =IF($D$154 = "SEED COST",0,ROUND($D$154,2)) -> 48.8 | I240: @ | J240: =$E$154 -> 14.5 | K240: lbs/acre
B243: Fertlizer costs: | F243: Min | G243: Average | H243: Max
D244: Fertlizer spreading | E244: + | F244: ='Core Cost Data'!$B$89 -> 3 | G244: ='Core Cost Data'!$C$89 -> 6.25 | H244: ='Core Cost Data'!$D$89 -> 10 | I244: /acre
D246: Nitrogen | E246: + | F246: ='Core Cost Data'!$B$104 -> 0.43 | G246: ='Core Cost Data'!$C$104 -> 0.5 | H246: ='Core Cost Data'!$D$104 -> 0.59 | I246: @ | J246: =$F$154 -> 30 | K246: lbs/acre
D248: Lime (tons) | E248: + | F248: ='Core Cost Data'!$B$107 -> 13.5 | G248: ='Core Cost Data'!$C$107 -> 16.75 | H248: ='Core Cost Data'!$D$107 -> 20.5 | I248: @ | J248: =$I$154 -> 2 | K248: tons/acre
D250: Phosphorus | E250: + | F250: ='Core Cost Data'!$B$105 -> 0.45 | G250: ='Core Cost Data'!$C$105 -> 0.48 | H250: ='Core Cost Data'!$D$105 -> 0.51 | I250: @ | J250: =$G$154 -> 50 | K250: lbs/acre
D252: Potash | E252: + | F252: ='Core Cost Data'!$B$106 -> 0.39 | G252: ='Core Cost Data'!$C$106 -> 0.41 | H252: ='Core Cost Data'!$D$106 -> 0.43 | I252: @ | J252: =$H$154 -> 100 | K252: lbs/acre
B254: Labor costs:
D255: Labor | E255: + | F255: ='Core Cost Data'!$B$92 -> 10 | G255: ='Core Cost Data'!$C$92 -> 14.2 | H255: ='Core Cost Data'!$D$92 -> 20 | I255: @ | J255: ='Core Cost Data'!$B$182*$D$43 -> 46.25 | K255: hours
B257: Total Costs per acre with rent: | F257: =$F$49*$J$49+$F$51+$F$53+$F$55+$F$57+$F$60+$G$64*$J$64+$F$68+$F$70*$J$70+$F$72*$J$72+$F$74*$J$74+$F$76*$J$76+$F$79*$J$79 -> 1335.45 | G257: =$G$49*$J$49+$G$51+$G$53+$G$55+$G$57+$G$60+$G$64*$J$64+$G$68+$G$70*$J$70+$G$72*$J$72+$G$74*$J$74+$G$76*$J$76+$G$79*$J$79 -> 1580.25 | H257: =$H$49*$J$49+$H$51+$H$53+$H$55+$H$57+$H$60+$G$64*$J$64+$H$68+$H$70*$J$70+$H$72*$J$72+$H$74*$J$74+$H$76*$J$76+$H$79*$J$79 -> 1901.25
B268: Yearly maintenance
B270: Fertlizer costs: | F270: Min | G270: Average | H270: Max
D271: Fertlizer spreading | F271: ='Core Cost Data'!$B$89 -> 3 | G271: ='Core Cost Data'!$C$89 -> 6.25 | H271: ='Core Cost Data'!$D$89 -> 10 | I271: /acre
D273: Nitrogen | E273: + | F273: ='Core Cost Data'!$B$104 -> 0.43 | G273: ='Core Cost Data'!$C$104 -> 0.5 | H273: ='Core Cost Data'!$D$104 -> 0.59 | I273: @ | J273: =$F$160 -> 80 | K273: lbs/acre
D275: Phosphorus | E275: + | F275: ='Core Cost Data'!$B$105 -> 0.45 | G275: ='Core Cost Data'!$C$105 -> 0.48 | H275: ='Core Cost Data'!$D$105 -> 0.51 | I275: @ | J275: =$G$160 -> 30 | K275: lbs/acre
D277: Potash | E277: + | F277: ='Core Cost Data'!$B$106 -> 0.39 | G277: ='Core Cost Data'!$C$106 -> 0.41 | H277: ='Core Cost Data'!$D$106 -> 0.43 | I277: @ | J277: =$H$160 -> 0 | K277: lbs/acre
B279: Site Maintenance:
D280: Clipping weeds | E280: + | F280: 8.45 | G280: 10.7 | H280: 12.95 | I280: /acre
D282: Herbicide (varies) | E282: + | F282: ='Core Cost Data'!$I$194 -> 10.5 | G282: ='Core Cost Data'!$J$194 -> 12.4 | H282: ='Core Cost Data'!$K$194 -> 15.5 | I282: /acre
B284: Labor costs:
D285: Labor | E285: + | F285: ='Core Cost Data'!$B$92 -> 10 | G285: ='Core Cost Data'!$C$92 -> 14.2 | H285: ='Core Cost Data'!$D$92 -> 20 | I285: /hour @ | J285: ='Core Cost Data'!$B$190*$D$43 -> 37.5 | K285: hours
E288: Min | F288: Average | G288: Max
B289: Total yearly cost with rent: | E289: =$F$95+$F$97*$J$97+$F$99*$J$99+$F$101*$J$101+$F$104+$F$106+$F$109*$J$109+$G$43 -> 674.85 | F289: =$G$95+$G$97*$J$97+$G$99*$J$99+$G$101*$J$101+$G$104+$G$106+$G$109*$J$109+$G$43 -> 846.25 | G289: =$H$95+$H$97*$J$97+$H$99*$J$99+$H$101*$J$101+$H$104+$H$106+$H$109*$J$109+$G$43 -> 1080.95 | H289: dollars
B300: Rent value estimate through forage value method:
C302: Expected grass yield (tons): | F302: =$D$160 -> 3 | G302: tons
F304: Average
C305: Grass market value: | F305: ='Core Cost Data'!$B$192 -> 115 | G305: /ton | H305: @ | I305: =$D$160 -> 3 | J305: tons
C307: Total pasture yield value: | F307: =$F$129*$I$129 -> 345 | G307: /acre
E309: Min | F309: Average | G309: Max
E310: 0.25 | F310: 0.3 | G310: 0.35
C311: Rent estimate as a percentage: | E311: =$F$131*0.25 -> 86.25 | F311: =$F$131*0.3 -> 103.5 | G311: =$F$131*0.35 -> 120.75
E315: Discount Rate | F315: ='Core Cost Data'!$H$96 -> 0.04

Sheet Extended Rotations (hidden)
B8: Extended Rotations (Alfalfa)
B10: Extended rotations is the practice of interspersing forage crops (such as alfalfa) in a row crop production rotation. The crop and rotation schedule can differ depending on the desired
B11: management schedule. Alfalfa is often used because of its high forage value and nitrogen-fixing capablilites.
B13: Extended rotations can reduce soil erosion and suppress weeds in the field reducing the future need for herbicide treatments. In addition, the nitrogen-fixing abilities of alfalfa lead to reductions
B14: in the need for nitrogen fertilizer in corn crops following termination of alfalfa crops.
B16: Alfalfa can provide economic benefits through forage harvested for either on-farm use or to be sold on hay and grass markets.
B18: This worksheet estimates the profits for both extended and standard rotations selected from an array of choices using projected planting and management costs. Extended rotations
B19: and standard rotations are then compared to assess net present value at the end of a 5-year rotation schedule.
B21: Let's get started.
B25: General Information: | G25: Final Costs
B26: Would you like to autofill the worksheet with | I26: Min | J26: Avg | K26: Max
B27: default prices? | G27: Extended rotation profit (5 years): | I27: =$F$169*$D$45 -> -18063.96194 | J27: =$G$169*$D$45 -> -21285.3736 | K27: =$H$169*$D$45 -> -24648.58017
B29: Is cost-sharing available? | G29: Standard rotation profit (5 years): | I29: =$F$192*$D$45 -> -16902.69917 | J29: =$G$192*$D$45 -> -16902.69917 | K29: =$H$192*$D$45 -> -16902.69917
G31: Annualized difference (5 years): | I31: =($I$230-$I$242)*$D$45 -> -260.8511056 | J31: =($J$230-$J$242)*$D$45 -> -984.467507 | K31: =($K$230-$K$242)*$D$45 -> -1739.934892
B36: Step 1: Establishment and Crop Growth
B38: This worksheet is based on a five year extended rotation consisting of two years of corn/soybean production, followed by two years of alfalfa, and finished with one year of corn/soybean production.
B39: Alfalfa establishment requires seedbed preparation (disking and harrowing) and fertilizer spreading, followed by seed drilling. Two cuttings can generally be expected on the the first year.
B43: Preceding crop rotation: | H43: Land rent: | I43: ='Core Cost Data'!$H$94 -> 230 | J43: /acre
B45: Acres to be planted: | D45: ='Core Cost Data'!$G$138 -> 25
C47: Crop Type | E47: Crop Cost (/acre) | G47: Crop Yield (/acre) | I47: Crop Price (/bushel) | K47: Profit (/acre)
B49: Year 1: | C49: =$D$209 -> Corn | E49: =$E$209 -> 886.94 | G49: =$F$209 -> 185 | I49: =IF($C$49="CORN",$C$214,$C$215) -> 2.85 | K49: =$G$49*$I$49-$E$49 -> -359.69
B51: Year 2: | C51: =$G$209 -> Soybeans | E51: =$H$209 -> 594.82 | G51: =$I$209 -> 55 | I51: =IF($C$51="CORN",$C$214,$C$215) -> 9.23 | K51: =$G$51*$I$51-$E$51 -> -87.17
B56: Year 3: Alfalfa establishment
F57: Min | G57: Average | H57: Max
B58: Site preparation costs: | D58: Disking (tandem) | F58: ='Core Cost Data'!$B$87 -> 7.5 | G58: ='Core Cost Data'!$C$87 -> 14.65 | H58: ='Core Cost Data'!$D$87 -> 20 | I58: /acre x | J58: ='Core Cost Data'!$D$138 -> 2 | K58: times
D60: Herbicide (varies) | E60: + | F60: ='Core Cost Data'!$I$140 -> 18.1 | G60: ='Core Cost Data'!$J$140 -> 20.6 | H60: ='Core Cost Data'!$K$140 -> 28.1 | I60: /acre
D62: Harrowing | E62: + | F62: ='Core Cost Data'!$B$88 -> 4 | G62: ='Core Cost Data'!$C$88 -> 9.35 | H62: ='Core Cost Data'!$D$88 -> 13 | I62: /acre
B64: Planting costs:
D65: Seed drilling | E65: + | F65: ='Core Cost Data'!$B$100 -> 10 | G65: ='Core Cost Data'!$C$100 -> 15.9 | H65: ='Core Cost Data'!$D$100 -> 25 | I65: /acre
D67: Seed costs | F67: + | G67: ='Core Cost Data'!$B$142 -> 5.25 | I67: @ | J67: ='Core Cost Data'!$D$142 -> 15 | K67: lbs/acre
B70: Fertlizer costs:
D71: Fertlizer spreading | E71: + | F71: ='Core Cost Data'!$B$89 -> 3 | G71: ='Core Cost Data'!$C$89 -> 6.25 | H71: ='Core Cost Data'!$D$89 -> 10 | I71: /acre
D73: Phosphorus | E73: + | F73: ='Core Cost Data'!$B$105 -> 0.45 | G73: ='Core Cost Data'!$C$105 -> 0.48 | H73: ='Core Cost Data'!$D$105 -> 0.51 | I73: @ | J73: ='Core Cost Data'!$B$151 -> 35 | K73: lbs/acre
D75: Potash | E75: + | F75: ='Core Cost Data'!$B$106 -> 0.39 | G75: ='Core Cost Data'!$C$106 -> 0.41 | H75: ='Core Cost Data'!$D$106 -> 0.43 | I75: @ | J75: ='Core Cost Data'!$B$152 -> 125 | K75: lbs/acre
D77: Lime (per ton) | E77: + | F77: ='Core Cost Data'!$B$107 -> 13.5 | G77: ='Core Cost Data'!$C$107 -> 16.75 | H77: ='Core Cost Data'!$D$107 -> 20.5 | I77: @ | J77: ='Core Cost Data'!$B$153 -> 1 | K77: tons/acre
B79: Labor costs:
D80: Labor | E80: + | F80: ='Core Cost Data'!$B$92 -> 10 | G80: ='Core Cost Data'!$C$92 -> 14.2 | H80: ='Core Cost Data'!$D$92 -> 20 | I80: @ | J80: 1 | K80: hours
B82: Total Costs per acre with rent: | F82: =$F$58*$J$58+$F$60+$F$62+$F$65+$G$67*$J$67+$F$71+$F$73*$J$73+$F$75*$J$75+$F$77*$J$77+$F$80*$J$80+$I$43 -> 446.85 | G82: =$G$58*$J$58+$G$60+$G$62+$G$65+$G$67*$J$67+$G$71+$G$73*$J$73+$G$75*$J$75+$G$77*$J$77+$G$80*$J$80+$I$43 -> 489.15 | H82: =$H$58*$J$58+$H$60+$H$62+$H$65+$G$67*$J$67+$H$71+$H$73*$J$73+$H$75*$J$75+$H$77*$J$77+$H$80*$J$80+$I$43 -> 536.95
B87: Year 3: Alfalfa first harvest
B89: Expected yield (tons): | D89: ='Core Cost Data'!$B$143 -> 2.5 | E89: /acre | F89: Number of cuttings: | H89: ='Core Cost Data'!$D$143 -> 2
F91: Min | G91: Average | H91: Max
B92: Harvest costs per cutting: | D92: Mowing | F92: ='Core Cost Data'!$B$93 -> 9 | G92: ='Core Cost Data'!$C$93 -> 12.05 | H92: ='Core Cost Data'!$D$93 -> 16 | I92: x | J92: =$J$94 -> 2 | K92: cuttings
D94: Raking | E94: + | F94: ='Core Cost Data'!$B$95 -> 4 | G94: ='Core Cost Data'!$C$95 -> 6.5 | H94: ='Core Cost Data'!$D$95 -> 10 | I94: x | J94: =$H$89 -> 2 | K94: cuttings
D96: Baling (950lbs sq.) | E96: + | F96: ='Core Cost Data'!$B$96 -> 8 | G96: ='Core Cost Data'!$C$96 -> 10.75 | H96: ='Core Cost Data'!$D$96 -> 12 | I96: x | J96: =ROUND($D$89*2000/950,1) -> 5.3 | K96: bales
B98: Labor costs: | D98: Labor | E98: + | F98: ='Core Cost Data'!$B$92 -> 10 | G98: ='Core Cost Data'!$C$92 -> 14.2 | H98: ='Core Cost Data'!$D$92 -> 20 | I98: @ | J98: ='Core Cost Data'!$B$148 -> 1.5 | K98: hours/cutting
B100: Total Harvest Costs per Acre | F100: =$F$92*$J$92+$F$94*$J$94+$F$96*$J$96+$F$98*$J$98*$H$89 -> 98.4 | G100: =$G$92*$J$92+$G$94*$J$94+$G$96*$J$96+$G$98*$J$98*$H$89 -> 136.675 | H100: =$H$92*$J$92+$H$94*$J$94+$H$96*$J$96+$H$98*$J$98*$H$89 -> 175.6
B102: Alfalfa value per ton: | G102: ='Core Cost Data'!$H$91 -> 140 | I102: @ | J102: =$D$89 -> 2.5 | K102: tons
B104: Total Revenue per Acre: | G104: =$G$102*$J$102 -> 350
B108: Step 2: Second Year of Alfalfa
B110: The second year of alfalfa production will require fertilizer application followed by three separate field cuttings.
B114: Years 4: Alfalfa production
B116: Fertlizer costs: | F116: Min | G116: Average | H116: Max
D117: Fertlizer spreading | F117: ='Core Cost Data'!$B$89 -> 3 | G117: ='Core Cost Data'!$C$89 -> 6.25 | H117: ='Core Cost Data'!$D$89 -> 10 | I117: /acre
D119: Phosphorus | E119: + | F119: ='Core Cost Data'!$B$105 -> 0.45 | G119: ='Core Cost Data'!$C$105 -> 0.48 | H119: ='Core Cost Data'!$D$105 -> 0.51 | I119: @ | J119: ='Core Cost Data'!$D$151 -> 13 | K119: lbs/acre
D121: Potash | E121: + | F121: ='Core Cost Data'!$B$106 -> 0.39 | G121: ='Core Cost Data'!$C$106 -> 0.41 | H121: ='Core Cost Data'!$D$106 -> 0.43 | I121: @ | J121: ='Core Cost Data'!$D$152 -> 50 | K121: lbs/acre
B123: Labor costs:
D124: Labor | E124: + | F124: ='Core Cost Data'!$B$92 -> 10 | G124: ='Core Cost Data'!$C$92 -> 14.2 | H124: ='Core Cost Data'!$D$92 -> 20 | I124: @ | J124: ='Core Cost Data'!$C$147 -> 0 | K124: hours
B126: Total Costs per acre with rent: | F126: =$F$117+$F$119*$J$119+$F$121*$J$121+$F$124*$J$124+$I$43 -> 258.35 | G126: =$G$117+$G$119*$J$119+$G$121*$J$121+$G$124*$J$124+$I$43 -> 262.99 | H126: =$H$117+$H$119*$J$119+$H$121*$J$121+$H$124*$J$124+$I$43 -> 268.13
B131: Year 4: Alfalfa harvest
B133: Expected yield (tons): | D133: ='Core Cost Data'!$B$144 -> 4 | E133: /acre | F133: Number of cuttings: | H133: ='Core Cost Data'!$D$144 -> 3
F135: Min | G135: Average | H135: Max
B136: Harvest costs per cutting: | D136: Mowing | F136: ='Core Cost Data'!$B$93 -> 9 | G136: ='Core Cost Data'!$C$93 -> 12.05 | H136: ='Core Cost Data'!$D$93 -> 16 | I136: x | J136: =$H$133 -> 3 | K136: cuttings
D138: Raking | E138: + | F138: ='Core Cost Data'!$B$95 -> 4 | G138: ='Core Cost Data'!$C$95 -> 6.5 | H138: ='Core Cost Data'!$D$95 -> 10 | I138: x | J138: =$H$133 -> 3 | K138: cuttings
D140: Baling | E140: + | F140: ='Core Cost Data'!$B$96 -> 8 | G140: ='Core Cost Data'!$C$96 -> 10.75 | H140: ='Core Cost Data'!$D$96 -> 12 | I140: x | J140: =ROUND($D$133*2000/950,1) -> 8.4 | K140: bales
B142: Labor costs: | D142: Labor | E142: + | F142: ='Core Cost Data'!$B$92 -> 10 | G142: ='Core Cost Data'!$C$92 -> 14.2 | H142: ='Core Cost Data'!$D$92 -> 20 | I142: @ | J142: ='Core Cost Data'!$B$149 -> 1.33 | K142: hours/cutting
B144: Total Harvest Costs per Acre | F144: =$F$136*$J$136+$F$138*$J$138+$F$140*$J$140+$F$142*$J$142*$H$133 -> 146.1 | G144: =$G$136*$J$136+$G$138*$J$138+$G$140*$J$140+$G$142*$J$142*$H$133 -> 202.608 | H144: =$H$136*$J$136+$H$138*$J$138+$H$140*$J$140+$H$142*$J$142*$H$133 -> 258.6
B146: Alfalfa value per ton: | G146: ='Core Cost Data'!$H$91 -> 140 | I146: @ | J146: =$D$133 -> 4 | K146: tons
B148: Total Revenue per Acre: | G148: =$G$146*$J$146 -> 560
B151: Step 3: Final Rotation Year
B153: This section is for the selecting of the final crop (corn/soybeans) used in the extended rotation.
B158: Crop type for final year:
B160: Crop yield effects for alfalfa: | E160: =IF($C$210=2,'Core Cost Data'!$B$145,0%) -> 0.07
C163: Crop Type | E163: Crop Cost (/acre) | G163: Crop Yield (/acre) | I163: Crop Price (/bushel) | K163: Profit (/acre)
B165: Year 5: | C165: =$D$210 -> Corn | E165: =$E$210 -> 886.94 | G165: =IF($C$210 = 2, $F$210*(1+$E$160), $F$210) -> 214 | I165: =IF($C$165="CORN",$C$214,$C$215) -> 2.85 | K165: =$I$165*$G$165-$E$165 -> -277.04
B167: Total Costs and Revenue (4% discount rate):
F168: Min | G168: Average | H168: Max
B169: Net present value per acre for 5 year rotation: | F169: =$I$229 -> -722.5584778 | G169: =$J$229 -> -851.414944 | H169: =$K$229 -> -985.943207 | I169: /acre
B172: Step 4: Standard Rotation Crop Choices for Year 3, 4, 5
B174: This section is for selecting the corn/soybean rotation scenario that would have been used if extended rotations were not used.
B179: Alternate crop rotation for years 3 -5 without alfalfa:
C182: Crop Type | E182: Crop Cost (/acre) | G182: Crop Yield (/acre) | I182: Crop Price (/bushel) | K182: Profit (/acre)
B184: Year 3: | C184: =$D$211 -> Soybeans | E184: =$E$211 -> 594.82 | G184: =$F$211 -> 55 | I184: =IF($C$184="CORN",$C$214,$C$215) -> 9.23 | K184: =$G$184*$I$184-$E$184 -> -87.17
B186: Year 4: | C186: =$G$211 -> Soybeans | E186: =$H$211 -> 594.82 | G186: =$I$211 -> 55 | I186: =IF($C$186="CORN",$C$214,$C$215) -> 9.23 | K186: =$G$186*$I$186-$E$186 -> -87.17
B188: Year 5: | C188: =$J$211 -> Soybeans | E188: =$K$211 -> 594.82 | G188: =$L$211 -> 55 | I188: =IF($C$188="CORN",$C$214,$C$215) -> 9.23 | K188: =$G$188*$I$188-$E$188 -> -87.17
B190: Total Costs and Revenue (4% discount rate):
F191: Min | G191: Average | H191: Max
B192: Net present value per acre for 5 year rotation: | F192: =$I$241 -> -676.1079667 | G192: =$J$241 -> -676.1079667 | H192: =$K$241 -> -676.1079667 | I192: /acre
B196: This is the end of the extended rotations worksheet. The total costs and nitrogen reduction information is summarized in the boxes at the top of this page.
B207: Crop Selection
B208: Section | C208: Selection | D208: Year 1 Crop | E208: Year 1 Cost | F208: Year 1 Yield | G208: Year 2 Crop | H208: Year 2 Cost | I208: Year 2 Yield | J208: Year 5 Crop | K208: Year 5 Cost | L208: Year 5 Yield
B209: 1 | C209: 3 | D209: =VLOOKUP($C$209,'Core Cost Data'!$A$116:$H$120,D212) -> Corn | E209: =VLOOKUP($C$209,'Core Cost Data'!$A$116:$H$120,E212) -> 886.94 | F209: =VLOOKUP($C$209,'Core Cost Data'!$A$116:$H$120,F212) -> 185 | G209: =VLOOKUP($C$209,'Core Cost Data'!$A$116:$H$120,G212) -> Soybeans | H209: =VLOOKUP($C$209,'Core Cost Data'!$A$116:$H$120,H212) -> 594.82 | I209: =VLOOKUP($C$209,'Core Cost Data'!$A$116:$H$120,I212) -> 55
B210: 2 | C210: 2 | D210: =VLOOKUP($C$210,'Core Cost Data'!$A$122:$E$124,'Extended Rotations'!D212) -> Corn | E210: =VLOOKUP($C$210,'Core Cost Data'!$A$122:$E$124,'Extended Rotations'!E212) -> 886.94 | F210: =VLOOKUP($C$210,'Core Cost Data'!$A$122:$E$124,'Extended Rotations'!F212) -> 200
B211: 3 | C211: 9 | D211: =VLOOKUP($C$211,'Core Cost Data'!$A$127:$K$135,'Extended Rotations'!D212) -> Soybeans | E211: =VLOOKUP($C$211,'Core Cost Data'!$A$127:$K$135,'Extended Rotations'!E212) -> 594.82 | F211: =VLOOKUP($C$211,'Core Cost Data'!$A$127:$K$135,'Extended Rotations'!F212) -> 55 | G211: =VLOOKUP($C$211,'Core Cost Data'!$A$127:$K$135,'Extended Rotations'!G212) -> Soybeans | H211: =VLOOKUP($C$211,'Core Cost Data'!$A$127:$K$135,'Extended Rotations'!H212) -> 594.82 | I211: =VLOOKUP($C$211,'Core Cost Data'!$A$127:$K$135,'Extended Rotations'!I212) -> 55 | J211: =VLOOKUP($C$211,'Core Cost Data'!$A$127:$K$135,'Extended Rotations'!J212) -> Soybeans | K211: =VLOOKUP($C$211,'Core Cost Data'!$A$127:$K$135,'Extended Rotations'!K212) -> 594.82 | L211: =VLOOKUP($C$211,'Core Cost Data'!$A$127:$K$135,'Extended Rotations'!L212) -> 55
B212: 1 | C212: 2 | D212: 3 | E212: 4 | F212: 5 | G212: 6 | H212: 7 | I212: 8 | J212: 9 | K212: 10 | L212: 11
B214: Corn Price | C214: ='Core Cost Data'!H87 -> 2.85
B215: Soybean Price | C215: ='Core Cost Data'!H88 -> 9.23
E220: Discount Rate | F220: ='Core Cost Data'!$H$96 -> 0.04
B221: Extended Rotations
C222: Costs | F222: Revenue | I222: Net Present Value
B223: Year | C223: Min | D223: Average | E223: Max | F223: Min | G223: Average | H223: Max | I223: Min | J223: Average | K223: Max
B224: 1 | C224: =$E$49 -> 886.94 | D224: =$E$49 -> 886.94 | E224: 886.94 | F224: =$G$49*$I$49 -> 527.25 | G224: =G49*I49 -> 527.25 | H224: =G49*I49 -> 527.25 | I224: =(F224-C224)/(1+$F$220)^($B224-1) -> -359.69 | J224: =(G224-D224)/(1+$F$220)^($B224-1) -> -359.69 | K224: -359.69
B225: 2 | C225: =$E$51 -> 594.82 | D225: =$E$51 -> 594.82 | E225: 594.82 | F225: =$G$51*$I$51 -> 507.65 | G225: =$G$51*$I$51 -> 507.65 | H225: 507.65 | I225: =(F225-C225)/(1+$F$220)^($B225-1) -> -83.81730769 | J225: =(G225-D225)/(1+$F$220)^($B225-1) -> -83.81730769 | K225: =(H225-E225)/(1+$F$220)^($B225-1) -> -83.81730769
B226: 3 | C226: =F82+F100 -> 545.25 | D226: =G82+G100 -> 625.825 | E226: 712.55 | F226: =$G$104 -> 350 | G226: =$G$104 -> 350 | H226: 350 | I226: -180.5196006 | J226: -255.0157175 | K226: -335.197855
B227: 4 | C227: =F126+F144 -> 404.45 | D227: =G126+G144 -> 465.598 | E227: 526.73 | F227: =$G$148 -> 560 | G227: =$G$148 -> 560 | H227: 560 | I227: 138.2833836 | J227: 83.92303425 | K227: 29.57690885
B228: 5 | C228: =$E$165 -> 886.94 | D228: =$E$165 -> 886.94 | E228: 886.94 | F228: =$G$165*$I$165 -> 609.9 | G228: =$G$165*$I$165 -> 609.9 | H228: 609.9 | I228: -236.8149531 | J228: -236.8149531 | K228: -236.8149531
H229: Total | I229: =SUM(I224:I228) -> -722.5584778 | J229: =SUM(J224:J228) -> -851.414944 | K229: -985.943207
H230: Annualized | I230: =(I229*$F$220)/(1-(1+$F$220)^(-1*$B$228)) -> -162.3062252 | J230: =(J229*$F$220)/(1-(1+$F$220)^(-1*$B$228)) -> -191.2508813 | K230: -221.4695766
B232: Standard Rotations
C234: Costs | F234: Revenue | I234: Net Present Value
B235: Year | C235: Min | D235: Average | E235: Max | F235: Min | G235: Average | H235: Max | I235: Min | J235: Average | K235: Max
B236: 1 | C236: =$E$49 -> 886.94 | D236: =$E$49 -> 886.94 | E236: 886.94 | F236: =$G$49*$I$49 -> 527.25 | G236: =$G$49*$I$49 -> 527.25 | H236: 527.25 | I236: =(F236-C236)/(1+$F$220)^($B236-1) -> -359.69 | J236: =(G236-D236)/(1+$F$220)^($B236-1) -> -359.69 | K236: =(H236-E236)/(1+$F$220)^($B236-1) -> -359.69
B237: 2 | C237: =$E$51 -> 594.82 | D237: =$E$51 -> 594.82 | E237: 594.82 | F237: =$G$51*$I$51 -> 507.65 | G237: =$G$51*$I$51 -> 507.65 | H237: 507.65 | I237: =(F237-C237)/(1+$F$220)^($B237-1) -> -83.81730769 | J237: -83.81730769 | K237: -83.81730769
B238: 3 | C238: =$E$184 -> 594.82 | D238: =$E$184 -> 594.82 | E238: 594.82 | F238: =$G$184*$I$184 -> 507.65 | G238: =$G$184*$I$184 -> 507.65 | H238: 507.65 | I238: -80.59356509 | J238: -80.59356509 | K238: -80.59356509
B239: 4 | C239: =$E$186 -> 594.82 | D239: =$E$186 -> 594.82 | E239: 594.82 | F239: =$G$186*$I$186 -> 507.65 | G239: =$G$186*$I$186 -> 507.65 | H239: 507.65 | I239: -77.49381259 | J239: -77.49381259 | K239: -77.49381259
B240: 5 | C240: =$E$188 -> 594.82 | D240: =$E$188 -> 594.82 | E240: 594.82 | F240: =$G$188*$I$188 -> 507.65 | G240: =$G$188*$I$188 -> 507.65 | H240: 507.65 | I240: -74.51328133 | J240: -74.51328133 | K240: -74.51328133
H241: Total | I241: =SUM(I236:I240) -> -676.1079667 | J241: =SUM(J236:J240) -> -676.1079667 | K241: =SUM(K236:K240) -> -676.1079667
H242: Annualized | I242: =(I241*$F$220)/(1-(1+$F$220)^(-1*$B$228)) -> -151.872181 | J242: =(J241*$F$220)/(1-(1+$F$220)^(-1*$B$228)) -> -151.872181 | K242: =(K241*$F$220)/(1-(1+$F$220)^(-1*$B$228)) -> -151.872181
I252: =$F$169*$D$45 -> -18063.96194 | J252: =$G$169*$D$45 -> -21285.3736 | K252: =$H$169*$D$45 -> -24648.58017
I254: =$F$192*$D$45 -> -16902.69917 | J254: =$G$192*$D$45 -> -16902.69917 | K254: =$H$192*$D$45 -> -16902.69917
I256: =($I$230-$I$242)*$D$45 -> -260.8511056 | J256: =($J$230-$J$242)*$D$45 -> -984.467507 | K256: =($K$230-$K$242)*$D$45 -> -1739.934892
B268: Preceding crop rotation: | H268: Land rent: | I268: ='Core Cost Data'!$H$94 -> 230 | J268: /acre
B270: Acres to be planted: | D270: ='Core Cost Data'!$G$138 -> 25
C272: Crop Type | E272: Crop Cost (/acre) | G272: Crop Yield (/acre) | I272: Crop Price (/bushel) | K272: Profit (/acre)
B274: Year 1: | C274: =$D$209 -> Corn | E274: =$E$209 -> 886.94 | G274: =$F$209 -> 185 | I274: =IF($C$49="CORN",$C$214,$C$215) -> 2.85 | K274: =$G$49*$I$49-$E$49 -> -359.69
B276: Year 2: | C276: =$G$209 -> Soybeans | E276: =$H$209 -> 594.82 | G276: =$I$209 -> 55 | I276: =IF($C$51="CORN",$C$214,$C$215) -> 9.23 | K276: =$G$51*$I$51-$E$51 -> -87.17
B281: Year 3: Alfalfa establishment
F282: Min | G282: Average | H282: Max
B283: Site preparation costs: | D283: Disking (tandem) | F283: ='Core Cost Data'!$B$87 -> 7.5 | G283: ='Core Cost Data'!$C$87 -> 14.65 | H283: ='Core Cost Data'!$D$87 -> 20 | I283: /acre x | J283: ='Core Cost Data'!$D$138 -> 2 | K283: times
D285: Herbicide (varies) | E285: + | F285: ='Core Cost Data'!$I$140 -> 18.1 | G285: ='Core Cost Data'!$J$140 -> 20.6 | H285: ='Core Cost Data'!$K$140 -> 28.1 | I285: /acre
D287: Harrowing | E287: + | F287: ='Core Cost Data'!$B$88 -> 4 | G287: ='Core Cost Data'!$C$88 -> 9.35 | H287: ='Core Cost Data'!$D$88 -> 13 | I287: /acre
B289: Planting costs:
D290: Seed drilling | E290: + | F290: ='Core Cost Data'!$B$100 -> 10 | G290: ='Core Cost Data'!$C$100 -> 15.9 | H290: ='Core Cost Data'!$D$100 -> 25 | I290: /acre
D292: Seed costs | F292: + | G292: ='Core Cost Data'!$B$142 -> 5.25 | I292: @ | J292: ='Core Cost Data'!$D$142 -> 15 | K292: lbs/acre
B295: Fertlizer costs:
D296: Fertlizer spreading | E296: + | F296: ='Core Cost Data'!$B$89 -> 3 | G296: ='Core Cost Data'!$C$89 -> 6.25 | H296: ='Core Cost Data'!$D$89 -> 10 | I296: /acre
D298: Phosphorus | E298: + | F298: ='Core Cost Data'!$B$105 -> 0.45 | G298: ='Core Cost Data'!$C$105 -> 0.48 | H298: ='Core Cost Data'!$D$105 -> 0.51 | I298: @ | J298: ='Core Cost Data'!$B$151 -> 35 | K298: lbs/acre
D300: Potash | E300: + | F300: ='Core Cost Data'!$B$106 -> 0.39 | G300: ='Core Cost Data'!$C$106 -> 0.41 | H300: ='Core Cost Data'!$D$106 -> 0.43 | I300: @ | J300: ='Core Cost Data'!$B$152 -> 125 | K300: lbs/acre
D302: Lime (per ton) | E302: + | F302: ='Core Cost Data'!$B$107 -> 13.5 | G302: ='Core Cost Data'!$C$107 -> 16.75 | H302: ='Core Cost Data'!$D$107 -> 20.5 | I302: @ | J302: ='Core Cost Data'!$B$153 -> 1 | K302: tons/acre
B304: Labor costs:
D305: Labor | E305: + | F305: ='Core Cost Data'!$B$92 -> 10 | G305: ='Core Cost Data'!$C$92 -> 14.2 | H305: ='Core Cost Data'!$D$92 -> 20 | I305: @ | J305: 1 | K305: hours
B307: Total Costs per acre with rent: | F307: =$F$58*$J$58+$F$60+$F$62+$F$65+$G$67*$J$67+$F$71+$F$73*$J$73+$F$75*$J$75+$F$77*$J$77+$F$80*$J$80+$I$43 -> 446.85 | G307: =$G$58*$J$58+$G$60+$G$62+$G$65+$G$67*$J$67+$G$71+$G$73*$J$73+$G$75*$J$75+$G$77*$J$77+$G$80*$J$80+$I$43 -> 489.15 | H307: =$H$58*$J$58+$H$60+$H$62+$H$65+$G$67*$J$67+$H$71+$H$73*$J$73+$H$75*$J$75+$H$77*$J$77+$H$80*$J$80+$I$43 -> 536.95
B312: Year 3: Alfalfa first harvest
B314: Expected yield (tons): | D314: ='Core Cost Data'!$B$143 -> 2.5 | E314: /acre | F314: Number of cuttings: | H314: ='Core Cost Data'!$D$143 -> 2
F316: Min | G316: Average | H316: Max
B317: Harvest costs per cutting: | D317: Mowing | F317: ='Core Cost Data'!$B$93 -> 9 | G317: ='Core Cost Data'!$C$93 -> 12.05 | H317: ='Core Cost Data'!$D$93 -> 16 | I317: x | J317: =$J$94 -> 2 | K317: cuttings
D319: Raking | E319: + | F319: ='Core Cost Data'!$B$95 -> 4 | G319: ='Core Cost Data'!$C$95 -> 6.5 | H319: ='Core Cost Data'!$D$95 -> 10 | I319: x | J319: =$H$89 -> 2 | K319: cuttings
D321: Baling (950lbs sq.) | E321: + | F321: ='Core Cost Data'!$B$96 -> 8 | G321: ='Core Cost Data'!$C$96 -> 10.75 | H321: ='Core Cost Data'!$D$96 -> 12 | I321: x | J321: =ROUND($D$89*2000/950,1) -> 5.3 | K321: bales
B323: Labor costs: | D323: Labor | E323: + | F323: ='Core Cost Data'!$B$92 -> 10 | G323: ='Core Cost Data'!$C$92 -> 14.2 | H323: ='Core Cost Data'!$D$92 -> 20 | I323: @ | J323: ='Core Cost Data'!$B$148 -> 1.5 | K323: hours/cutting
B325: Total Harvest Costs per Acre | F325: =$F$92*$J$92+$F$94*$J$94+$F$96*$J$96+$F$98*$J$98*$H$89 -> 98.4 | G325: =$G$92*$J$92+$G$94*$J$94+$G$96*$J$96+$G$98*$J$98*$H$89 -> 136.675 | H325: =$H$92*$J$92+$H$94*$J$94+$H$96*$J$96+$H$98*$J$98*$H$89 -> 175.6
B327: Alfalfa value per ton: | G327: ='Core Cost Data'!$H$91 -> 140 | I327: @ | J327: =$D$89 -> 2.5 | K327: tons
B329: Total Revenue per Acre: | G329: =$G$102*$J$102 -> 350
B339: Years 4: Alfalfa production
B341: Fertlizer costs: | F341: Min | G341: Average | H341: Max
D342: Fertlizer spreading | F342: ='Core Cost Data'!$B$89 -> 3 | G342: ='Core Cost Data'!$C$89 -> 6.25 | H342: ='Core Cost Data'!$D$89 -> 10 | I342: /acre
D344: Phosphorus | E344: + | F344: ='Core Cost Data'!$B$105 -> 0.45 | G344: ='Core Cost Data'!$C$105 -> 0.48 | H344: ='Core Cost Data'!$D$105 -> 0.51 | I344: @ | J344: ='Core Cost Data'!$D$151 -> 13 | K344: lbs/acre
D346: Potash | E346: + | F346: ='Core Cost Data'!$B$106 -> 0.39 | G346: ='Core Cost Data'!$C$106 -> 0.41 | H346: ='Core Cost Data'!$D$106 -> 0.43 | I346: @ | J346: ='Core Cost Data'!$D$152 -> 50 | K346: lbs/acre
B348: Labor costs:
D349: Labor | E349: + | F349: ='Core Cost Data'!$B$92 -> 10 | G349: ='Core Cost Data'!$C$92 -> 14.2 | H349: ='Core Cost Data'!$D$92 -> 20 | I349: @ | J349: ='Core Cost Data'!$C$147 -> 0 | K349: hours
B351: Total Costs per acre with rent: | F351: =$F$117+$F$119*$J$119+$F$121*$J$121+$F$124*$J$124+$I$43 -> 258.35 | G351: =$G$117+$G$119*$J$119+$G$121*$J$121+$G$124*$J$124+$I$43 -> 262.99 | H351: =$H$117+$H$119*$J$119+$H$121*$J$121+$H$124*$J$124+$I$43 -> 268.13
B356: Year 4: Alfalfa harvest
B358: Expected yield (tons): | D358: ='Core Cost Data'!$B$144 -> 4 | E358: /acre | F358: Number of cuttings: | H358: ='Core Cost Data'!$D$144 -> 3
F360: Min | G360: Average | H360: Max
B361: Harvest costs per cutting: | D361: Mowing | F361: ='Core Cost Data'!$B$93 -> 9 | G361: ='Core Cost Data'!$C$93 -> 12.05 | H361: ='Core Cost Data'!$D$93 -> 16 | I361: x | J361: =$H$133 -> 3 | K361: cuttings
D363: Raking | E363: + | F363: ='Core Cost Data'!$B$95 -> 4 | G363: ='Core Cost Data'!$C$95 -> 6.5 | H363: ='Core Cost Data'!$D$95 -> 10 | I363: x | J363: =$H$133 -> 3 | K363: cuttings
D365: Baling | E365: + | F365: ='Core Cost Data'!$B$96 -> 8 | G365: ='Core Cost Data'!$C$96 -> 10.75 | H365: ='Core Cost Data'!$D$96 -> 12 | I365: x | J365: =ROUND($D$133*2000/950,1) -> 8.4 | K365: bales
B367: Labor costs: | D367: Labor | E367: + | F367: ='Core Cost Data'!$B$92 -> 10 | G367: ='Core Cost Data'!$C$92 -> 14.2 | H367: ='Core Cost Data'!$D$92 -> 20 | I367: @ | J367: ='Core Cost Data'!$B$149 -> 1.33 | K367: hours/cutting
B369: Total Harvest Costs per Acre | F369: =$F$136*$J$136+$F$138*$J$138+$F$140*$J$140+$F$142*$J$142*$H$133 -> 146.1 | G369: =$G$136*$J$136+$G$138*$J$138+$G$140*$J$140+$G$142*$J$142*$H$133 -> 202.608 | H369: =$H$136*$J$136+$H$138*$J$138+$H$140*$J$140+$H$142*$J$142*$H$133 -> 258.6
B371: Alfalfa value per ton: | G371: ='Core Cost Data'!$H$91 -> 140 | I371: @ | J371: =$D$133 -> 4 | K371: tons
B373: Total Revenue per Acre: | G373: =$G$146*$J$146 -> 560
B383: Crop type for final year:
B385: Crop yield effects for alfalfa: | E385: =IF($C$210=2,'Core Cost Data'!$B$145,0%) -> 0.07
C388: Crop Type | E388: Crop Cost (/acre) | G388: Crop Yield (/acre) | I388: Crop Price (/bushel) | K388: Profit (/acre)
B390: Year 5: | C390: =$D$210 -> Corn | E390: =$E$210 -> 886.94 | G390: =IF($C$210 = 2, $F$210*(1+$E$160), $F$210) -> 214 | I390: =IF($C$165="CORN",$C$214,$C$215) -> 2.85 | K390: =$I$165*$G$165-$E$165 -> -277.04
B392: Total Costs and Revenue (4% discount rate):
F393: Min | G393: Average | H393: Max
B394: Net present value per acre for 5 year rotation: | F394: =$I$229 -> -722.5584778 | G394: =$J$229 -> -851.414944 | H394: =$K$229 -> -985.943207 | I394: /acre
C407: Crop Type | E407: Crop Cost (/acre) | G407: Crop Yield (/acre) | I407: Crop Price (/bushel) | K407: Profit (/acre)
B409: Year 3: | C409: =$D$211 -> Soybeans | E409: =$E$211 -> 594.82 | G409: =$F$211 -> 55 | I409: =IF($C$184="CORN",$C$214,$C$215) -> 9.23 | K409: =$G$184*$I$184-$E$184 -> -87.17
B411: Year 4: | C411: =$G$211 -> Soybeans | E411: =$H$211 -> 594.82 | G411: =$I$211 -> 55 | I411: =IF($C$186="CORN",$C$214,$C$215) -> 9.23 | K411: =$G$186*$I$186-$E$186 -> -87.17
B413: Year 5: | C413: =$J$211 -> Soybeans | E413: =$K$211 -> 594.82 | G413: =$L$211 -> 55 | I413: =IF($C$188="CORN",$C$214,$C$215) -> 9.23 | K413: =$G$188*$I$188-$E$188 -> -87.17
B415: Total Costs and Revenue (4% discount rate):
F416: Min | G416: Average | H416: Max
B417: Net present value per acre for 5 year rotation: | F417: =$I$241 -> -676.1079667 | G417: =$J$241 -> -676.1079667 | H417: =$K$241 -> -676.1079667 | I417: /acre
E421: Discount Rate | F421: ='Core Cost Data'!$H$96 -> 0.04

Sheet Wetlands
B8: Wetlands (Constructed/Restored)
B10: Wetlands are engineered impoundment systems that capture and filter water through a range of vegetative, soil and microbial processes. Wetlands are generally large in size
B11: and are placed on the landscape using percision mapping programs based on soil profile, topography and upstream activity. Size is determined based on the
B12: amount of acres draining into the wetland location.
B14: Because they are sizable, wetlands tend to be more expensive than other practices with substantial design and construction costs and large areas of land removed from production.
B15: Because of this, wetlands are often financed through a government cost-sharing program.
B17: In addtion to water quality, wetlands provide a wide variety of non-market benefits including wildlife and hunting habitat, recreation opportunities, and improved aesthetics.
B18: In particular, wetlands make excellent waterfowl habitat.
B20: This worksheet estimates the cost to design, construct and maintain a wetland over a 40-year lifespan.
B22: Let's get started.
B26: General Information: | G26: Final Costs:
B27: Would you like to autofill the worksheet with | I27: Min | J27: Avg | K27: Max
B28: default prices? | G28: Out of Pocket (Year 1): | I28: =$C$155 -> 33258.8 | J28: =$D$155 -> 36729.05 | K28: =$E$155 -> 40414.8
B30: Is cost-sharing available? | G30: Yearly Maintainence: | I30: =$E$126 -> 70 | J30: =$F$126 -> 116 | K30: =$G$126 -> 180
G32: Annualized costs (40 yrs): | I32: =$F$196 -> 13159.0174 | J32: =$G$196 -> 13396.21899 | K32: =$H$196 -> 13660.80054
B37: Step 1: Design and Construction
B39: A constructed wetland system has two major components: the detention basin and the surrounding vegetative buffer. Due to the large size and necessity of correctly managing incoming tile flow, an engineering firm
B40: will typically be contracted to design the wetland system. In addition, a contractor will usually be required to excavate the detention basin and precisely install control structures and weir plates.
B42: The surrounding vegetative buffer serves to protect the function of the detention basin and filter surface water. As a general rule, it should be between 3-4 times the size of the detention basin and can be planted into a wetland seed mix.
B43: Site preparation for buffer establishment should begin in the fall prior to spring planting using an herbicide followed by disking in the spring.
B47: Acres in drainage area: | E47: ='Core Cost Data'!$K$209 -> 1000 | F47: acres | H47: Estimated wetland core: | I47: =$E$47*'Core Cost Data'!$H$209 -> 10 | J47: acres
B49: Land rent value: | E49: ='Core Cost Data'!$H$94 -> 230 | F49: /acre
B51: Wetland design costs (Engineering firm):
B53: Engineering cost: | D53: ='Core Cost Data'!$F$210*$I$47 -> 100 | E53: hours at | F53: ='Core Cost Data'!$H$210 -> 100 | G53: /hour | H53: = | I53: =$D$53*$F$53 -> 10000
B57: Wetland construction costs (detention pond):
F59: Min | G59: Average | H59: Max
B60: Contractor costs: | D60: ='Core Cost Data'!$F$211*$E$47/1000 -> 15 | E60: hours at | F60: ='Core Cost Data'!$B$102 -> 50 | G60: ='Core Cost Data'!$C$102 -> 91.25 | H60: ='Core Cost Data'!$D$102 -> 125 | I60: /hour
B62: Control structure: | C62: + | D62: ='Core Cost Data'!$J$213 -> 1 | E62: unit(s) at | F62: ='Core Cost Data'!$F$213 -> 1320 | G62: ='Core Cost Data'!$G$213 -> 2127.5 | H62: ='Core Cost Data'!$H$213 -> 2935 | I62: per unit
B64: Weir plate: | C64: + | D64: ='Core Cost Data'!$I$214 -> 200 | E64: sq. ft. at | G64: ='Core Cost Data'!$F$214 -> 20 | H64: /sq. ft.
B66: Vegetation plugs | C66: + | D66: ='Core Cost Data'!$D$221 -> 200 | E66: plugs per acre at | G66: ='Core Cost Data'!$B$221 -> 0.75 | H66: /plug
B68: Wetland seeds | C68: + | G68: ='Core Cost Data'!$G$221 -> 200 | H68: /acre
B70: Total cost for detention area with rent: | F70: =($D$60*$F$60+$D$62*$F$62+$D$64*$G$64+($E$49*$I$47)+$D$66*$G$66*$I$47+$G$68*$I$47) -> 11870 | G70: =($D$60*$G$60+$D$62*$G$62+$D$64*$G$64+($E$49*$I$47)+$D$66*$G$66*$I$47+$G$68*$I$47) -> 13296.25 | H70: =($D$60*$H$60+$D$62*$H$62+$D$64*$G$64+($E$49*$I$47)+$D$66*$G$66*$I$47+$G$68*$I$47) -> 14610
B74: Wetland buffer establishment | F74: Estimated buffer size (4% of wetland size): | H74: =$E$47*'Core Cost Data'!$F$209 -> 40 | I74: acres
F76: Min | G76: Average | H76: Max
B77: Site preparation costs: | D77: Disking (tandem) | F77: ='Core Cost Data'!$B$87 -> 7.5 | G77: ='Core Cost Data'!$C$87 -> 14.65 | H77: ='Core Cost Data'!$D$87 -> 20 | I77: /acre | J77: x | K77: ='Core Cost Data'!$B$214 -> 2 | L77: times
D79: Site Clearing | E79: + | F79: ='Core Cost Data'!$B$94 -> 10 | G79: ='Core Cost Data'!$C$94 -> 18.35 | H79: ='Core Cost Data'!$D$94 -> 30 | I79: /acre
D81: Herbicide (varies) | E81: + | F81: ='Core Cost Data'!$I$220 -> 18.12 | G81: ='Core Cost Data'!$J$220 -> 20.62 | H81: ='Core Cost Data'!$K$220 -> 28.12 | I81: /acre
D83: Harrowing | E83: + | F83: ='Core Cost Data'!$B$88 -> 4 | G83: ='Core Cost Data'!$C$88 -> 9.35 | H83: ='Core Cost Data'!$D$88 -> 13 | I83: /acre
B85: Planting costs:
D86: Seeding (drill) | E86: + | F86: ='Core Cost Data'!$B$100 -> 10 | G86: ='Core Cost Data'!$C$100 -> 15.9 | H86: ='Core Cost Data'!$D$100 -> 25 | I86: /acre
D88: Seed mix
D90: Seed costs | F90: + | G90: =$C$149 -> 175 | H90: /acre
B93: Fertlizer costs:
D94: Fertlizer spreading | E94: + | F94: ='Core Cost Data'!$B$89 -> 3 | G94: ='Core Cost Data'!$C$89 -> 6.25 | H94: ='Core Cost Data'!$D$89 -> 10 | I94: /acre
D96: Lime | E96: + | F96: ='Core Cost Data'!$B$107 -> 13.5 | G96: ='Core Cost Data'!$C$107 -> 16.75 | H96: ='Core Cost Data'!$D$107 -> 20.5 | I96: @ | J96: ='Core Cost Data'!$B$217 -> 3 | K96: tons/acre
D98: Phosphorus | E98: + | F98: ='Core Cost Data'!$B$105 -> 0.45 | G98: ='Core Cost Data'!$C$105 -> 0.48 | H98: ='Core Cost Data'!$D$105 -> 0.51 | I98: @ | J98: ='Core Cost Data'!$B$215 -> 30 | K98: lbs/acre
D100: Potash | E100: + | F100: ='Core Cost Data'!$B$106 -> 0.39 | G100: ='Core Cost Data'!$C$106 -> 0.41 | H100: ='Core Cost Data'!$D$106 -> 0.43 | I100: @ | J100: ='Core Cost Data'!$B$216 -> 40 | K100: lbs/acre
B102: Labor costs:
D103: Labor | E103: + | F103: ='Core Cost Data'!$B$92 -> 10 | G103: ='Core Cost Data'!$C$92 -> 14.2 | H103: ='Core Cost Data'!$D$92 -> 20 | I103: @ | J103: ='Core Cost Data'!$B$218 -> 0 | K103: hours
B105: Total costs for wetland buffer with rent: | F105: =($F$77*$K$77+$F$79+$F$81+$F$83+$F$86+$G$90+$F$94+$F$96*$J$96+$F$98*$J$98+$F$100*$J$100+$F$103*$J$103+$E$49)*$H$74 -> 21388.8 | G105: =($G$77*$K$77+$G$79+$G$81+$G$83+$G$86+$G$90+$G$94+$G$96*$J$96+$G$98*$J$98+$G$100*$J$100+$G$103*$J$103+$E$49)*$H$74 -> 23432.8 | H105: =($H$77*$K$77+$H$79+$H$81+$H$83+$H$86+$G$90+$H$94+$H$96*$J$96+$H$98*$J$98+$H$100*$J$100+$H$103*$J$103+$E$49)*$H$74 -> 25804.8
B108: Step 2: Maintainence
B110: The buffer system surrounding the wetland will need to be maintained in order to retain its effectiveness. Approximately 10% of the buffer system should be mowed annually with a rotating schedule.
B111: Control structures directly tile flow into the wetland will need to be adjusted seasonally.
B113: The flow gates in these control structures will need to be replaced every 8 years. The structures themselves as well as the main weir plate will need to be replaced every 40 years.
B117: Yearly maintenance cost
J119: Min | K119: Average | L119: Max
B120: Mowing buffer (10% yearly): | G120: =$H$74*'Core Cost Data'!$B$219 -> 4 | H120: acres | I120: x | J120: ='Core Cost Data'!$B$94 -> 10 | K120: ='Core Cost Data'!$C$94 -> 18.35 | L120: ='Core Cost Data'!$D$94 -> 30 | M120: dollars/acre
J122: Min | K122: Average | L122: Max
B123: Adjusting and servicing control structures: | F123: + | G123: ='Core Cost Data'!$F$216 -> 3 | H123: hours | I123: x | J123: ='Core Cost Data'!$B$92 -> 10 | K123: ='Core Cost Data'!$C$92 -> 14.2 | L123: ='Core Cost Data'!$D$92 -> 20 | M123: dollars/hour
E125: Min | F125: Average | G125: Max
B126: Total yearly management cost: | E126: =$G$120*$J$120+$G$123*$J$123 -> 70 | F126: =$G$120*$K$120+$G$123*$K$123 -> 116 | G126: =$G$120*$L$120+$G$123*$L$123 -> 180 | H126: dollars
B129: Extended maintenance costs
B131: Every 8 years
I132: Min | J132: Max
B133: Replace control structure gates: | F133: ='Core Cost Data'!$F$217 -> 5 | G133: gates | H133: ='Core Cost Data'!$I$217 -> 14.17 | I133: ='Core Cost Data'!$J$217 -> 14.75 | J133: ='Core Cost Data'!$K$217 -> 15.32 | K133: dollars/gate | M133: x | N133: ='Core Cost Data'!$J$213 -> 1 | O133: structures
B135: Every 40 years
E136: Min | F136: Average | G136: Max
B137: Contractor to replace: | E137: ='Core Cost Data'!$B$102 -> 50 | F137: ='Core Cost Data'!$C$102 -> 91.25 | G137: ='Core Cost Data'!$D$102 -> 125 | H137: x | I137: ='Core Cost Data'!$F$218*$E$47/1000 -> 16 | J137: hours with backhoe
B139: Replace control structure: | D139: + | E139: ='Core Cost Data'!$F$213 -> 1320 | F139: ='Core Cost Data'!$G$213 -> 2127.5 | G139: ='Core Cost Data'!$H$213 -> 2935
B144: This is the end of the wetlands worksheet. The total costs and nitrogen reduction information is summarized in the boxes at the top of this page.
B148: Seed Name | C148: Seed Cost
B149: 4 | C149: =VLOOKUP(B149,'Core Cost Data'!A210:C213,3) -> 175
C153: Costs | F153: Net Present Value | J153: Discount Rate | K153: ='Core Cost Data'!$H$96 -> 0.04
B154: Year | C154: Min | D154: Average | E154: Max | F154: Min | G154: Average | H154: Max
B155: 1 | C155: =F70+F105 -> 33258.8 | D155: =G70+G105 -> 36729.05 | E155: =H70+H105 -> 40414.8 | F155: =C155/(1+$K$153)^($B155-1) -> 33258.8 | G155: =D155/(1+$K$153)^($B155-1) -> 36729.05 | H155: 40414.8
B156: =B155+1 -> 2 | C156: =$E$126+($E$49*($I$47+$H$74)) -> 11570 | D156: =$F$126+($E$49*($I$47+$H$74)) -> 11616 | E156: =$G$126+($E$49*($I$47+$H$74)) -> 11680 | F156: =C156/(1+$K$153)^($B156-1) -> 11125 | G156: =D156/(1+$K$153)^($B156-1) -> 11169.23077 | H156: =E156/(1+$K$153)^($B156-1) -> 11230.76923
B157: =B156+1 -> 3 | C157: =$E$126+($E$49*($I$47+$H$74)) -> 11570 | D157: =$F$126+($E$49*($I$47+$H$74)) -> 11616 | E157: =$G$126+($E$49*($I$47+$H$74)) -> 11680 | F157: 10697.11538 | G157: 10739.64497 | H157: 10798.81657
B158: 4 | C158: 11570 | D158: 11616 | E158: 11680 | F158: 10285.68787 | G158: 10326.5817 | H158: 10383.47747
B159: 5 | C159: 11570 | D159: 11616 | E159: 11680 | F159: 9890.08449 | G159: 9929.405483 | H159: 9984.112951
B160: 6 | C160: 11570 | D160: 11616 | E160: 11680 | F160: 9509.696625 | G160: 9547.505272 | H160: 9600.108607
B161: 7 | C161: 11570 | D161: 11616 | E161: 11680 | F161: 9143.939063 | G161: 9180.293531 | H161: 9230.873661
B162: 8 | C162: =E$126+$F$133*H$133*$N$133+($E$49*($I$47+$H$74)) -> 11640.85 | D162: =F$126+$F$133*I$133*$N$133+($E$49*($I$47+$H$74)) -> 11689.75 | E162: =G$126+$F$133*J$133*$N$133+($E$49*($I$47+$H$74)) -> 11756.6 | F162: 8846.089276 | G162: 8883.249257 | H162: 8934.049763
B163: 9 | C163: =$E$126+($E$49*($I$47+$H$74)) -> 11570 | D163: =$F$126+($E$49*($I$47+$H$74)) -> 11616 | E163: =$G$126+($E$49*($I$47+$H$74)) -> 11680 | F163: 8454.085672 | G163: 8487.697421 | H163: 8534.461594
B164: 10 | C164: =$E$126+($E$49*($I$47+$H$74)) -> 11570 | D164: =$F$126+($E$49*($I$47+$H$74)) -> 11616 | E164: =$G$126+($E$49*($I$47+$H$74)) -> 11680 | F164: 8128.928531 | G164: 8161.24752 | H164: 8206.213072
B165: 11 | C165: 11570 | D165: 11616 | E165: 11680 | F165: 7816.277433 | G165: 7847.353385 | H165: 7890.589492
B166: 12 | C166: 11570 | D166: 11616 | E166: 11680 | F166: 7515.651378 | G166: 7545.532101 | H166: 7587.105281
B167: 13 | C167: 11570 | D167: 11616 | E167: 11680 | F167: 7226.587864 | G167: 7255.319328 | H167: 7295.293539
B168: 14 | C168: 11570 | D168: 11616 | E168: 11680 | F168: 6948.642177 | G168: 6976.268585 | H168: 7014.705326
B169: 15 | C169: 11570 | D169: 11616 | E169: 11680 | F169: 6681.386708 | G169: 6707.950562 | H169: 6744.908967
B170: 16 | C170: =E$126+$F$133*H$133*$N$133+($E$49*($I$47+$H$74)) -> 11640.85 | D170: =F$126+$F$133*I$133*$N$133+($E$49*($I$47+$H$74)) -> 11689.75 | E170: =G$126+$F$133*J$133*$N$133+($E$49*($I$47+$H$74)) -> 11756.6 | F170: 6463.750786 | G170: 6490.903221 | H170: 6528.022653
B171: 17 | C171: =$E$126+($E$49*($I$47+$H$74)) -> 11570 | D171: =$F$126+($E$49*($I$47+$H$74)) -> 11616 | E171: =$G$126+($E$49*($I$47+$H$74)) -> 11680 | F171: 6177.317593 | G171: 6201.877369 | H171: 6236.047492
B172: 18 | C172: =$E$126+($E$49*($I$47+$H$74)) -> 11570 | D172: =$F$126+($E$49*($I$47+$H$74)) -> 11616 | E172: =$G$126+($E$49*($I$47+$H$74)) -> 11680 | F172: 5939.728455 | G172: 5963.343624 | H172: 5996.199512
B173: 19 | C173: 11570 | D173: 11616 | E173: 11680 | F173: 5711.27736 | G173: 5733.984254 | H173: 5765.576453
B174: 20 | C174: 11570 | D174: 11616 | E174: 11680 | F174: 5491.612846 | G174: 5513.446398 | H174: 5543.823513
B175: 21 | C175: 11570 | D175: 11616 | E175: 11680 | F175: 5280.396968 | G175: 5301.390767 | H175: 5330.599532
B176: 22 | C176: 11570 | D176: 11616 | E176: 11680 | F176: 5077.304776 | G176: 5097.491122 | H176: 5125.576473
B177: 23 | C177: 11570 | D177: 11616 | E177: 11680 | F177: 4882.023824 | G177: 4901.433771 | H177: 4928.438916
B178: 24 | C178: =E$126+$F$133*H$133*$N$133+($E$49*($I$47+$H$74)) -> 11640.85 | D178: =F$126+$F$133*I$133*$N$133+($E$49*($I$47+$H$74)) -> 11689.75 | E178: =G$126+$F$133*J$133*$N$133+($E$49*($I$47+$H$74)) -> 11756.6 | F178: 4722.999387 | G178: 4742.839405 | H178: 4769.96221
B179: 25 | C179: =$E$126+($E$49*($I$47+$H$74)) -> 11570 | D179: =$F$126+($E$49*($I$47+$H$74)) -> 11616 | E179: =$G$126+($E$49*($I$47+$H$74)) -> 11680 | F179: 4513.705458 | G179: 4531.651046 | H179: 4556.61882
B180: 26 | C180: =$E$126+($E$49*($I$47+$H$74)) -> 11570 | D180: =$F$126+($E$49*($I$47+$H$74)) -> 11616 | E180: =$G$126+($E$49*($I$47+$H$74)) -> 11680 | F180: 4340.101402 | G180: 4357.356775 | H180: 4381.36425
B181: 27 | C181: 11570 | D181: 11616 | E181: 11680 | F181: 4173.174425 | G181: 4189.76613 | H181: 4212.850241
B182: 28 | C182: 11570 | D182: 11616 | E182: 11680 | F182: 4012.667716 | G182: 4028.621279 | H182: 4050.817539
B183: 29 | C183: 11570 | D183: 11616 | E183: 11680 | F183: 3858.334343 | G183: 3873.674306 | H183: 3895.016865
B184: 30 | C184: 11570 | D184: 11616 | E184: 11680 | F184: 3709.936868 | G184: 3724.686833 | H184: 3745.208524
B185: 31 | C185: 11570 | D185: 11616 | E185: 11680 | F185: 3567.246988 | G185: 3581.429647 | H185: 3601.162042
B186: 32 | C186: =E$126+$F$133*H$133*$N$133+($E$49*($I$47+$H$74)) -> 11640.85 | D186: =F$126+$F$133*I$133*$N$133+($E$49*($I$47+$H$74)) -> 11689.75 | E186: =G$126+$F$133*J$133*$N$133+($E$49*($I$47+$H$74)) -> 11756.6 | F186: 3451.04939 | G186: 3465.546297 | H186: 3485.364665
B187: 33 | C187: =$E$126+($E$49*($I$47+$H$74)) -> 11570 | D187: =$F$126+($E$49*($I$47+$H$74)) -> 11616 | E187: =$G$126+($E$49*($I$47+$H$74)) -> 11680 | F187: 3298.120367 | G187: 3311.233032 | H187: 3329.47674
B188: 34 | C188: =$E$126+($E$49*($I$47+$H$74)) -> 11570 | D188: =$F$126+($E$49*($I$47+$H$74)) -> 11616 | E188: =$G$126+($E$49*($I$47+$H$74)) -> 11680 | F188: 3171.269583 | G188: 3183.877915 | H188: 3201.419942
B189: 35 | C189: 11570 | D189: 11616 | E189: 11680 | F189: 3049.297676 | G189: 3061.421072 | H189: 3078.288406
B190: 36 | C190: 11570 | D190: 11616 | E190: 11680 | F190: 2932.016996 | G190: 2943.674108 | H190: 2959.892698
B191: 37 | C191: 11570 | D191: 11616 | E191: 11680 | F191: 2819.247112 | G191: 2830.455873 | H191: 2846.050671
B192: 38 | C192: 11570 | D192: 11616 | E192: 11680 | F192: 2710.814531 | G192: 2721.592186 | H192: 2736.587184
B193: 39 | C193: 11570 | D193: 11616 | E193: 11680 | F193: 2606.552433 | G193: 2616.915563 | H193: 2631.333831
B194: 40 | C194: =E$126+E139*$N$133+$E$141*$G$141+E137*$I$137+($E$49*($I$47+$H$74)) -> 13690 | D194: =F$126+F139*$N$133+$E$141*$G$141+F137*$I$137+($E$49*($I$47+$H$74)) -> 15203.5 | E194: =G$126+G139*$N$133+$E$141*$G$141+G137*$I$137+($E$49*($I$47+$H$74)) -> 16615 | F194: 2965.536102 | G194: 3293.39139 | H194: 3599.151376
E195: Total | F195: =SUM(F155:F194) -> 260453.4559 | G195: =SUM(G155:G194) -> 265148.3333 | H195: 270385.1361
E196: Annualized | F196: =$K$153*F195/(1-(1+$K$153)^(-1*$B$194)) -> 13159.0174 | G196: =$K$153*G195/(1-(1+$K$153)^(-1*$B$194)) -> 13396.21899 | H196: 13660.80054
J206: =$C$155 -> 33258.8 | K206: =$D$155 -> 36729.05 | L206: =$E$155 -> 40414.8
J208: =$E$126 -> 70 | K208: =$F$126 -> 116 | L208: =$G$126 -> 180
J210: =$F$196 -> 13159.0174 | K210: =$G$196 -> 13396.21899 | L210: =$H$196 -> 13660.80054
C225: Acres in drainage area: | F225: ='Core Cost Data'!$K$209 -> 1000 | G225: acres | I225: Estimated wetland core: | J225: =$E$47*'Core Cost Data'!$H$209 -> 10 | K225: acres
C227: Land rent value: | F227: ='Core Cost Data'!$H$94 -> 230 | G227: /acre
C229: Wetland design costs (Engineering firm):
C231: Engineering cost: | E231: ='Core Cost Data'!$F$210*$I$47 -> 100 | F231: hours at | G231: ='Core Cost Data'!$H$210 -> 100 | H231: /hour | I231: = | J231: =$D$53*$F$53 -> 10000
C235: Wetland construction costs (detention pond):
G237: Min | H237: Average | I237: Max
C238: Contractor costs: | E238: ='Core Cost Data'!$F$211*$E$47/1000 -> 15 | F238: hours at | G238: ='Core Cost Data'!$B$102 -> 50 | H238: ='Core Cost Data'!$C$102 -> 91.25 | I238: ='Core Cost Data'!$D$102 -> 125 | J238: /hour
C240: Control structure: | D240: + | E240: ='Core Cost Data'!$J$213 -> 1 | F240: unit(s) at | G240: ='Core Cost Data'!$F$213 -> 1320 | H240: ='Core Cost Data'!$G$213 -> 2127.5 | I240: ='Core Cost Data'!$H$213 -> 2935 | J240: per unit
C242: Weir plate: | D242: + | E242: ='Core Cost Data'!$I$214 -> 200 | F242: sq. ft. at | H242: ='Core Cost Data'!$F$214 -> 20 | I242: /sq. ft.
C244: Vegetation plugs | D244: + | E244: ='Core Cost Data'!$D$221 -> 200 | F244: plugs per acre at | H244: ='Core Cost Data'!$B$221 -> 0.75 | I244: /plug
C246: Wetland seeds | D246: + | H246: ='Core Cost Data'!$G$221 -> 200 | I246: /acre
C248: Total cost for detention area with rent: | G248: =($D$60*$F$60+$D$62*$F$62+$D$64*$G$64+($E$49*$I$47)+$D$66*$G$66*$I$47+$G$68*$I$47) -> 11870 | H248: =($D$60*$G$60+$D$62*$G$62+$D$64*$G$64+($E$49*$I$47)+$D$66*$G$66*$I$47+$G$68*$I$47) -> 13296.25 | I248: =($D$60*$H$60+$D$62*$H$62+$D$64*$G$64+($E$49*$I$47)+$D$66*$G$66*$I$47+$G$68*$I$47) -> 14610
C252: Wetland buffer establishment | G252: Estimated buffer size (4% of wetland size): | I252: =$E$47*'Core Cost Data'!$F$209 -> 40 | J252: acres
G254: Min | H254: Average | I254: Max
C255: Site preparation costs: | E255: Disking (tandem) | G255: ='Core Cost Data'!$B$87 -> 7.5 | H255: ='Core Cost Data'!$C$87 -> 14.65 | I255: ='Core Cost Data'!$D$87 -> 20 | J255: /acre | K255: x | L255: ='Core Cost Data'!$B$214 -> 2 | M255: times
E257: Site Clearing | F257: + | G257: ='Core Cost Data'!$B$94 -> 10 | H257: ='Core Cost Data'!$C$94 -> 18.35 | I257: ='Core Cost Data'!$D$94 -> 30 | J257: /acre
E259: Herbicide (varies) | F259: + | G259: ='Core Cost Data'!$I$220 -> 18.12 | H259: ='Core Cost Data'!$J$220 -> 20.62 | I259: ='Core Cost Data'!$K$220 -> 28.12 | J259: /acre
E261: Harrowing | F261: + | G261: ='Core Cost Data'!$B$88 -> 4 | H261: ='Core Cost Data'!$C$88 -> 9.35 | I261: ='Core Cost Data'!$D$88 -> 13 | J261: /acre
C263: Planting costs:
E264: Seeding (drill) | F264: + | G264: ='Core Cost Data'!$B$100 -> 10 | H264: ='Core Cost Data'!$C$100 -> 15.9 | I264: ='Core Cost Data'!$D$100 -> 25 | J264: /acre
E266: Seed mix
E268: Seed costs | G268: + | H268: =$C$149 -> 175 | I268: /acre
C271: Fertlizer costs:
E272: Fertlizer spreading | F272: + | G272: ='Core Cost Data'!$B$89 -> 3 | H272: ='Core Cost Data'!$C$89 -> 6.25 | I272: ='Core Cost Data'!$D$89 -> 10 | J272: /acre
E274: Lime | F274: + | G274: ='Core Cost Data'!$B$107 -> 13.5 | H274: ='Core Cost Data'!$C$107 -> 16.75 | I274: ='Core Cost Data'!$D$107 -> 20.5 | J274: @ | K274: ='Core Cost Data'!$B$217 -> 3 | L274: tons/acre
E276: Phosphorus | F276: + | G276: ='Core Cost Data'!$B$105 -> 0.45 | H276: ='Core Cost Data'!$C$105 -> 0.48 | I276: ='Core Cost Data'!$D$105 -> 0.51 | J276: @ | K276: ='Core Cost Data'!$B$215 -> 30 | L276: lbs/acre
E278: Potash | F278: + | G278: ='Core Cost Data'!$B$106 -> 0.39 | H278: ='Core Cost Data'!$C$106 -> 0.41 | I278: ='Core Cost Data'!$D$106 -> 0.43 | J278: @ | K278: ='Core Cost Data'!$B$216 -> 40 | L278: lbs/acre
C280: Labor costs:
E281: Labor | F281: + | G281: ='Core Cost Data'!$B$92 -> 10 | H281: ='Core Cost Data'!$C$92 -> 14.2 | I281: ='Core Cost Data'!$D$92 -> 20 | J281: @ | K281: ='Core Cost Data'!$B$218 -> 0 | L281: hours
C283: Total costs for wetland buffer with rent: | G283: =($F$77*$K$77+$F$79+$F$81+$F$83+$F$86+$G$90+$F$94+$F$96*$J$96+$F$98*$J$98+$F$100*$J$100+$F$103*$J$103+$E$49)*$H$74 -> 21388.8 | H283: =($G$77*$K$77+$G$79+$G$81+$G$83+$G$86+$G$90+$G$94+$G$96*$J$96+$G$98*$J$98+$G$100*$J$100+$G$103*$J$103+$E$49)*$H$74 -> 23432.8 | I283: =($H$77*$K$77+$H$79+$H$81+$H$83+$H$86+$G$90+$H$94+$H$96*$J$96+$H$98*$J$98+$H$100*$J$100+$H$103*$J$103+$E$49)*$H$74 -> 25804.8
C295: Yearly maintenance cost
K297: Min | L297: Average | M297: Max
C298: Mowing buffer (10% yearly): | H298: =$H$74*'Core Cost Data'!$B$219 -> 4 | I298: acres | J298: x | K298: ='Core Cost Data'!$B$94 -> 10 | L298: ='Core Cost Data'!$C$94 -> 18.35 | M298: ='Core Cost Data'!$D$94 -> 30 | N298: dollars/acre
K300: Min | L300: Average | M300: Max
C301: Adjusting and servicing control structures: | G301: + | H301: ='Core Cost Data'!$F$216 -> 3 | I301: hours | J301: x | K301: ='Core Cost Data'!$B$92 -> 10 | L301: ='Core Cost Data'!$C$92 -> 14.2 | M301: ='Core Cost Data'!$D$92 -> 20 | N301: dollars/hour
F303: Min | G303: Average | H303: Max
C304: Total yearly management cost: | F304: =$G$120*$J$120+$G$123*$J$123 -> 70 | G304: =$G$120*$K$120+$G$123*$K$123 -> 116 | H304: =$G$120*$L$120+$G$123*$L$123 -> 180 | I304: dollars
C307: Extended maintenance costs
C309: Every 8 years
J310: Min | K310: Max
C311: Replace control structure gates: | G311: ='Core Cost Data'!$F$217 -> 5 | H311: gates | I311: ='Core Cost Data'!$I$217 -> 14.17 | J311: ='Core Cost Data'!$J$217 -> 14.75 | K311: ='Core Cost Data'!$K$217 -> 15.32 | L311: dollars/gate | N311: x | O311: ='Core Cost Data'!$J$213 -> 1
C313: Every 40 years
F314: Min | G314: Average | H314: Max
C315: Contractor to replace: | F315: ='Core Cost Data'!$B$102 -> 50 | G315: ='Core Cost Data'!$C$102 -> 91.25 | H315: ='Core Cost Data'!$D$102 -> 125 | I315: x | J315: ='Core Cost Data'!$F$218*$E$47/1000 -> 16 | K315: hours with backhoe
C317: Replace control structure: | E317: + | F317: ='Core Cost Data'!$F$213 -> 1320 | G317: ='Core Cost Data'!$G$213 -> 2127.5 | H317: ='Core Cost Data'!$H$213 -> 2935
C322: Discount Rate | D322: ='Core Cost Data'!$H$96 -> 0.04
C326: Present value of annual rent =

Sheet Fertilizer (hidden)
B8: Fertilizer Management (Nitrogen)
B10: Nitrogen management is the practice of controlling the timing, application rate, and type of fertilizer used in grain production. Smart management has the potential to reduce nitrogen loss while maintaining yields.
B12: Iowa farmers use a variety of ways to determine their N rate. Recent surveys have shown that farmers rely mainly on yield goals, recommendations from fertilizer dealers and past experience to set N rates.
B13: An alternative way that could reduce N loss is the MRTN (Maximum Return to Nitrogen) was developed by university specialists in the Corn Belt as a method of calculating an application rate that would
B14: find the rate at which the economic net return return is maximized. The MRTN is backed by field trials in states across the Midwest and is determined based on a ratio of fertilizer price to corn grain price.
B16: Using an alterncative nitrogen source, such as liquid manure, can provide a small reduction in nitrate loss, while enhancing soil organic carbon, structure and reducing runoff.
B18: Other ways of reducing N loss through management include choosing to apply fertilizer only in the spring and then sidedressing all spring applied nitrogen. Using a nitrification inhibitor, such as
B19: Nitrapyrin can help reduce the amount of N leaching and increase corn yields (average 6% for Iowa) for a base material cost (around $11.50/acre) with no special application equipment necessary.
B21: This worksheet estimates the MRTN and provides a comparison with a producer's current N rate. In addition, the costs of using liquid manure can be compared to current N fertilizer sources.
B23: Let's get started.
B27: General Information: | G27: Final Costs:
B28: Would you like to autofill the worksheet with | I28: Low | J28: MPR | K28: High
B29: default prices? | G29: Total Cost/Savings using MPR on all acres: | I29: =D59 -> 16.46 | J29: =E59 -> 15.49 | K29: 16.51
B31: Is cost-sharing available? | G31: Total Cost/Saving using Manure on all acres: | J31: =I80 -> 0
B38: Section 1: Maximum Return to Nitrogen (MRTN)
B45: Estimating Most Profitable Nitrogen Rate (MPR) | G45: Total crop acres: | H45: 1 | I45: acres
B47: Current N application rate: | D47: 180 | E47: lbs/acre | G47: Expected Yield: | H47: 185 | I47: bushels/acre
B49: Rotation: | G49: N price (lb): | H49: 0.44 | I49: /lb
B51: Corn market price: | D51: 3.4 | E51: /bushel | G51: N/Corn price ratio | H51: =ROUND(H49/D51,3) -> 0.129 | I51: lb/$/bushel
D53: Min | E53: MPR | F53: Max
B54: Estimated MPR: | D54: =IF(B97=2,B88,D88) -> 171 | E54: =IF(B97=2,B87,D87) -> 181 | F54: =IF(B97=2,B89,D89) -> 192 | G54: lbs/acre | H54: Percent yield at MPR: | I54: 100 | J54: %
D56: Low | E56: MPR | F56: High | I56: Min | J56: MPR | K56: Max
B57: Saving from lower N use: | D57: =$H$45*($D$47-D54)*$H$49 -> 3.96 | E57: =$H$45*($D$47-E54)*$H$49 -> -0.44 | F57: -5.28 | G57: /acre | H57: Yield reduction cost: | I57: =IF(B97=2,ROUND(($H$47-$H$47*B91/100)*$D$51*$H$45,2),ROUND(($H$47-$H$47*D91/100)*$D$51*$H$45,2)) -> 20.42 | J57: =IF(B97=2,ROUND(($H$47-$H$47*B92/100)*$D$51*$H$45,2),ROUND(($H$47-$H$47*D92/100)*$D$51*$H$45,2)) -> 15.05 | K57: =IF(B97=2,ROUND(($H$47-$H$47*B93/100)*$D$51*$H$45,2),ROUND(($H$47-$H$47*D93/100)*$D$51*$H$45,2)) -> 11.23
B59: Total cost (savings) of using MPR: | D59: =I57-D57 -> 16.46 | E59: =J57-E57 -> 15.49 | F59: 16.51
B62: Section 2: Manure application
B70: Replacing current fertilizer with manure application:
B72: Current N application rate: | E72: =D47 -> 180 | G72: Percentage of N to replace with manure: | J72: %
B74: Average N percentage of manure source: | F74: %
B76: Total amount of manure needed: | H76: Cost per ton of manure: | J76: /ton
B78: Distance from manure source | F78: miles | H78: Cost to haul per gallon: | J78: gal + | L78: gal/mi
B80: Total cost of manure nitrogen source: | G80: Cost difference using manure:
B84: This is the end of the fertilizer management worksheet. The total costs and nitrogen reduction information is summarized in the boxes at the top of this page.
A86: CFS | D86: CFC
A87: Average | B87: =ROUND(336905*H51^6-528645*H51^5+324851*H51^4-100034*H51^3+16546*H51^2-1662.5*H51+209.93,0) -> 129 | D87: =ROUND(-8507520.67*H51^6+7818012.54*H51^5-2695844.43*H51^4+425833.99*H51^3-28775.33*H51^2+55.1*H51+245.25,0) -> 181
A88: Min | B88: =ROUND(120622*H51^6-200365*H51^5+131530*H51^4-43693*H51^3+7945.2*H51^2-991.47*H51+178.14,0) -> 118 | D88: =ROUND(-264509*H51^6-370284*H51^5+457510*H51^4-164543*H51^3+26036*H51^2-2176.1*H51+258.97,0) -> 171
A89: Max | B89: =ROUND(467239*H51^6-746116*H51^5+468583*H51^4-148016*H51^3+25078*H51^2-2444*H51+249.74,0) -> 139 | D89: =ROUND(-10075860.63*H51^6+9598566.49*H51^5-3451449.38*H51^4+570940.76*H51^3-40026.74*H51^2+74.54*H51+282.15,0) -> 192
A91: %YieldLow | B91: =ROUND(3.83723*10^-11*B88^6-2.85*10^-8*B88^5+8.67026*10^-6*B88^4-0.001375307*B88^3+0.118085386*B88^2-4.951837334*B88+164.4071167,4) -> 97.1857 | D91: =100*ROUND(-0.0000000000055805*D88^6+0.0000000058487002*D88^5-0.0000025391317702*D88^4+0.0005843644751565*D88^3-0.0751897132178108*D88^2+5.12982854379788*D88-144.128160999064,6) -> 96.7538
A92: %YieldMPR | B92: =ROUND(3.83723*10^-11*B87^6-2.85*10^-8*B87^5+8.67026*10^-6*B87^4-0.001375307*B87^3+0.118085386*B87^2-4.951837334*B87+164.4071167,4) -> 98.0391 | D92: =100*ROUND(-0.0000000000055805*D87^6+0.0000000058487002*D87^5-0.0000025391317702*D87^4+0.0005843644751565*D87^3-0.0751897132178108*D87^2+5.12982854379788*D87-144.128160999064,6) -> 97.6072
A93: %YieldHigh | B93: =ROUND(3.83723*10^-11*B89^6-2.85*10^-8*B89^5+8.67026*10^-6*B89^4-0.001375307*B89^3+0.118085386*B89^2-4.951837334*B89+164.4071167,4) -> 98.626 | D93: =100*ROUND(-0.0000000000055805*D89^6+0.0000000058487002*D89^5-0.0000025391317702*D89^4+0.0005843644751565*D89^3-0.0751897132178108*D89^2+5.12982854379788*D89-144.128160999064,6) -> 98.214
A95: Current | B95: 175 | D95: 200
A97: Rotation | B97: 3
